Workbook

Sheet Consolidated Summary
A1: Financial Summary - All Missions | Q1: Password to unprotect:
A2: Department Impact | Q2: bulldogs
B3: Year 1 | C3: Year 2 | D3: Year 3 | E3: Total
A5: Medical Service Income:
A6: RVU Payments | B6: ='Funds Flow P&L'!C14+'Funds Flow P&L'!C15 -> 0 | C6: ='Funds Flow P&L'!D14+'Funds Flow P&L'!D15 -> 0 | D6: ='Funds Flow P&L'!E14+'Funds Flow P&L'!E15 -> 0 | E6: =SUM(B6:D6) -> 0
A7: YNHHS Clinical Salary Support | B7: ='Funds Flow P&L'!C16 -> 0 | C7: ='Funds Flow P&L'!D16 -> 0 | D7: ='Funds Flow P&L'!E16 -> 0 | E7: =SUM(B7:D7) -> 0
A8: Subtotal | B8: =SUM(B6:B7) -> 0 | C8: =SUM(C6:C7) -> 0 | D8: 0 | E8: =SUM(E6:E7) -> 0
A10: Other Income:
A11: Sponsored Agreement Income | B11: =SUM('Research Plan'!I6:I7) -> 0 | C11: =SUM('Research Plan'!Q6:Q7) -> 0 | D11: =SUM('Research Plan'!Y6:Y7) -> 0 | E11: =SUM(B11:D11) -> 0
A12: Academic Program Support (APS) | B12: ='Research Plan'!I13 -> 0 | C12: ='Research Plan'!Q13 -> 0 | D12: ='Research Plan'!Y13 -> 0 | E12: =SUM(B12:D12) -> 0
A13: Other Revenue | B13: ='Research Plan'!I15-SUM(B11:B12) -> 0 | C13: ='Research Plan'!Q15-SUM(C11:C12) -> 0 | D13: ='Research Plan'!Y15-SUM(D11:D12) -> 0 | E13: =SUM(B13:D13) -> 0
A14: Subtotal | B14: =SUM(B11:B13) -> 0 | C14: =SUM(C11:C13) -> 0 | D14: 0 | E14: 0
A16: Total Revenue | B16: =B8+B14 -> 0 | C16: =C8+C14 -> 0 | D16: 0 | E16: =E8+E14 -> 0
A18: Salaries and Benefits:
A19: Faculty Compensation | B19: ='Funds Flow P&L'!C18+'Research Plan'!I22+SUM('Research Plan'!I30:I31) -> 0 | C19: ='Funds Flow P&L'!D18+'Research Plan'!Q22+SUM('Research Plan'!Q30:Q31) -> 0 | D19: ='Funds Flow P&L'!E18+'Research Plan'!Y22+SUM('Research Plan'!Y30:Y31) -> 0 | E19: =SUM(B19:D19) -> 0
A20: Support Staff Compensation | B20: ='Funds Flow P&L'!C19+SUM('Research Plan'!I24:I25) -> 0 | C20: ='Funds Flow P&L'!D19+SUM('Research Plan'!Q24:Q25) -> 0 | D20: ='Funds Flow P&L'!E19+SUM('Research Plan'!Y24:Y25) -> 0 | E20: =SUM(B20:D20) -> 0
A21: Subtotal | B21: =SUM(B19:B20) -> 0 | C21: =SUM(C19:C20) -> 0 | D21: 0 | E21: =SUM(E19:E20) -> 0
A23: Other Expenses:
A24: Non-Salary Expenses | B24: ='Funds Flow P&L'!C20+SUM('Research Plan'!I26:I27) -> 0 | C24: ='Funds Flow P&L'!D20+SUM('Research Plan'!Q26:Q27) -> 0 | D24: ='Funds Flow P&L'!E20+SUM('Research Plan'!Y26:Y27) -> 0 | E24: =SUM(B24:D24) -> 0
A25: Assessment Expenses | B25: =SUM('Research Plan'!I28:I29) -> 0 | C25: =SUM('Research Plan'!Q28:Q29) -> 0 | D25: =SUM('Research Plan'!Y28:Y29) -> 0 | E25: =SUM(B25:D25) -> 0
A26: Grant Indirects | B26: ='Research Plan'!I33 -> 0 | C26: ='Research Plan'!Q33 -> 0 | D26: ='Research Plan'!Y33 -> 0 | E26: =SUM(B26:D26) -> 0
A27: Subtotal | B27: =SUM(B24:B26) -> 0 | C27: =SUM(C24:C26) -> 0 | D27: 0 | E27: =SUM(E24:E26) -> 0
A29: Total Expenses | B29: =B21+B27 -> 0 | C29: =C21+C27 -> 0 | D29: 0 | E29: =E21+E27 -> 0
A31: Net Income | B31: =B16-B29 -> 0 | C31: =C16-C29 -> 0 | D31: 0 | E31: =E16-E29 -> 0

Sheet Funds Flow P&L
B2: Funds Flow Business Planning Tool Summary
C4: Clinical Department Impact | K4: Specailty Summary | L4: Current cFTE3 | M4: cFTE1 from Plan | N4: New Total | O4: Productivity4
C5: Year 1 | D5: Year 2 | E5: Year 3 | F5: Year 4 | G5: Year 5 | H5: Year 6 | I5: Total | K5: =_xlfn.UNIQUE('Physician Funds Flow Build'!J8:J23) -> 0 | L5: =SUMIF(uhcforcfte,K5,cfte) -> 0 | M5: =IFERROR(SUMIF('Physician Funds Flow Build'!$J$8:$J$23,K5,'Physician Funds Flow Build'!$D$8:$D$23)," ") -> 0 | N5: =M5+L5 -> 0 | O5: =IF(OR(K5="0",K5= " ")," ",'Physician Funds Flow Build'!AP8) -> 0
B6: UHC RVUs | C6: =SUM('Physician Funds Flow Build'!BD8:BD23) -> 0 | D6: =SUM('Physician Funds Flow Build'!BE8:BE23) -> 0 | E6: =SUM('Physician Funds Flow Build'!BF8:BF23) -> 0 | F6: =SUM('Physician Funds Flow Build'!BG8:BG23) -> 0 | G6: =SUM('Physician Funds Flow Build'!BH8:BH23) -> 0 | H6: =SUM('Physician Funds Flow Build'!BI8:BI23) -> 0 | I6: =SUM(C6:H6) -> 0 | L6: =SUMIF(uhcforcfte,K6,cfte) -> 0 | M6: =IFERROR(SUMIF('Physician Funds Flow Build'!$J$8:$J$23,K6,'Physician Funds Flow Build'!$D$8:$D$23)," ") -> 0 | N6: =M6+L6 -> 0 | O6: =IF(OR(K6="0",K6= " ")," ",'Physician Funds Flow Build'!AP9) -> 0
B7: Startup RVUs | C7: =SUM('Physician Funds Flow Build'!AX8:AX23) -> 0 | D7: =SUM('Physician Funds Flow Build'!AY8:AY23) -> 0 | E7: =SUM('Physician Funds Flow Build'!AZ8:AZ23) -> 0 | F7: =SUM('Physician Funds Flow Build'!BA8:BA23) -> 0 | G7: =SUM('Physician Funds Flow Build'!BB8:BB23) -> 0 | H7: =SUM('Physician Funds Flow Build'!BC8:BC23) -> 0 | I7: =SUM(C7:H7) -> 0 | L7: 0 | M7: =IFERROR(SUMIF('Physician Funds Flow Build'!$J$8:$J$23,K7,'Physician Funds Flow Build'!$D$8:$D$23)," ") -> 0 | N7: 0 | O7: =IF(OR(K7="0",K7= " ")," ",'Physician Funds Flow Build'!AP10) -> 0
B8: Total RVUs | C8: =SUM(C6:C7) -> 0 | D8: =SUM(D6:D7) -> 0 | E8: 0 | F8: 0 | G8: 0 | H8: 0 | I8: 0 | L8: 0 | M8: =IFERROR(SUMIF('Physician Funds Flow Build'!$J$8:$J$23,K8,'Physician Funds Flow Build'!$D$8:$D$23)," ") -> 0 | N8: 0 | O8: =IF(OR(K8="0",K8= " ")," ",'Physician Funds Flow Build'!AP11) -> 0
B9: cFTEs1 | C9: =SUMIF('Physician Funds Flow Build'!$G:$G,"Year 1",'Physician Funds Flow Build'!$D:$D) -> 0 | D9: =SUMIF('Physician Funds Flow Build'!$G:$G,"Year 1",'Physician Funds Flow Build'!$D:$D)+SUMIF('Physician Funds Flow Build'!$G:$G,"Year 2",'Physician Funds Flow Build'!$D:$D) -> 0 | E9: =SUMIF('Physician Funds Flow Build'!$G:$G,"Year 1",'Physician Funds Flow Build'!$D:$D)+SUMIF('Physician Funds Flow Build'!$G:$G,"Year 2",'Physician Funds Flow Build'!$D:$D)+SUMIF('Physician Funds Flow Build'!$G:$G,"Year 3",'Physician Funds Flow Build'!$D:$D) -> 0 | F9: =SUMIF('Physician Funds Flow Build'!$G:$G,"Year 1",'Physician Funds Flow Build'!$D:$D)+SUMIF('Physician Funds Flow Build'!$G:$G,"Year 2",'Physician Funds Flow Build'!$D:$D)+SUMIF('Physician Funds Flow Build'!$G:$G,"Year 3",'Physician Funds Flow Build'!$D:$D)+SUMIF('Physician Funds Flow Build'!$G:$G,"Year 4",'Physician Funds Flow Build'!$D:$D) -> 0 | G9: =SUMIF('Physician Funds Flow Build'!$G:$G,"Year 1",'Physician Funds Flow Build'!$D:$D)+SUMIF('Physician Funds Flow Build'!$G:$G,"Year 2",'Physician Funds Flow Build'!$D:$D)+SUMIF('Physician Funds Flow Build'!$G:$G,"Year 3",'Physician Funds Flow Build'!$D:$D)+SUMIF('Physician Funds Flow Build'!$G:$G,"Year 4",'Physician Funds Flow Build'!$D:$D)+SUMIF('Physician Funds Flow Build'!$G:$G,"Year 5",'Physician Funds Flow Build'!$D:$D) -> 0 | H9: =SUMIF('Physician Funds Flow Build'!$G:$G,"Year 1",'Physician Funds Flow Build'!$D:$D)+SUMIF('Physician Funds Flow Build'!$G:$G,"Year 2",'Physician Funds Flow Build'!$D:$D)+SUMIF('Physician Funds Flow Build'!$G:$G,"Year 3",'Physician Funds Flow Build'!$D:$D)+SUMIF('Physician Funds Flow Build'!$G:$G,"Year 4",'Physician Funds Flow Build'!$D:$D)+SUMIF('Physician Funds Flow Build'!$G:$G,"Year 5",'Physician Funds Flow Build'!$D:$D)+SUMIF('Physician Funds Flow Build'!$G:$G,"Year 6",'Physician Funds Flow Build'!$D:$D) -> 0 | I9: =AVERAGE(C9:H9) -> 0 | L9: =SUMIF(uhcforcfte,K9,cfte) -> 0 | M9: =IFERROR(SUMIF('Physician Funds Flow Build'!$J$8:$J$23,K9,'Physician Funds Flow Build'!$D$8:$D$23)," ") -> 0 | N9: 0 | O9: =IF(OR(K9="0",K9= " ")," ",'Physician Funds Flow Build'!AP12) -> 0
B10: Departmental Support FTEs | C10: ='Support Staff Build'!D23 -> 0 | D10: ='Support Staff Build'!H23 -> 0 | E10: ='Support Staff Build'!L23 -> 0 | F10: ='Support Staff Build'!P23 -> 0 | G10: ='Support Staff Build'!T23 -> 0 | H10: ='Support Staff Build'!X23 -> 0 | I10: =AVERAGE(C10:H10) -> 0 | L10: 0 | M10: =IFERROR(SUMIF('Physician Funds Flow Build'!$J$8:$J$23,K10,'Physician Funds Flow Build'!$D$8:$D$23)," ") -> 0 | N10: =M10+L10 -> 0 | O10: =IF(OR(K10="0",K10= " ")," ",'Physician Funds Flow Build'!AP13) -> 0
B11: Yale Medicine Clinical FTEs | C11: ='Support Staff Build'!D43 -> 0 | D11: ='Support Staff Build'!H43 -> 0 | E11: ='Support Staff Build'!L43 -> 0 | F11: ='Support Staff Build'!P43 -> 0 | G11: ='Support Staff Build'!T43 -> 0 | H11: ='Support Staff Build'!X43 -> 0 | I11: 0 | L11: 0 | M11: =IFERROR(SUMIF('Physician Funds Flow Build'!$J$8:$J$23,K11,'Physician Funds Flow Build'!$D$8:$D$23)," ") -> 0 | N11: 0 | O11: =IF(OR(K11="0",K11= " ")," ",'Physician Funds Flow Build'!AP14) -> 0
L12: 0 | M12: =IFERROR(SUMIF('Physician Funds Flow Build'!$J$8:$J$23,K12,'Physician Funds Flow Build'!$D$8:$D$23)," ") -> 0 | N12: 0 | O12: =IF(OR(K12="0",K12= " ")," ",'Physician Funds Flow Build'!AP15) -> 0
B13: Projected Profit/Loss | L13: 0 | M13: =IFERROR(SUMIF('Physician Funds Flow Build'!$J$8:$J$23,K13,'Physician Funds Flow Build'!$D$8:$D$23)," ") -> 0 | N13: 0 | O13: =IF(OR(K13="0",K13= " ")," ",'Physician Funds Flow Build'!AP16) -> 0
B14: UHC RVU Payment | C14: =IFERROR((C6/C8)*SUM('Physician Funds Flow Build'!BJ8:BJ23),0) -> 0 | D14: =IFERROR((D6/D8)*SUM('Physician Funds Flow Build'!BK8:BK23),0) -> 0 | E14: =IFERROR((E6/E8)*SUM('Physician Funds Flow Build'!BL8:BL23),0) -> 0 | F14: =IFERROR((F6/F8)*SUM('Physician Funds Flow Build'!BM8:BM23),0) -> 0 | G14: =IFERROR((G6/G8)*SUM('Physician Funds Flow Build'!BN8:BN23),0) -> 0 | H14: =IFERROR((H6/H8)*SUM('Physician Funds Flow Build'!BO8:BO23),0) -> 0 | I14: =SUM(C14:H14) -> 0 | L14: 0 | M14: =IFERROR(SUMIF('Physician Funds Flow Build'!$J$8:$J$23,K14,'Physician Funds Flow Build'!$D$8:$D$23)," ") -> 0 | N14: 0 | O14: =IF(OR(K14="0",K14= " ")," ",'Physician Funds Flow Build'!AP17) -> 0
B15: Startup Payment | C15: =IFERROR((C7/C8)*SUM('Physician Funds Flow Build'!BJ8:BJ23),0) -> 0 | D15: =IFERROR((D7/D8)*SUM('Physician Funds Flow Build'!BK8:BK23),0) -> 0 | E15: =IFERROR((E7/E8)*SUM('Physician Funds Flow Build'!BL8:BL23),0) -> 0 | F15: =IFERROR((F7/F8)*SUM('Physician Funds Flow Build'!BM8:BM23),0) -> 0 | G15: =IFERROR((G7/G8)*SUM('Physician Funds Flow Build'!BN8:BN23),0) -> 0 | H15: =IFERROR((H7/H8)*SUM('Physician Funds Flow Build'!BO8:BO23),0) -> 0 | I15: =SUM(C15:H15) -> 0 | L15: =SUMIF(uhcforcfte,K15,cfte) -> 0 | M15: =IFERROR(SUMIF('Physician Funds Flow Build'!$J$8:$J$23,K15,'Physician Funds Flow Build'!$D$8:$D$23)," ") -> 0 | N15: =M15+L15 -> 0 | O15: =IF(OR(K15="0",K15= " ")," ",'Physician Funds Flow Build'!AP18) -> 0
B16: Physician Clinical Salary Support2 | C16: =SUM('Physician Funds Flow Build'!CH8:CH23) -> 0 | D16: =SUM('Physician Funds Flow Build'!CI8:CI23) -> 0 | E16: =SUM('Physician Funds Flow Build'!CJ8:CJ23) -> 0 | F16: =SUM('Physician Funds Flow Build'!CK8:CK23) -> 0 | G16: =SUM('Physician Funds Flow Build'!CL8:CL23) -> 0 | H16: =SUM('Physician Funds Flow Build'!CM8:CM23) -> 0 | I16: =SUM(C16:H16) -> 0 | L16: =SUMIF(uhcforcfte,K16,cfte) -> 0 | M16: =IFERROR(SUMIF('Physician Funds Flow Build'!$J$8:$J$23,K16,'Physician Funds Flow Build'!$D$8:$D$23)," ") -> 0 | N16: 0 | O16: =IF(OR(K16="0",K16= " ")," ",'Physician Funds Flow Build'!AP18) -> 0
B17: Total Departmental Revenues | C17: =SUM(C14:C16) -> 0 | D17: =SUM(D14:D16) -> 0 | E17: 0 | F17: 0 | G17: 0 | H17: =SUM(H14:H16) -> 0 | I17: =SUM(I14:I16) -> 0 | L17: 0 | M17: =IFERROR(SUMIF('Physician Funds Flow Build'!$J$8:$J$23,K17,'Physician Funds Flow Build'!$D$8:$D$23)," ") -> 0 | N17: 0 | O17: =IF(OR(K17="0",K17= " ")," ",'Physician Funds Flow Build'!AP19) -> 0
B18: Physician Compensation | C18: =SUM('Physician Funds Flow Build'!CB8:CB23) -> 0 | D18: =SUM('Physician Funds Flow Build'!CC8:CC23) -> 0 | E18: =SUM('Physician Funds Flow Build'!CD8:CD23) -> 0 | F18: =SUM('Physician Funds Flow Build'!CE8:CE23) -> 0 | G18: =SUM('Physician Funds Flow Build'!CF8:CF23) -> 0 | H18: =SUM('Physician Funds Flow Build'!CG8:CG23) -> 0 | I18: =SUM(C18:H18) -> 0 | L18: 0 | M18: =IFERROR(SUMIF('Physician Funds Flow Build'!$J$8:$J$23,K18,'Physician Funds Flow Build'!$D$8:$D$23)," ") -> 0 | N18: 0 | O18: =IF(OR(K18="0",K18= " ")," ",'Physician Funds Flow Build'!AP20) -> 0
B19: Department Support Staff | C19: ='Support Staff Build'!G23 -> 0 | D19: ='Support Staff Build'!K23 -> 0 | E19: ='Support Staff Build'!O23 -> 0 | F19: ='Support Staff Build'!S23 -> 0 | G19: ='Support Staff Build'!W23 -> 0 | H19: ='Support Staff Build'!AA23 -> 0 | I19: =SUM(C19:H19) -> 0 | K19: Totals | L19: =SUM(L5:L18) -> 0 | M19: =SUM(M5:M18) -> 0 | N19: =SUM(N5:N18) -> 0
B20: Department Non-Salary | C20: ='Non-Salary Build (Clinical)'!C22 -> 0 | D20: ='Non-Salary Build (Clinical)'!D22 -> 0 | E20: ='Non-Salary Build (Clinical)'!E22 -> 0 | F20: ='Non-Salary Build (Clinical)'!F22 -> 0 | G20: ='Non-Salary Build (Clinical)'!G22 -> 0 | H20: ='Non-Salary Build (Clinical)'!H22 -> 0 | I20: =SUM(C20:H20) -> 0
B21: Total Departmental Expenses | C21: =SUM(C18:C20) -> 0 | D21: =SUM(D18:D20) -> 0 | E21: 0 | F21: 0 | G21: 0 | H21: 0 | I21: 0 | K21: 1) cFTE refers to RVU-generating effort. (Excludes Salary Support)
B22: Department Surplus/Deficit | C22: =C17-C21 -> 0 | D22: 0 | E22: 0 | F22: 0 | G22: 0 | H22: 0 | I22: 0 | K22: 2) Clinical Salary Support refers to medical directorships, purchase services, and other clinical leadership support revenues. (Excludes cFTE)
K23: 3) Current cFTE value (year average) for the specialty.
C24: Yale Medicine Impact | K24: 4) Current productivity for the specialty from the Yale Medicine Provivder Productivity Dashboard.
B25: Projected Profit/Loss | C25: Year 1 | D25: Year 2 | E25: Year 3 | F25: Year 4 | G25: Year 5 | H25: Year 6 | I25: Total | K25: 5) Natural collections plus salary support less departmental and Yale Medicine expenses.
B26: Clinical Collections - Custom | I26: =SUM(C26:H26) -> 0
B27: Clinical Collections - Calculated | C27: =IF(OR(C26=0, C26= " "),SUM('Physician Funds Flow Build'!CP8:CP23),0) -> 0 | D27: =IF(OR(D26=0, D26= " "),SUM('Physician Funds Flow Build'!CQ8:CQ23),0) -> 0 | E27: =IF(OR(E26=0, E26= " "),SUM('Physician Funds Flow Build'!CR8:CR23),0) -> 0 | F27: =IF(OR(F26=0, F26= " "),SUM('Physician Funds Flow Build'!CS8:CS23),0) -> 0 | G27: =IF(OR(G26=0, G26= " "),SUM('Physician Funds Flow Build'!CT8:CT23),0) -> 0 | H27: =IF(OR(H26=0, H26= " "),SUM('Physician Funds Flow Build'!CU8:CU23),0) -> 0 | I27: =SUM(C27:H27) -> 0
B28: RVU Payment | C28: =-C14+-C15 -> 0 | D28: 0 | E28: 0 | F28: 0 | G28: 0 | H28: 0 | I28: =SUM(C28:H28) -> 0
B29: Yale Medicine Revenues | C29: =SUM(C26:C28) -> 0 | D29: 0 | E29: 0 | F29: 0 | G29: 0 | H29: 0 | I29: 0
B31: Staffing | C31: ='Support Staff Build'!G43 -> 0 | D31: ='Support Staff Build'!K43 -> 0 | E31: ='Support Staff Build'!O43 -> 0 | F31: ='Support Staff Build'!S43 -> 0 | G31: ='Support Staff Build'!W43 -> 0 | H31: ='Support Staff Build'!AA43 -> 0 | I31: =SUM(C31:H31) -> 0
B32: Malpractice | C32: ='Non-Salary Build (Clinical)'!C27 -> 0 | D32: ='Non-Salary Build (Clinical)'!D27 -> 0 | E32: ='Non-Salary Build (Clinical)'!E27 -> 0 | F32: ='Non-Salary Build (Clinical)'!F27 -> 0 | G32: ='Non-Salary Build (Clinical)'!G27 -> 0 | H32: ='Non-Salary Build (Clinical)'!H27 -> 0 | I32: =SUM(C32:H32) -> 0 | K32: Academic Support Pmt.
B33: Non-Salary | C33: ='Non-Salary Build (Clinical)'!C37-'Non-Salary Build (Clinical)'!C27 -> 0 | D33: ='Non-Salary Build (Clinical)'!D37-'Non-Salary Build (Clinical)'!D27 -> 0 | E33: ='Non-Salary Build (Clinical)'!E37-'Non-Salary Build (Clinical)'!E27 -> 0 | F33: ='Non-Salary Build (Clinical)'!F37-'Non-Salary Build (Clinical)'!F27 -> 0 | G33: ='Non-Salary Build (Clinical)'!G37-'Non-Salary Build (Clinical)'!G27 -> 0 | H33: ='Non-Salary Build (Clinical)'!H37-'Non-Salary Build (Clinical)'!H27 -> 0 | I33: =SUM(C33:H33) -> 0 | K33: 0.0185
B34: Dean's Assessment | C34: =(C26+C27)*$K$33 -> 0 | D34: =(D26+D27)*$K$33 -> 0 | E34: 0 | F34: 0 | G34: 0 | H34: =(H26+H27)*$K$33 -> 0 | I34: =SUM(C34:H34) -> 0 | K34: YM Overhead Rate
B35: Yale Medicine Indirect Rate | C35: =IF(C26=0,$K$35*C27,C26*$K$35) -> 0 | D35: =IF(D26=0,$K$35*D27,D26*$K$35) -> 0 | E35: 0 | F35: 0 | G35: 0 | H35: =IF(H26=0,$K$35*H27,H26*$K$35) -> 0 | I35: =SUM(C35:H35) -> 0 | K35: 0.1646105589
B36: Yale Medicine Expenses | C36: =SUM(C31:C35) -> 0 | D36: 0 | E36: 0 | F36: 0 | G36: 0 | H36: 0 | I36: 0 | K36: FY24 YMA expenses divided
B37: Yale Medicine Surplus/Deficit | C37: =C29-C36 -> 0 | D37: =D29-D36 -> 0 | E37: 0 | F37: 0 | G37: 0 | H37: 0 | I37: =I29-I36 -> 0 | K37: by FY24 budgeted collections
B39: YM Enterprise True Surplus/Deficit5 | C39: =(C26+C16+C27)-(C36+C21) -> 0 | D39: 0 | E39: 0 | F39: 0 | G39: 0 | H39: 0 | I39: 0
B40: Surplus/Deficit % | C40: =IFERROR(C39/(C26+C16+C27),0) -> 0 | D40: 0 | E40: 0 | F40: 0 | G40: 0 | H40: 0 | I40: 0
C42: YNHHS Impact
C43: Year 1 | D43: Year 2 | E43: Year 3 | F43: Year 4 | G43: Year 5 | H43: Year 6 | I43: Total
B44: YNHHS Surplus/Deficit | C44: =C37+-C16 -> 0 | D44: 0 | E44: 0 | F44: 0 | G44: 0 | H44: 0 | I44: 0

Sheet Physician Funds Flow Build
C2: Yale Medicine Business Planning Tool
C4: Salary Planning Tool | D4: =IF(COUNTIF($B$8:$B$23,"!!!")<>0,"Warning! Orange highlighted cells are missing data (may be in hidden columns). Please reach out to Tara Costain (tara.gambardella@yale.edu) for assistance.","") -> 
D5: Input | E5: Input | F5: Input | G5: Select | H5: Select | I5: Select | J5: Select | K5: Input | L5: Input | M5: Input | N5: Input | O5: Input | P5: Input | Q5: Input | R5: Input | S5: Input | T5: Input | U5: Calc. | V5: Calc. | W5: Input | X5: Input | Y5: Input | Z5: Input | AA5: Input | AB5: Input | AC5: Select | AD5: Calc. | AE5: Calc. | AF5: Calc. | AG5: Calc. | AH5: Calc. | AI5: Calc. | AM5: Input | AN5: Calc. | AO5: Calc. | AP5: Calc. | AQ5: Calc. | AR5: Calc. | AS5: Calc. | AT5: Calc. | AU5: Calc. | AV5: Calc. | AW5: Calc. | AX5: Calc. | AY5: Calc. | AZ5: Calc. | BA5: Calc. | BB5: Calc. | BC5: Calc. | BD5: Calc. | BE5: Calc. | BF5: Calc. | BG5: Calc. | BH5: Calc. | BI5: Calc. | BJ5: Calc. | BK5: Calc. | BL5: Calc. | BM5: Calc. | BN5: Calc. | BO5: Calc. | BP5: Calc. | BQ5: Calc. | BR5: Calc. | BS5: Calc. | BT5: Calc. | BU5: Calc. | BV5: Calc. | BW5: Calc. | BX5: Calc. | BY5: Calc. | BZ5: Calc. | CA5: Calc. | CB5: Calc. | CC5: Calc. | CD5: Calc. | CE5: Calc. | CF5: Calc. | CG5: Calc. | CH5: Calc. | CI5: Calc. | CJ5: Calc. | CK5: Calc. | CL5: Calc. | CM5: Calc. | CN5: Calc. | CO5: Input | CP5: Calc. | CQ5: Calc. | CR5: Calc. | CS5: Calc. | CT5: Calc. | CU5: Calc.
E6: Clin Sal Support2 | H6: Startup | K6: YNHH/DN | L6: Ramp-Up Expectations | R6: Compensation at 1.0 FTE | W6: Incentive Compensation | AC6: Benchmarks | AJ6: Overhead | AK6: Benefits | AL6: RVU | AM6: RVU Rate | AN6: UHC | AO6: UHC | AP6: Specialty | AQ6: Total | AR6: Startup Schedule % | AX6: Startup Schedule RVUs | BD6: UHC RVUs based on Ramp-Up | BJ6: Total RVU Payment | BP6: Total Compensation | BV6: Total Compensation with Benefits and Tack-On | CB6: Total Compensation with Benefits and Tack-On (Clinical Portion) | CH6: Salary Support Revenue | CN6: Calculated | CO6: Actual Rate | CP6: Calculated Clinical Collections | CW6: Report Diagnostics
C7: Physician Name/Type | D7: cFTE1 | F7: FTE3 | G7: Start Date | H7: Override | I7: Department | J7: UHC Specialty | K7: Split | L7: Year 1 | M7: Year 2 | N7: Year 3 | O7: Year 4 | P7: Year 5 | Q7: Year 6 | R7: Y1 Salary | S7: Incentive | T7: Comp. Growth | U7: Total Comp. | V7: Benchmark | W7: Year 1 | X7: Year 2 | Y7: Year 3 | Z7: Year 4 | AA7: Year 5 | AB7: Year 6 | AC7: Target | AD7: Selected | AE7: 25th | AF7: 50th | AG7: 65th | AH7: 75th | AI7: 90th | AJ7: Rate | AK7: Rate | AL7: Rate | AM7: Growth | AN7: RVU | AO7: Benchmark | AP7: % of 50th | AQ7: Rate | AR7: Year 1 | AS7: Year 2 | AT7: Year 3 | AU7: Year 4 | AV7: Year 5 | AW7: Year 6 | AX7: Year 1 | AY7: Year 2 | AZ7: Year 3 | BA7: Year 4 | BB7: Year 5 | BC7: Year 6 | BD7: Year 1 | BE7: Year 2 | BF7: Year 3 | BG7: Year 4 | BH7: Year 5 | BI7: Year 6 | BJ7: Year 1 | BK7: Year 2 | BL7: Year 3 | BM7: Year 4 | BN7: Year 5 | BO7: Year 6 | BP7: Year 1 | BQ7: Year 2 | BR7: Year 3 | BS7: Year 4 | BT7: Year 5 | BU7: Year 6 | BV7: Year 1 | BW7: Year 2 | BX7: Year 3 | BY7: Year 4 | BZ7: Year 5 | CA7: Year 6 | CB7: Year 1 | CC7: Year 2 | CD7: Year 3 | CE7: Year 4 | CF7: Year 5 | CG7: Year 6 | CH7: Year 1 | CI7: Year 2 | CJ7: Year 3 | CK7: Year 4 | CL7: Year 5 | CM7: Year 6 | CN7: RVU Rate | CO7: Growth | CP7: Year 1 | CQ7: Year 2 | CR7: Year 3 | CS7: Year 4 | CT7: Year 5 | CU7: Year 6 | CW7: Rate Summary | CX7: Current UHC Benchmarks | CY7: Benefit + OH Rate | CZ7: April Productivity Table | DA7: $-RVU
B8: =IF(COUNTIF(CW8:DA8,FALSE)>0,"!!!","") ->  | G8: Year 1 | H8: No | K8: 1 | T8: 0.03 | U8: =SUM(R8:S8) -> 0 | V8: =IFERROR(VLOOKUP(J8,ratetable,6,0),0) -> 0 | W8: =IFERROR(IF(VALUE(RIGHT($G8,1))>1,0,$S8*$F8),0) -> 0 | X8: =IFERROR(IF(VALUE(RIGHT($G8,1))>2, 0,$S8*$F8),0) -> 0 | Y8: =IFERROR(IF(VALUE(RIGHT($G8,1))>3, 0,$S8*$F8),0) -> 0 | Z8: =IFERROR(IF(VALUE(RIGHT($G8,1))>4, 0,$S8*$F8),0) -> 0 | AA8: =IFERROR(IF(VALUE(RIGHT($G8,1))>5, 0,$S8*$F8),0) -> 0 | AB8: =IFERROR(IF(FALSE, 0,$S8*$F8),0) -> 0 | AC8: 50th | AD8: =INDEX($AE8:$AI8,1,MATCH($AC8,$AE$7:$AI$7,0)) -> 0 | AE8: =IFERROR(VLOOKUP($J8,uhcbenchmarks,5,0),0) -> 0 | AF8: =IFERROR(VLOOKUP($J8,uhcbenchmarks,6,0),0) -> 0 | AG8: =IFERROR(VLOOKUP($J8,uhcbenchmarks,7,0),0) -> 0 | AH8: =IFERROR(VLOOKUP($J8,uhcbenchmarks,8,0),0) -> 0 | AI8: =IFERROR(VLOOKUP($J8,uhcbenchmarks,9,0),0) -> 0 | AJ8: =IFERROR(VLOOKUP(I8,beneohrate,6,0),0) -> 0 | AK8: =IFERROR(VLOOKUP(I8,beneohrate,7,0),0) -> 0 | AL8: =IFERROR(VLOOKUP(J8,ratetable,9,0),0) -> 0 | AM8: 0 | AN8: =SUMIF(prodspec,J8,uhcrvu) -> 0 | AO8: =SUMIF(prodspec,J8,uhcbench) -> 0 | AP8: =IFERROR(AN8/AO8,0) -> 0 | AQ8: =SUM(AJ8:AL8) -> 0 | AR8: =IF(H8= "No",IF($G8="Year 1",($K8*Assumptions!$H$4)+((1-$K8)*Assumptions!$I$4),0),1) -> 0.4 | AS8: =IF(H8= "No",IF($G8="Year 1",($K8*Assumptions!$H$5)+((1-$K8)*Assumptions!$I$5),IF($G8="Year 2",($K8*Assumptions!$H$4)+((1-$K8)*Assumptions!$I$4),0)),1) -> 0.6 | AT8: =IF(H8= "No",IF(G8="Year 1",($K8*Assumptions!$H$6)+((1-$K8)*Assumptions!$I$6),IF(G8="Year 2",($K8*Assumptions!$H$5)+((1-$K8)*Assumptions!$I$5),IF(G8="Year 3",($K8*Assumptions!$H$4)+((1-$K8)*Assumptions!$I$4),0))),1) -> 0.8 | AU8: =IF(H8= "No",IF(G8="Year 1",($K8*Assumptions!$H$7)+((1-$K8)*Assumptions!$I$7),IF(G8="Year 2",($K8*Assumptions!$H$6)+((1-$K8)*Assumptions!$I$6),IF(G8="Year 3",($K8*Assumptions!$H$5)+((1-$K8)*Assumptions!$I$5),IF(G8="Year 4",($K8*Assumptions!$H$4)+((1-$K8)*Assumptions!$I$4),0)))),1) -> 1 | AV8: =IF(H8= "No",IF(G8="Year 1",($K8*Assumptions!$H$8)+((1-$K8)*Assumptions!$I$8),IF(G8="Year 2",($K8*Assumptions!$H$7)+((1-$K8)*Assumptions!$I$7),IF(G8="Year 3",($K8*Assumptions!$H$6)+((1-$K8)*Assumptions!$I$6),IF(G8="Year 4",($K8*Assumptions!$H$5)+((1-$K8)*Assumptions!$I$5),IF(G8="Year 5",($K8*Assumptions!$H$4)+((1-$K8)*Assumptions!$I$4),0))))),1) -> 1 | AW8: =IF(H8= "No",IF(G8="Year 1",($K8*Assumptions!$H$9)+((1-$K8)*Assumptions!$I$9),IF(G8="Year 2",($K8*Assumptions!$H$8)+((1-$K8)*Assumptions!$I$8),IF(G8="Year 3",($K8*Assumptions!$H$7)+((1-$K8)*Assumptions!$I$7),IF(G8="Year 4",($K8*Assumptions!$H$6)+((1-$K8)*Assumptions!$I$6),IF(G8="Year 5",($K8*Assumptions!$H$5)+((1-$K8)*Assumptions!$I$5),IF(G8="Year 6",($K8*Assumptions!$H$4)+((1-$K8)*Assumptions!$I$4),0)))))),1) -> 1 | AX8: =((1-AR8)*$AF8)*$D8*IF(VALUE(RIGHT($G8,1))>1,0,1) -> 0 | AY8: =((1-AS8)*$AF8)*$D8*IF(VALUE(RIGHT($G8,1))>2,0,1) -> 0 | AZ8: =((1-AT8)*$AF8)*$D8*IF(VALUE(RIGHT($G8,1))>3,0,1) -> 0 | BA8: =((1-AU8)*$AF8)*$D8*IF(VALUE(RIGHT($G8,1))>4,0,1) -> 0 | BB8: =((1-AV8)*$AF8)*$D8*IF(VALUE(RIGHT($G8,1))>5,0,1) -> 0 | BC8: =((1-AW8)*$AF8)*$D8 -> 0 | BD8: =IF($G8= "Year 1",($AD8*L8)*$D8,0) -> 0 | BE8: =IF(OR($G8= "Year 1", $G8= "Year 2"),($AD8*M8)*$D8,0) -> 0 | BF8: =IF(OR($G8= "Year 1", $G8= "Year 2", $G8= "Year 3"),($AD8*N8)*$D8,0) -> 0 | BG8: =IF(OR($G8= "Year 1", $G8= "Year 2", $G8= "Year 3", $G8= "Year 4"),($AD8*O8)*$D8,0) -> 0 | BH8: =IF(OR($G8= "Year 1", $G8= "Year 2", $G8= "Year 3", $G8= "Year 4",$G8= "Year 5"),($AD8*P8)*$D8,0) -> 0 | BI8: =IF(OR($G8= "Year 1", $G8= "Year 2", $G8= "Year 3", $G8= "Year 4",$G8= "Year 5", $G8= "Year 6"),($AD8*Q8)*$D8,0) -> 0 | BJ8: =(AX8+BD8)*$AQ8 -> 0 | BK8: =(AY8+BE8)*($AQ8*(1+AM8)) -> 0 | BL8: =(AZ8+BF8)*($AQ8*(1+$AM8)^2) -> 0 | BM8: =(BA8+BG8)*($AQ8*(1+$AM8)^3) -> 0 | BN8: =(BB8+BH8)*($AQ8*(1+$AM8)^4) -> 0 | BO8: =(BC8+BI8)*($AQ8*(1+$AM8)^5) -> 0 | BP8: =IF(VALUE(RIGHT($G8,1))>1,0,(F8*R8)+W8) -> 0 | BQ8: =IF(VALUE(RIGHT($G8,1))>2,0, IF(BP8>1,(BP8-W8)*(1+T8), (F8*R8)))+X8 -> 0 | BR8: =IF(VALUE(RIGHT($G8,1))>3,0,IF(BQ8>1, (BQ8-X8)*(1+T8), (F8*R8)))+Y8 -> 0 | BS8: =IF(VALUE(RIGHT($G8,1))>4, 0, IF(BR8>1, (BR8-Y8)*(1+T8), (F8*R8)))+Z8 -> 0 | BT8: =IF(VALUE(RIGHT($G8,1))>5, 0, IF(BS8>1, (BS8-Z8)*(1+T8), (F8*R8)))+AA8 -> 0 | BU8: =IF(VALUE(RIGHT($G8,1))=6, F8*R8, IF(BT8>1, (BT8-AA8)*(1+T8), (F8*R8)))+AB8 -> 0 | BV8: =IF(VALUE(RIGHT($G8,1))>1,0,IF((BP8-W8)>_pensionCap,(BP8-W8)+(_pensionCap*(_clinicalFacultyFringe+_childRearingAssessment+_tackOnAndSabbatical))+((BP8-W8-_pensionCap)*(_otcFringe+_childRearingAssessment))+(W8)+(W8*_incentiveFringe),(BP8-W8)+((BP8-W8)*(_clinicalFacultyFringe+_childRearingAssessment+_tackOnAndSabbatical))+(W8)+(W8*_incentiveFringe))) -> 0 | BW8: =IF(VALUE(RIGHT($G8,1))>2,0,IF((BQ8-X8)>_pensionCap,(BQ8-X8)+(_pensionCap*(_clinicalFacultyFringe+_childRearingAssessment+_tackOnAndSabbatical))+((BQ8-X8-_pensionCap)*(_otcFringe+_childRearingAssessment))+(X8)+(X8*_incentiveFringe),(BQ8-X8)+((BQ8-X8)*(_clinicalFacultyFringe+_childRearingAssessment+_tackOnAndSabbatical))+(X8)+(X8*_incentiveFringe))) -> 0 | BX8: =IF(VALUE(RIGHT($G8,1))>3,0,IF((BR8-Y8)>_pensionCap,(BR8-Y8)+(_pensionCap*(_clinicalFacultyFringe+_childRearingAssessment+_tackOnAndSabbatical))+((BR8-Y8-_pensionCap)*(_otcFringe+_childRearingAssessment))+(Y8)+(Y8*_incentiveFringe),(BR8-Y8)+((BR8-Y8)*(_clinicalFacultyFringe+_childRearingAssessment+_tackOnAndSabbatical))+(Y8)+(Y8*_incentiveFringe))) -> 0 | BY8: =IF(VALUE(RIGHT($G8,1))>4,0,IF((BS8-Z8)>_pensionCap,(BS8-Z8)+(_pensionCap*(_clinicalFacultyFringe+_childRearingAssessment+_tackOnAndSabbatical))+((BS8-Z8-_pensionCap)*(_otcFringe+_childRearingAssessment))+(Z8)+(Z8*_incentiveFringe),(BS8-Z8)+((BS8-Z8)*(_clinicalFacultyFringe+_childRearingAssessment+_tackOnAndSabbatical))+(Z8)+(Z8*_incentiveFringe))) -> 0 | BZ8: =IF(VALUE(RIGHT($G8,1))>5,0,IF((BT8-AA8)>_pensionCap,(BT8-AA8)+(_pensionCap*(_clinicalFacultyFringe+_childRearingAssessment+_tackOnAndSabbatical))+((BT8-AA8-_pensionCap)*(_otcFringe+_childRearingAssessment))+(AA8)+(AA8*_incentiveFringe),(BT8-AA8)+((BT8-AA8)*(_clinicalFacultyFringe+_childRearingAssessment+_tackOnAndSabbatical))+(AA8)+(AA8*_incentiveFringe))) -> 0 | CA8: =IF(VALUE(RIGHT($G8,1))=6,0,IF((BU8-AB8)>_pensionCap,(BU8-AB8)+(_pensionCap*(_clinicalFacultyFringe+_childRearingAssessment+_tackOnAndSabbatical))+((BU8-AB8-_pensionCap)*(_otcFringe+_childRearingAssessment))+(AB8)+(AB8*_incentiveFringe),(BU8-AB8)+((BU8-AB8)*(_clinicalFacultyFringe+_childRearingAssessment+_tackOnAndSabbatical))+(AB8)+(AB8*_incentiveFringe))) -> 0 | CB8: =BV8*SUM($D8:$E8) -> 0 | CC8: =BW8*SUM($D8:$E8) -> 0 | CD8: =BX8*SUM($D8:$E8) -> 0 | CE8: =BY8*SUM($D8:$E8) -> 0 | CF8: =BZ8*SUM($D8:$E8) -> 0 | CG8: =CA8*SUM($D8:$E8) -> 0 | CH8: =(BP8-W8)*$E8 -> 0 | CI8: =(BQ8-X8)*$E8 -> 0 | CJ8: =(BR8-Y8)*$E8 -> 0 | CK8: =(BS8-Z8)*$E8 -> 0 | CL8: =(BT8-AA8)*$E8 -> 0 | CM8: =(BU8-AB8)*$E8 -> 0 | CN8: =IFERROR(VLOOKUP(J8,actualrvutable,4,0),0) -> 0 | CO8: 0 | CP8: =$CN8*(BD8) -> 0 | CQ8: =$CN8*((BE8)*(1+CO8)) -> 0 | CR8: =$CN8*((BF8)*((1+CO8)^2)) -> 0 | CS8: =$CN8*((BG8)*((1+CO8)^3)) -> 0 | CT8: =$CN8*((BH8)*((1+CO8)^4)) -> 0 | CU8: =$CN8*((BI8)*((1+CO8)^5)) -> 0 | CW8: =IF(NOT(ISBLANK($J8)),IFERROR(ISTEXT(VLOOKUP($J8,ratetable,1,0)),FALSE),"") ->  | CX8: =IF(NOT(ISBLANK($J8)),IFERROR(ISTEXT(VLOOKUP($J8,uhcbenchmarks,1,0)),FALSE),"") ->  | CY8: =IF(NOT(ISBLANK($I8)),IFERROR(ISTEXT(VLOOKUP($I8,beneohrate,1,0)),FALSE),"") ->  | CZ8: =IF(NOT(ISBLANK($J8)),IFERROR(ISTEXT(VLOOKUP($J8,prodspec,1,0)),FALSE),"") ->  | DA8: =IF(NOT(ISBLANK($J8)),IFERROR(ISTEXT(VLOOKUP($J8,actualrvutable,1,0)),FALSE),"") -> 
B9: =IF(COUNTIF(CW9:DA9,FALSE)>0,"!!!","") ->  | G9: Year 1 | H9: No | K9: 1 | T9: 0.03 | U9: =SUM(R9:S9) -> 0 | V9: =IFERROR(VLOOKUP(J9,ratetable,6,0),0) -> 0 | W9: 0 | X9: 0 | Y9: 0 | Z9: 0 | AA9: 0 | AB9: 0 | AC9: 50th | AD9: =INDEX($AE9:$AI9,1,MATCH($AC9,$AE$7:$AI$7,0)) -> 0 | AE9: 0 | AF9: 0 | AG9: 0 | AH9: 0 | AI9: 0 | AJ9: 0 | AK9: 0 | AL9: 0 | AM9: 0 | AN9: 0 | AO9: 0 | AP9: =IFERROR(AN9/AO9,0) -> 0 | AQ9: =SUM(AJ9:AL9) -> 0 | AR9: =IF(H9= "No",IF($G9="Year 1",($K9*Assumptions!$H$4)+((1-$K9)*Assumptions!$I$4),0),1) -> 0.4 | AS9: =IF(H9= "No",IF($G9="Year 1",($K9*Assumptions!$H$5)+((1-$K9)*Assumptions!$I$5),IF($G9="Year 2",($K9*Assumptions!$H$4)+((1-$K9)*Assumptions!$I$4),0)),1) -> 0.6 | AT9: =IF(H9= "No",IF(G9="Year 1",($K9*Assumptions!$H$6)+((1-$K9)*Assumptions!$I$6),IF(G9="Year 2",($K9*Assumptions!$H$5)+((1-$K9)*Assumptions!$I$5),IF(G9="Year 3",($K9*Assumptions!$H$4)+((1-$K9)*Assumptions!$I$4),0))),1) -> 0.8 | AU9: =IF(H9= "No",IF(G9="Year 1",($K9*Assumptions!$H$7)+((1-$K9)*Assumptions!$I$7),IF(G9="Year 2",($K9*Assumptions!$H$6)+((1-$K9)*Assumptions!$I$6),IF(G9="Year 3",($K9*Assumptions!$H$5)+((1-$K9)*Assumptions!$I$5),IF(G9="Year 4",($K9*Assumptions!$H$4)+((1-$K9)*Assumptions!$I$4),0)))),1) -> 1 | AV9: =IF(H9= "No",IF(G9="Year 1",($K9*Assumptions!$H$8)+((1-$K9)*Assumptions!$I$8),IF(G9="Year 2",($K9*Assumptions!$H$7)+((1-$K9)*Assumptions!$I$7),IF(G9="Year 3",($K9*Assumptions!$H$6)+((1-$K9)*Assumptions!$I$6),IF(G9="Year 4",($K9*Assumptions!$H$5)+((1-$K9)*Assumptions!$I$5),IF(G9="Year 5",($K9*Assumptions!$H$4)+((1-$K9)*Assumptions!$I$4),0))))),1) -> 1 | AW9: =IF(H9= "No",IF(G9="Year 1",($K9*Assumptions!$H$9)+((1-$K9)*Assumptions!$I$9),IF(G9="Year 2",($K9*Assumptions!$H$8)+((1-$K9)*Assumptions!$I$8),IF(G9="Year 3",($K9*Assumptions!$H$7)+((1-$K9)*Assumptions!$I$7),IF(G9="Year 4",($K9*Assumptions!$H$6)+((1-$K9)*Assumptions!$I$6),IF(G9="Year 5",($K9*Assumptions!$H$5)+((1-$K9)*Assumptions!$I$5),IF(G9="Year 6",($K9*Assumptions!$H$4)+((1-$K9)*Assumptions!$I$4),0)))))),1) -> 1 | AX9: =((1-AR9)*$AF9)*$D9*IF(VALUE(RIGHT($G9,1))>1,0,1) -> 0 | AY9: =((1-AS9)*$AF9)*$D9*IF(VALUE(RIGHT($G9,1))>2,0,1) -> 0 | AZ9: =((1-AT9)*$AF9)*$D9*IF(VALUE(RIGHT($G9,1))>3,0,1) -> 0 | BA9: =((1-AU9)*$AF9)*$D9*IF(VALUE(RIGHT($G9,1))>4,0,1) -> 0 | BB9: =((1-AV9)*$AF9)*$D9*IF(VALUE(RIGHT($G9,1))>5,0,1) -> 0 | BC9: =((1-AW9)*$AF9)*$D9 -> 0 | BD9: 0 | BE9: 0 | BF9: 0 | BG9: 0 | BH9: 0 | BI9: 0 | BJ9: =(AX9+BD9)*$AQ9 -> 0 | BK9: =(AY9+BE9)*($AQ9*(1+AM9)) -> 0 | BL9: =(AZ9+BF9)*($AQ9*(1+$AM9)^2) -> 0 | BM9: =(BA9+BG9)*($AQ9*(1+$AM9)^3) -> 0 | BN9: =(BB9+BH9)*($AQ9*(1+$AM9)^4) -> 0 | BO9: =(BC9+BI9)*($AQ9*(1+$AM9)^5) -> 0 | BP9: =IF(VALUE(RIGHT($G9,1))>1,0,(F9*R9)+W9) -> 0 | BQ9: =IF(VALUE(RIGHT($G9,1))>2, 0, IF(BP9>1,(BP9-W9)*(1+T9), (F9*R9)))+X9 -> 0 | BR9: =IF(VALUE(RIGHT($G9,1))>3, 0, IF(BQ9>1, (BQ9-X9)*(1+T9), (F9*R9)))+Y9 -> 0 | BS9: =IF(VALUE(RIGHT($G9,1))>4, 0, IF(BR9>1, (BR9-Y9)*(1+T9), (F9*R9)))+Z9 -> 0 | BT9: =IF(VALUE(RIGHT($G9,1))>5, 0, IF(BS9>1, (BS9-Z9)*(1+T9), (F9*R9)))+AA9 -> 0 | BU9: =IF(VALUE(RIGHT($G9,1))=6, F9*R9, IF(BT9>1, (BT9-AA9)*(1+T9), (F9*R9)))+AB9 -> 0 | BV9: =IF(VALUE(RIGHT($G9,1))>1,0,IF((BP9-W9)>_pensionCap,(BP9-W9)+(_pensionCap*(_clinicalFacultyFringe+_childRearingAssessment+_tackOnAndSabbatical))+((BP9-W9-_pensionCap)*(_otcFringe+_childRearingAssessment))+(W9)+(W9*_incentiveFringe),(BP9-W9)+((BP9-W9)*(_clinicalFacultyFringe+_childRearingAssessment+_tackOnAndSabbatical))+(W9)+(W9*_incentiveFringe))) -> 0 | BW9: 0 | BX9: 0 | BY9: 0 | BZ9: 0 | CA9: 0 | CB9: =BV9*SUM($D9:$E9) -> 0 | CC9: 0 | CD9: 0 | CE9: 0 | CF9: 0 | CG9: 0 | CH9: =(BP9-W9)*$E9 -> 0 | CI9: 0 | CJ9: 0 | CK9: 0 | CL9: 0 | CM9: 0 | CN9: 0 | CO9: 0 | CP9: =$CN9*(BD9) -> 0 | CQ9: =$CN9*((BE9)*(1+CO9)) -> 0 | CR9: =$CN9*((BF9)*((1+CO9)^2)) -> 0 | CS9: =$CN9*((BG9)*((1+CO9)^3)) -> 0 | CT9: =$CN9*((BH9)*((1+CO9)^4)) -> 0 | CU9: =$CN9*((BI9)*((1+CO9)^5)) -> 0
G10: Year 1 | H10: No | K10: 1 | T10: 0.03 | U10: 0 | V10: 0 | W10: 0 | X10: 0 | Y10: 0 | Z10: 0 | AA10: 0 | AB10: 0 | AC10: 50th | AD10: 0 | AE10: 0 | AF10: 0 | AG10: 0 | AH10: 0 | AI10: 0 | AJ10: 0 | AK10: 0 | AL10: 0 | AM10: 0 | AN10: 0 | AO10: 0 | AP10: 0 | AQ10: 0 | AR10: =IF(H10= "No",IF($G10="Year 1",($K10*Assumptions!$H$4)+((1-$K10)*Assumptions!$I$4),0),1) -> 0.4 | AS10: =IF(H10= "No",IF($G10="Year 1",($K10*Assumptions!$H$5)+((1-$K10)*Assumptions!$I$5),IF($G10="Year 2",($K10*Assumptions!$H$4)+((1-$K10)*Assumptions!$I$4),0)),1) -> 0.6 | AT10: =IF(H10= "No",IF(G10="Year 1",($K10*Assumptions!$H$6)+((1-$K10)*Assumptions!$I$6),IF(G10="Year 2",($K10*Assumptions!$H$5)+((1-$K10)*Assumptions!$I$5),IF(G10="Year 3",($K10*Assumptions!$H$4)+((1-$K10)*Assumptions!$I$4),0))),1) -> 0.8 | AU10: =IF(H10= "No",IF(G10="Year 1",($K10*Assumptions!$H$7)+((1-$K10)*Assumptions!$I$7),IF(G10="Year 2",($K10*Assumptions!$H$6)+((1-$K10)*Assumptions!$I$6),IF(G10="Year 3",($K10*Assumptions!$H$5)+((1-$K10)*Assumptions!$I$5),IF(G10="Year 4",($K10*Assumptions!$H$4)+((1-$K10)*Assumptions!$I$4),0)))),1) -> 1 | AV10: =IF(H10= "No",IF(G10="Year 1",($K10*Assumptions!$H$8)+((1-$K10)*Assumptions!$I$8),IF(G10="Year 2",($K10*Assumptions!$H$7)+((1-$K10)*Assumptions!$I$7),IF(G10="Year 3",($K10*Assumptions!$H$6)+((1-$K10)*Assumptions!$I$6),IF(G10="Year 4",($K10*Assumptions!$H$5)+((1-$K10)*Assumptions!$I$5),IF(G10="Year 5",($K10*Assumptions!$H$4)+((1-$K10)*Assumptions!$I$4),0))))),1) -> 1 | AW10: =IF(H10= "No",IF(G10="Year 1",($K10*Assumptions!$H$9)+((1-$K10)*Assumptions!$I$9),IF(G10="Year 2",($K10*Assumptions!$H$8)+((1-$K10)*Assumptions!$I$8),IF(G10="Year 3",($K10*Assumptions!$H$7)+((1-$K10)*Assumptions!$I$7),IF(G10="Year 4",($K10*Assumptions!$H$6)+((1-$K10)*Assumptions!$I$6),IF(G10="Year 5",($K10*Assumptions!$H$5)+((1-$K10)*Assumptions!$I$5),IF(G10="Year 6",($K10*Assumptions!$H$4)+((1-$K10)*Assumptions!$I$4),0)))))),1) -> 1 | AX10: 0 | AY10: 0 | AZ10: 0 | BA10: 0 | BB10: 0 | BC10: 0 | BD10: 0 | BE10: 0 | BF10: 0 | BG10: 0 | BH10: 0 | BI10: 0 | BJ10: 0 | BK10: 0 | BL10: 0 | BM10: 0 | BN10: 0 | BO10: 0 | BP10: 0 | BQ10: 0 | BR10: 0 | BS10: 0 | BT10: 0 | BU10: 0 | BV10: 0 | BW10: 0 | BX10: 0 | BY10: 0 | BZ10: 0 | CA10: 0 | CB10: 0 | CC10: 0 | CD10: 0 | CE10: 0 | CF10: 0 | CG10: 0 | CH10: 0 | CI10: 0 | CJ10: 0 | CK10: 0 | CL10: 0 | CM10: 0 | CN10: 0 | CO10: 0 | CP10: 0 | CQ10: 0 | CR10: 0 | CS10: 0 | CT10: 0 | CU10: 0
G11: Year 1 | H11: No | K11: 1 | T11: 0.03 | U11: 0 | V11: 0 | W11: 0 | X11: 0 | Y11: 0 | Z11: 0 | AA11: 0 | AB11: 0 | AC11: 50th | AD11: 0 | AE11: 0 | AF11: 0 | AG11: 0 | AH11: 0 | AI11: 0 | AJ11: 0 | AK11: 0 | AL11: 0 | AM11: 0 | AN11: 0 | AO11: 0 | AP11: 0 | AQ11: 0 | AR11: =IF(H11= "No",IF($G11="Year 1",($K11*Assumptions!$H$4)+((1-$K11)*Assumptions!$I$4),0),1) -> 0.4 | AS11: =IF(H11= "No",IF($G11="Year 1",($K11*Assumptions!$H$5)+((1-$K11)*Assumptions!$I$5),IF($G11="Year 2",($K11*Assumptions!$H$4)+((1-$K11)*Assumptions!$I$4),0)),1) -> 0.6 | AT11: =IF(H11= "No",IF(G11="Year 1",($K11*Assumptions!$H$6)+((1-$K11)*Assumptions!$I$6),IF(G11="Year 2",($K11*Assumptions!$H$5)+((1-$K11)*Assumptions!$I$5),IF(G11="Year 3",($K11*Assumptions!$H$4)+((1-$K11)*Assumptions!$I$4),0))),1) -> 0.8 | AU11: =IF(H11= "No",IF(G11="Year 1",($K11*Assumptions!$H$7)+((1-$K11)*Assumptions!$I$7),IF(G11="Year 2",($K11*Assumptions!$H$6)+((1-$K11)*Assumptions!$I$6),IF(G11="Year 3",($K11*Assumptions!$H$5)+((1-$K11)*Assumptions!$I$5),IF(G11="Year 4",($K11*Assumptions!$H$4)+((1-$K11)*Assumptions!$I$4),0)))),1) -> 1 | AV11: =IF(H11= "No",IF(G11="Year 1",($K11*Assumptions!$H$8)+((1-$K11)*Assumptions!$I$8),IF(G11="Year 2",($K11*Assumptions!$H$7)+((1-$K11)*Assumptions!$I$7),IF(G11="Year 3",($K11*Assumptions!$H$6)+((1-$K11)*Assumptions!$I$6),IF(G11="Year 4",($K11*Assumptions!$H$5)+((1-$K11)*Assumptions!$I$5),IF(G11="Year 5",($K11*Assumptions!$H$4)+((1-$K11)*Assumptions!$I$4),0))))),1) -> 1 | AW11: =IF(H11= "No",IF(G11="Year 1",($K11*Assumptions!$H$9)+((1-$K11)*Assumptions!$I$9),IF(G11="Year 2",($K11*Assumptions!$H$8)+((1-$K11)*Assumptions!$I$8),IF(G11="Year 3",($K11*Assumptions!$H$7)+((1-$K11)*Assumptions!$I$7),IF(G11="Year 4",($K11*Assumptions!$H$6)+((1-$K11)*Assumptions!$I$6),IF(G11="Year 5",($K11*Assumptions!$H$5)+((1-$K11)*Assumptions!$I$5),IF(G11="Year 6",($K11*Assumptions!$H$4)+((1-$K11)*Assumptions!$I$4),0)))))),1) -> 1 | AX11: 0 | AY11: 0 | AZ11: 0 | BA11: 0 | BB11: 0 | BC11: 0 | BD11: 0 | BE11: 0 | BF11: 0 | BG11: 0 | BH11: 0 | BI11: 0 | BJ11: 0 | BK11: 0 | BL11: 0 | BM11: 0 | BN11: 0 | BO11: 0 | BP11: 0 | BQ11: 0 | BR11: 0 | BS11: 0 | BT11: 0 | BU11: 0 | BV11: 0 | BW11: 0 | BX11: 0 | BY11: 0 | BZ11: 0 | CA11: 0 | CB11: 0 | CC11: 0 | CD11: 0 | CE11: 0 | CF11: 0 | CG11: 0 | CH11: 0 | CI11: 0 | CJ11: 0 | CK11: 0 | CL11: 0 | CM11: 0 | CN11: 0 | CO11: 0 | CP11: 0 | CQ11: 0 | CR11: 0 | CS11: 0 | CT11: 0 | CU11: 0
G12: Year 1 | H12: No | K12: 1 | T12: 0.03 | U12: 0 | V12: 0 | W12: 0 | X12: 0 | Y12: 0 | Z12: 0 | AA12: 0 | AB12: 0 | AC12: 50th | AD12: 0 | AE12: 0 | AF12: 0 | AG12: 0 | AH12: 0 | AI12: 0 | AJ12: 0 | AK12: 0 | AL12: 0 | AM12: 0 | AN12: 0 | AO12: 0 | AP12: 0 | AQ12: 0 | AR12: =IF(H12= "No",IF($G12="Year 1",($K12*Assumptions!$H$4)+((1-$K12)*Assumptions!$I$4),0),1) -> 0.4 | AS12: =IF(H12= "No",IF($G12="Year 1",($K12*Assumptions!$H$5)+((1-$K12)*Assumptions!$I$5),IF($G12="Year 2",($K12*Assumptions!$H$4)+((1-$K12)*Assumptions!$I$4),0)),1) -> 0.6 | AT12: =IF(H12= "No",IF(G12="Year 1",($K12*Assumptions!$H$6)+((1-$K12)*Assumptions!$I$6),IF(G12="Year 2",($K12*Assumptions!$H$5)+((1-$K12)*Assumptions!$I$5),IF(G12="Year 3",($K12*Assumptions!$H$4)+((1-$K12)*Assumptions!$I$4),0))),1) -> 0.8 | AU12: =IF(H12= "No",IF(G12="Year 1",($K12*Assumptions!$H$7)+((1-$K12)*Assumptions!$I$7),IF(G12="Year 2",($K12*Assumptions!$H$6)+((1-$K12)*Assumptions!$I$6),IF(G12="Year 3",($K12*Assumptions!$H$5)+((1-$K12)*Assumptions!$I$5),IF(G12="Year 4",($K12*Assumptions!$H$4)+((1-$K12)*Assumptions!$I$4),0)))),1) -> 1 | AV12: =IF(H12= "No",IF(G12="Year 1",($K12*Assumptions!$H$8)+((1-$K12)*Assumptions!$I$8),IF(G12="Year 2",($K12*Assumptions!$H$7)+((1-$K12)*Assumptions!$I$7),IF(G12="Year 3",($K12*Assumptions!$H$6)+((1-$K12)*Assumptions!$I$6),IF(G12="Year 4",($K12*Assumptions!$H$5)+((1-$K12)*Assumptions!$I$5),IF(G12="Year 5",($K12*Assumptions!$H$4)+((1-$K12)*Assumptions!$I$4),0))))),1) -> 1 | AW12: =IF(H12= "No",IF(G12="Year 1",($K12*Assumptions!$H$9)+((1-$K12)*Assumptions!$I$9),IF(G12="Year 2",($K12*Assumptions!$H$8)+((1-$K12)*Assumptions!$I$8),IF(G12="Year 3",($K12*Assumptions!$H$7)+((1-$K12)*Assumptions!$I$7),IF(G12="Year 4",($K12*Assumptions!$H$6)+((1-$K12)*Assumptions!$I$6),IF(G12="Year 5",($K12*Assumptions!$H$5)+((1-$K12)*Assumptions!$I$5),IF(G12="Year 6",($K12*Assumptions!$H$4)+((1-$K12)*Assumptions!$I$4),0)))))),1) -> 1 | AX12: 0 | AY12: 0 | AZ12: 0 | BA12: 0 | BB12: 0 | BC12: 0 | BD12: 0 | BE12: 0 | BF12: 0 | BG12: 0 | BH12: 0 | BI12: 0 | BJ12: 0 | BK12: 0 | BL12: 0 | BM12: 0 | BN12: 0 | BO12: 0 | BP12: 0 | BQ12: 0 | BR12: 0 | BS12: 0 | BT12: 0 | BU12: 0 | BV12: 0 | BW12: 0 | BX12: 0 | BY12: 0 | BZ12: 0 | CA12: 0 | CB12: 0 | CC12: 0 | CD12: 0 | CE12: 0 | CF12: 0 | CG12: 0 | CH12: 0 | CI12: 0 | CJ12: 0 | CK12: 0 | CL12: 0 | CM12: 0 | CN12: 0 | CO12: 0 | CP12: 0 | CQ12: 0 | CR12: 0 | CS12: 0 | CT12: 0 | CU12: 0
G13: Year 1 | H13: No | K13: 1 | T13: 0.03 | U13: 0 | V13: 0 | W13: 0 | X13: 0 | Y13: 0 | Z13: 0 | AA13: 0 | AB13: 0 | AC13: 50th | AD13: 0 | AE13: 0 | AF13: 0 | AG13: 0 | AH13: 0 | AI13: 0 | AJ13: 0 | AK13: 0 | AL13: 0 | AM13: 0 | AN13: 0 | AO13: 0 | AP13: 0 | AQ13: 0 | AR13: =IF(H13= "No",IF($G13="Year 1",($K13*Assumptions!$H$4)+((1-$K13)*Assumptions!$I$4),0),1) -> 0.4 | AS13: =IF(H13= "No",IF($G13="Year 1",($K13*Assumptions!$H$5)+((1-$K13)*Assumptions!$I$5),IF($G13="Year 2",($K13*Assumptions!$H$4)+((1-$K13)*Assumptions!$I$4),0)),1) -> 0.6 | AT13: =IF(H13= "No",IF(G13="Year 1",($K13*Assumptions!$H$6)+((1-$K13)*Assumptions!$I$6),IF(G13="Year 2",($K13*Assumptions!$H$5)+((1-$K13)*Assumptions!$I$5),IF(G13="Year 3",($K13*Assumptions!$H$4)+((1-$K13)*Assumptions!$I$4),0))),1) -> 0.8 | AU13: =IF(H13= "No",IF(G13="Year 1",($K13*Assumptions!$H$7)+((1-$K13)*Assumptions!$I$7),IF(G13="Year 2",($K13*Assumptions!$H$6)+((1-$K13)*Assumptions!$I$6),IF(G13="Year 3",($K13*Assumptions!$H$5)+((1-$K13)*Assumptions!$I$5),IF(G13="Year 4",($K13*Assumptions!$H$4)+((1-$K13)*Assumptions!$I$4),0)))),1) -> 1 | AV13: =IF(H13= "No",IF(G13="Year 1",($K13*Assumptions!$H$8)+((1-$K13)*Assumptions!$I$8),IF(G13="Year 2",($K13*Assumptions!$H$7)+((1-$K13)*Assumptions!$I$7),IF(G13="Year 3",($K13*Assumptions!$H$6)+((1-$K13)*Assumptions!$I$6),IF(G13="Year 4",($K13*Assumptions!$H$5)+((1-$K13)*Assumptions!$I$5),IF(G13="Year 5",($K13*Assumptions!$H$4)+((1-$K13)*Assumptions!$I$4),0))))),1) -> 1 | AW13: =IF(H13= "No",IF(G13="Year 1",($K13*Assumptions!$H$9)+((1-$K13)*Assumptions!$I$9),IF(G13="Year 2",($K13*Assumptions!$H$8)+((1-$K13)*Assumptions!$I$8),IF(G13="Year 3",($K13*Assumptions!$H$7)+((1-$K13)*Assumptions!$I$7),IF(G13="Year 4",($K13*Assumptions!$H$6)+((1-$K13)*Assumptions!$I$6),IF(G13="Year 5",($K13*Assumptions!$H$5)+((1-$K13)*Assumptions!$I$5),IF(G13="Year 6",($K13*Assumptions!$H$4)+((1-$K13)*Assumptions!$I$4),0)))))),1) -> 1 | AX13: 0 | AY13: 0 | AZ13: 0 | BA13: 0 | BB13: 0 | BC13: 0 | BD13: 0 | BE13: 0 | BF13: 0 | BG13: 0 | BH13: 0 | BI13: 0 | BJ13: 0 | BK13: 0 | BL13: 0 | BM13: 0 | BN13: 0 | BO13: 0 | BP13: 0 | BQ13: 0 | BR13: 0 | BS13: 0 | BT13: 0 | BU13: 0 | BV13: 0 | BW13: 0 | BX13: 0 | BY13: 0 | BZ13: 0 | CA13: 0 | CB13: 0 | CC13: 0 | CD13: 0 | CE13: 0 | CF13: 0 | CG13: 0 | CH13: 0 | CI13: 0 | CJ13: 0 | CK13: 0 | CL13: 0 | CM13: 0 | CN13: 0 | CO13: 0 | CP13: 0 | CQ13: 0 | CR13: 0 | CS13: 0 | CT13: 0 | CU13: 0
G14: Year 1 | H14: No | K14: 1 | T14: 0.03 | U14: 0 | V14: 0 | W14: 0 | X14: 0 | Y14: 0 | Z14: 0 | AA14: 0 | AB14: 0 | AC14: 50th | AD14: 0 | AE14: 0 | AF14: 0 | AG14: 0 | AH14: 0 | AI14: 0 | AJ14: 0 | AK14: 0 | AL14: 0 | AM14: 0 | AN14: 0 | AO14: 0 | AP14: 0 | AQ14: 0 | AR14: =IF(H14= "No",IF($G14="Year 1",($K14*Assumptions!$H$4)+((1-$K14)*Assumptions!$I$4),0),1) -> 0.4 | AS14: =IF(H14= "No",IF($G14="Year 1",($K14*Assumptions!$H$5)+((1-$K14)*Assumptions!$I$5),IF($G14="Year 2",($K14*Assumptions!$H$4)+((1-$K14)*Assumptions!$I$4),0)),1) -> 0.6 | AT14: =IF(H14= "No",IF(G14="Year 1",($K14*Assumptions!$H$6)+((1-$K14)*Assumptions!$I$6),IF(G14="Year 2",($K14*Assumptions!$H$5)+((1-$K14)*Assumptions!$I$5),IF(G14="Year 3",($K14*Assumptions!$H$4)+((1-$K14)*Assumptions!$I$4),0))),1) -> 0.8 | AU14: =IF(H14= "No",IF(G14="Year 1",($K14*Assumptions!$H$7)+((1-$K14)*Assumptions!$I$7),IF(G14="Year 2",($K14*Assumptions!$H$6)+((1-$K14)*Assumptions!$I$6),IF(G14="Year 3",($K14*Assumptions!$H$5)+((1-$K14)*Assumptions!$I$5),IF(G14="Year 4",($K14*Assumptions!$H$4)+((1-$K14)*Assumptions!$I$4),0)))),1) -> 1 | AV14: =IF(H14= "No",IF(G14="Year 1",($K14*Assumptions!$H$8)+((1-$K14)*Assumptions!$I$8),IF(G14="Year 2",($K14*Assumptions!$H$7)+((1-$K14)*Assumptions!$I$7),IF(G14="Year 3",($K14*Assumptions!$H$6)+((1-$K14)*Assumptions!$I$6),IF(G14="Year 4",($K14*Assumptions!$H$5)+((1-$K14)*Assumptions!$I$5),IF(G14="Year 5",($K14*Assumptions!$H$4)+((1-$K14)*Assumptions!$I$4),0))))),1) -> 1 | AW14: =IF(H14= "No",IF(G14="Year 1",($K14*Assumptions!$H$9)+((1-$K14)*Assumptions!$I$9),IF(G14="Year 2",($K14*Assumptions!$H$8)+((1-$K14)*Assumptions!$I$8),IF(G14="Year 3",($K14*Assumptions!$H$7)+((1-$K14)*Assumptions!$I$7),IF(G14="Year 4",($K14*Assumptions!$H$6)+((1-$K14)*Assumptions!$I$6),IF(G14="Year 5",($K14*Assumptions!$H$5)+((1-$K14)*Assumptions!$I$5),IF(G14="Year 6",($K14*Assumptions!$H$4)+((1-$K14)*Assumptions!$I$4),0)))))),1) -> 1 | AX14: 0 | AY14: 0 | AZ14: 0 | BA14: 0 | BB14: 0 | BC14: 0 | BD14: 0 | BE14: 0 | BF14: 0 | BG14: 0 | BH14: 0 | BI14: 0 | BJ14: 0 | BK14: 0 | BL14: 0 | BM14: 0 | BN14: 0 | BO14: 0 | BP14: 0 | BQ14: 0 | BR14: 0 | BS14: 0 | BT14: 0 | BU14: 0 | BV14: 0 | BW14: 0 | BX14: 0 | BY14: 0 | BZ14: 0 | CA14: 0 | CB14: 0 | CC14: 0 | CD14: 0 | CE14: 0 | CF14: 0 | CG14: 0 | CH14: 0 | CI14: 0 | CJ14: 0 | CK14: 0 | CL14: 0 | CM14: 0 | CN14: 0 | CO14: 0 | CP14: 0 | CQ14: 0 | CR14: 0 | CS14: 0 | CT14: 0 | CU14: 0
G15: Year 1 | H15: No | K15: 1 | T15: 0.03 | U15: 0 | V15: 0 | W15: 0 | X15: 0 | Y15: 0 | Z15: 0 | AA15: 0 | AB15: 0 | AC15: 50th | AD15: 0 | AE15: 0 | AF15: 0 | AG15: 0 | AH15: 0 | AI15: 0 | AJ15: 0 | AK15: 0 | AL15: 0 | AM15: 0 | AN15: 0 | AO15: 0 | AP15: 0 | AQ15: 0 | AR15: =IF(H15= "No",IF($G15="Year 1",($K15*Assumptions!$H$4)+((1-$K15)*Assumptions!$I$4),0),1) -> 0.4 | AS15: =IF(H15= "No",IF($G15="Year 1",($K15*Assumptions!$H$5)+((1-$K15)*Assumptions!$I$5),IF($G15="Year 2",($K15*Assumptions!$H$4)+((1-$K15)*Assumptions!$I$4),0)),1) -> 0.6 | AT15: =IF(H15= "No",IF(G15="Year 1",($K15*Assumptions!$H$6)+((1-$K15)*Assumptions!$I$6),IF(G15="Year 2",($K15*Assumptions!$H$5)+((1-$K15)*Assumptions!$I$5),IF(G15="Year 3",($K15*Assumptions!$H$4)+((1-$K15)*Assumptions!$I$4),0))),1) -> 0.8 | AU15: =IF(H15= "No",IF(G15="Year 1",($K15*Assumptions!$H$7)+((1-$K15)*Assumptions!$I$7),IF(G15="Year 2",($K15*Assumptions!$H$6)+((1-$K15)*Assumptions!$I$6),IF(G15="Year 3",($K15*Assumptions!$H$5)+((1-$K15)*Assumptions!$I$5),IF(G15="Year 4",($K15*Assumptions!$H$4)+((1-$K15)*Assumptions!$I$4),0)))),1) -> 1 | AV15: =IF(H15= "No",IF(G15="Year 1",($K15*Assumptions!$H$8)+((1-$K15)*Assumptions!$I$8),IF(G15="Year 2",($K15*Assumptions!$H$7)+((1-$K15)*Assumptions!$I$7),IF(G15="Year 3",($K15*Assumptions!$H$6)+((1-$K15)*Assumptions!$I$6),IF(G15="Year 4",($K15*Assumptions!$H$5)+((1-$K15)*Assumptions!$I$5),IF(G15="Year 5",($K15*Assumptions!$H$4)+((1-$K15)*Assumptions!$I$4),0))))),1) -> 1 | AW15: =IF(H15= "No",IF(G15="Year 1",($K15*Assumptions!$H$9)+((1-$K15)*Assumptions!$I$9),IF(G15="Year 2",($K15*Assumptions!$H$8)+((1-$K15)*Assumptions!$I$8),IF(G15="Year 3",($K15*Assumptions!$H$7)+((1-$K15)*Assumptions!$I$7),IF(G15="Year 4",($K15*Assumptions!$H$6)+((1-$K15)*Assumptions!$I$6),IF(G15="Year 5",($K15*Assumptions!$H$5)+((1-$K15)*Assumptions!$I$5),IF(G15="Year 6",($K15*Assumptions!$H$4)+((1-$K15)*Assumptions!$I$4),0)))))),1) -> 1 | AX15: 0 | AY15: 0 | AZ15: 0 | BA15: 0 | BB15: 0 | BC15: 0 | BD15: 0 | BE15: 0 | BF15: 0 | BG15: 0 | BH15: 0 | BI15: 0 | BJ15: 0 | BK15: 0 | BL15: 0 | BM15: 0 | BN15: 0 | BO15: 0 | BP15: 0 | BQ15: 0 | BR15: 0 | BS15: 0 | BT15: 0 | BU15: 0 | BV15: 0 | BW15: 0 | BX15: 0 | BY15: 0 | BZ15: 0 | CA15: 0 | CB15: 0 | CC15: 0 | CD15: 0 | CE15: 0 | CF15: 0 | CG15: 0 | CH15: 0 | CI15: 0 | CJ15: 0 | CK15: 0 | CL15: 0 | CM15: 0 | CN15: 0 | CO15: 0 | CP15: 0 | CQ15: 0 | CR15: 0 | CS15: 0 | CT15: 0 | CU15: 0
G16: Year 1 | H16: No | K16: 1 | T16: 0.03 | U16: 0 | V16: 0 | W16: 0 | X16: 0 | Y16: 0 | Z16: 0 | AA16: 0 | AB16: 0 | AC16: 50th | AD16: 0 | AE16: 0 | AF16: 0 | AG16: 0 | AH16: 0 | AI16: 0 | AJ16: 0 | AK16: 0 | AL16: 0 | AM16: 0 | AN16: 0 | AO16: 0 | AP16: 0 | AQ16: 0 | AR16: =IF(H16= "No",IF($G16="Year 1",($K16*Assumptions!$H$4)+((1-$K16)*Assumptions!$I$4),0),1) -> 0.4 | AS16: =IF(H16= "No",IF($G16="Year 1",($K16*Assumptions!$H$5)+((1-$K16)*Assumptions!$I$5),IF($G16="Year 2",($K16*Assumptions!$H$4)+((1-$K16)*Assumptions!$I$4),0)),1) -> 0.6 | AT16: =IF(H16= "No",IF(G16="Year 1",($K16*Assumptions!$H$6)+((1-$K16)*Assumptions!$I$6),IF(G16="Year 2",($K16*Assumptions!$H$5)+((1-$K16)*Assumptions!$I$5),IF(G16="Year 3",($K16*Assumptions!$H$4)+((1-$K16)*Assumptions!$I$4),0))),1) -> 0.8 | AU16: =IF(H16= "No",IF(G16="Year 1",($K16*Assumptions!$H$7)+((1-$K16)*Assumptions!$I$7),IF(G16="Year 2",($K16*Assumptions!$H$6)+((1-$K16)*Assumptions!$I$6),IF(G16="Year 3",($K16*Assumptions!$H$5)+((1-$K16)*Assumptions!$I$5),IF(G16="Year 4",($K16*Assumptions!$H$4)+((1-$K16)*Assumptions!$I$4),0)))),1) -> 1 | AV16: =IF(H16= "No",IF(G16="Year 1",($K16*Assumptions!$H$8)+((1-$K16)*Assumptions!$I$8),IF(G16="Year 2",($K16*Assumptions!$H$7)+((1-$K16)*Assumptions!$I$7),IF(G16="Year 3",($K16*Assumptions!$H$6)+((1-$K16)*Assumptions!$I$6),IF(G16="Year 4",($K16*Assumptions!$H$5)+((1-$K16)*Assumptions!$I$5),IF(G16="Year 5",($K16*Assumptions!$H$4)+((1-$K16)*Assumptions!$I$4),0))))),1) -> 1 | AW16: =IF(H16= "No",IF(G16="Year 1",($K16*Assumptions!$H$9)+((1-$K16)*Assumptions!$I$9),IF(G16="Year 2",($K16*Assumptions!$H$8)+((1-$K16)*Assumptions!$I$8),IF(G16="Year 3",($K16*Assumptions!$H$7)+((1-$K16)*Assumptions!$I$7),IF(G16="Year 4",($K16*Assumptions!$H$6)+((1-$K16)*Assumptions!$I$6),IF(G16="Year 5",($K16*Assumptions!$H$5)+((1-$K16)*Assumptions!$I$5),IF(G16="Year 6",($K16*Assumptions!$H$4)+((1-$K16)*Assumptions!$I$4),0)))))),1) -> 1 | AX16: 0 | AY16: 0 | AZ16: 0 | BA16: 0 | BB16: 0 | BC16: 0 | BD16: 0 | BE16: 0 | BF16: 0 | BG16: 0 | BH16: 0 | BI16: 0 | BJ16: 0 | BK16: 0 | BL16: 0 | BM16: 0 | BN16: 0 | BO16: 0 | BP16: 0 | BQ16: 0 | BR16: 0 | BS16: 0 | BT16: 0 | BU16: 0 | BV16: 0 | BW16: 0 | BX16: 0 | BY16: 0 | BZ16: 0 | CA16: 0 | CB16: 0 | CC16: 0 | CD16: 0 | CE16: 0 | CF16: 0 | CG16: 0 | CH16: 0 | CI16: 0 | CJ16: 0 | CK16: 0 | CL16: 0 | CM16: 0 | CN16: 0 | CO16: 0 | CP16: 0 | CQ16: 0 | CR16: 0 | CS16: 0 | CT16: 0 | CU16: 0
G17: Year 1 | H17: No | K17: 1 | T17: 0.03 | U17: 0 | V17: 0 | W17: 0 | X17: 0 | Y17: 0 | Z17: 0 | AA17: 0 | AB17: 0 | AC17: 50th | AD17: 0 | AE17: 0 | AF17: 0 | AG17: 0 | AH17: 0 | AI17: 0 | AJ17: 0 | AK17: 0 | AL17: 0 | AM17: 0 | AN17: 0 | AO17: 0 | AP17: 0 | AQ17: 0 | AR17: =IF(H17= "No",IF($G17="Year 1",($K17*Assumptions!$H$4)+((1-$K17)*Assumptions!$I$4),0),1) -> 0.4 | AS17: =IF(H17= "No",IF($G17="Year 1",($K17*Assumptions!$H$5)+((1-$K17)*Assumptions!$I$5),IF($G17="Year 2",($K17*Assumptions!$H$4)+((1-$K17)*Assumptions!$I$4),0)),1) -> 0.6 | AT17: =IF(H17= "No",IF(G17="Year 1",($K17*Assumptions!$H$6)+((1-$K17)*Assumptions!$I$6),IF(G17="Year 2",($K17*Assumptions!$H$5)+((1-$K17)*Assumptions!$I$5),IF(G17="Year 3",($K17*Assumptions!$H$4)+((1-$K17)*Assumptions!$I$4),0))),1) -> 0.8 | AU17: =IF(H17= "No",IF(G17="Year 1",($K17*Assumptions!$H$7)+((1-$K17)*Assumptions!$I$7),IF(G17="Year 2",($K17*Assumptions!$H$6)+((1-$K17)*Assumptions!$I$6),IF(G17="Year 3",($K17*Assumptions!$H$5)+((1-$K17)*Assumptions!$I$5),IF(G17="Year 4",($K17*Assumptions!$H$4)+((1-$K17)*Assumptions!$I$4),0)))),1) -> 1 | AV17: =IF(H17= "No",IF(G17="Year 1",($K17*Assumptions!$H$8)+((1-$K17)*Assumptions!$I$8),IF(G17="Year 2",($K17*Assumptions!$H$7)+((1-$K17)*Assumptions!$I$7),IF(G17="Year 3",($K17*Assumptions!$H$6)+((1-$K17)*Assumptions!$I$6),IF(G17="Year 4",($K17*Assumptions!$H$5)+((1-$K17)*Assumptions!$I$5),IF(G17="Year 5",($K17*Assumptions!$H$4)+((1-$K17)*Assumptions!$I$4),0))))),1) -> 1 | AW17: =IF(H17= "No",IF(G17="Year 1",($K17*Assumptions!$H$9)+((1-$K17)*Assumptions!$I$9),IF(G17="Year 2",($K17*Assumptions!$H$8)+((1-$K17)*Assumptions!$I$8),IF(G17="Year 3",($K17*Assumptions!$H$7)+((1-$K17)*Assumptions!$I$7),IF(G17="Year 4",($K17*Assumptions!$H$6)+((1-$K17)*Assumptions!$I$6),IF(G17="Year 5",($K17*Assumptions!$H$5)+((1-$K17)*Assumptions!$I$5),IF(G17="Year 6",($K17*Assumptions!$H$4)+((1-$K17)*Assumptions!$I$4),0)))))),1) -> 1 | AX17: 0 | AY17: 0 | AZ17: 0 | BA17: 0 | BB17: 0 | BC17: 0 | BD17: 0 | BE17: 0 | BF17: 0 | BG17: 0 | BH17: 0 | BI17: 0 | BJ17: 0 | BK17: 0 | BL17: 0 | BM17: 0 | BN17: 0 | BO17: 0 | BP17: 0 | BQ17: 0 | BR17: 0 | BS17: 0 | BT17: 0 | BU17: 0 | BV17: 0 | BW17: 0 | BX17: 0 | BY17: 0 | BZ17: 0 | CA17: 0 | CB17: 0 | CC17: 0 | CD17: 0 | CE17: 0 | CF17: 0 | CG17: 0 | CH17: 0 | CI17: 0 | CJ17: 0 | CK17: 0 | CL17: 0 | CM17: 0 | CN17: 0 | CO17: 0 | CP17: 0 | CQ17: 0 | CR17: 0 | CS17: 0 | CT17: 0 | CU17: 0
G18: Year 1 | H18: No | K18: 1 | T18: 0.03 | U18: 0 | V18: 0 | W18: 0 | X18: 0 | Y18: 0 | Z18: 0 | AA18: 0 | AB18: 0 | AC18: 50th | AD18: 0 | AE18: 0 | AF18: 0 | AG18: 0 | AH18: 0 | AI18: 0 | AJ18: 0 | AK18: 0 | AL18: 0 | AM18: 0 | AN18: 0 | AO18: 0 | AP18: 0 | AQ18: 0 | AR18: =IF(H18= "No",IF($G18="Year 1",($K18*Assumptions!$H$4)+((1-$K18)*Assumptions!$I$4),0),1) -> 0.4 | AS18: =IF(H18= "No",IF($G18="Year 1",($K18*Assumptions!$H$5)+((1-$K18)*Assumptions!$I$5),IF($G18="Year 2",($K18*Assumptions!$H$4)+((1-$K18)*Assumptions!$I$4),0)),1) -> 0.6 | AT18: =IF(H18= "No",IF(G18="Year 1",($K18*Assumptions!$H$6)+((1-$K18)*Assumptions!$I$6),IF(G18="Year 2",($K18*Assumptions!$H$5)+((1-$K18)*Assumptions!$I$5),IF(G18="Year 3",($K18*Assumptions!$H$4)+((1-$K18)*Assumptions!$I$4),0))),1) -> 0.8 | AU18: =IF(H18= "No",IF(G18="Year 1",($K18*Assumptions!$H$7)+((1-$K18)*Assumptions!$I$7),IF(G18="Year 2",($K18*Assumptions!$H$6)+((1-$K18)*Assumptions!$I$6),IF(G18="Year 3",($K18*Assumptions!$H$5)+((1-$K18)*Assumptions!$I$5),IF(G18="Year 4",($K18*Assumptions!$H$4)+((1-$K18)*Assumptions!$I$4),0)))),1) -> 1 | AV18: =IF(H18= "No",IF(G18="Year 1",($K18*Assumptions!$H$8)+((1-$K18)*Assumptions!$I$8),IF(G18="Year 2",($K18*Assumptions!$H$7)+((1-$K18)*Assumptions!$I$7),IF(G18="Year 3",($K18*Assumptions!$H$6)+((1-$K18)*Assumptions!$I$6),IF(G18="Year 4",($K18*Assumptions!$H$5)+((1-$K18)*Assumptions!$I$5),IF(G18="Year 5",($K18*Assumptions!$H$4)+((1-$K18)*Assumptions!$I$4),0))))),1) -> 1 | AW18: =IF(H18= "No",IF(G18="Year 1",($K18*Assumptions!$H$9)+((1-$K18)*Assumptions!$I$9),IF(G18="Year 2",($K18*Assumptions!$H$8)+((1-$K18)*Assumptions!$I$8),IF(G18="Year 3",($K18*Assumptions!$H$7)+((1-$K18)*Assumptions!$I$7),IF(G18="Year 4",($K18*Assumptions!$H$6)+((1-$K18)*Assumptions!$I$6),IF(G18="Year 5",($K18*Assumptions!$H$5)+((1-$K18)*Assumptions!$I$5),IF(G18="Year 6",($K18*Assumptions!$H$4)+((1-$K18)*Assumptions!$I$4),0)))))),1) -> 1 | AX18: 0 | AY18: 0 | AZ18: 0 | BA18: 0 | BB18: 0 | BC18: 0 | BD18: 0 | BE18: 0 | BF18: 0 | BG18: 0 | BH18: 0 | BI18: 0 | BJ18: 0 | BK18: 0 | BL18: 0 | BM18: 0 | BN18: 0 | BO18: 0 | BP18: 0 | BQ18: 0 | BR18: 0 | BS18: 0 | BT18: 0 | BU18: 0 | BV18: 0 | BW18: 0 | BX18: 0 | BY18: 0 | BZ18: 0 | CA18: 0 | CB18: 0 | CC18: 0 | CD18: 0 | CE18: 0 | CF18: 0 | CG18: 0 | CH18: 0 | CI18: 0 | CJ18: 0 | CK18: 0 | CL18: 0 | CM18: 0 | CN18: 0 | CO18: 0 | CP18: 0 | CQ18: 0 | CR18: 0 | CS18: 0 | CT18: 0 | CU18: 0
G19: Year 1 | H19: No | K19: 1 | T19: 0.03 | U19: 0 | V19: 0 | W19: 0 | X19: 0 | Y19: 0 | Z19: 0 | AA19: 0 | AB19: 0 | AC19: 50th | AD19: 0 | AE19: 0 | AF19: 0 | AG19: 0 | AH19: 0 | AI19: 0 | AJ19: 0 | AK19: 0 | AL19: 0 | AM19: 0 | AN19: 0 | AO19: 0 | AP19: 0 | AQ19: 0 | AR19: =IF(H19= "No",IF($G19="Year 1",($K19*Assumptions!$H$4)+((1-$K19)*Assumptions!$I$4),0),1) -> 0.4 | AS19: =IF(H19= "No",IF($G19="Year 1",($K19*Assumptions!$H$5)+((1-$K19)*Assumptions!$I$5),IF($G19="Year 2",($K19*Assumptions!$H$4)+((1-$K19)*Assumptions!$I$4),0)),1) -> 0.6 | AT19: =IF(H19= "No",IF(G19="Year 1",($K19*Assumptions!$H$6)+((1-$K19)*Assumptions!$I$6),IF(G19="Year 2",($K19*Assumptions!$H$5)+((1-$K19)*Assumptions!$I$5),IF(G19="Year 3",($K19*Assumptions!$H$4)+((1-$K19)*Assumptions!$I$4),0))),1) -> 0.8 | AU19: =IF(H19= "No",IF(G19="Year 1",($K19*Assumptions!$H$7)+((1-$K19)*Assumptions!$I$7),IF(G19="Year 2",($K19*Assumptions!$H$6)+((1-$K19)*Assumptions!$I$6),IF(G19="Year 3",($K19*Assumptions!$H$5)+((1-$K19)*Assumptions!$I$5),IF(G19="Year 4",($K19*Assumptions!$H$4)+((1-$K19)*Assumptions!$I$4),0)))),1) -> 1 | AV19: =IF(H19= "No",IF(G19="Year 1",($K19*Assumptions!$H$8)+((1-$K19)*Assumptions!$I$8),IF(G19="Year 2",($K19*Assumptions!$H$7)+((1-$K19)*Assumptions!$I$7),IF(G19="Year 3",($K19*Assumptions!$H$6)+((1-$K19)*Assumptions!$I$6),IF(G19="Year 4",($K19*Assumptions!$H$5)+((1-$K19)*Assumptions!$I$5),IF(G19="Year 5",($K19*Assumptions!$H$4)+((1-$K19)*Assumptions!$I$4),0))))),1) -> 1 | AW19: =IF(H19= "No",IF(G19="Year 1",($K19*Assumptions!$H$9)+((1-$K19)*Assumptions!$I$9),IF(G19="Year 2",($K19*Assumptions!$H$8)+((1-$K19)*Assumptions!$I$8),IF(G19="Year 3",($K19*Assumptions!$H$7)+((1-$K19)*Assumptions!$I$7),IF(G19="Year 4",($K19*Assumptions!$H$6)+((1-$K19)*Assumptions!$I$6),IF(G19="Year 5",($K19*Assumptions!$H$5)+((1-$K19)*Assumptions!$I$5),IF(G19="Year 6",($K19*Assumptions!$H$4)+((1-$K19)*Assumptions!$I$4),0)))))),1) -> 1 | AX19: 0 | AY19: 0 | AZ19: 0 | BA19: 0 | BB19: 0 | BC19: 0 | BD19: 0 | BE19: 0 | BF19: 0 | BG19: 0 | BH19: 0 | BI19: 0 | BJ19: 0 | BK19: 0 | BL19: 0 | BM19: 0 | BN19: 0 | BO19: 0 | BP19: 0 | BQ19: 0 | BR19: 0 | BS19: 0 | BT19: 0 | BU19: 0 | BV19: 0 | BW19: 0 | BX19: 0 | BY19: 0 | BZ19: 0 | CA19: 0 | CB19: 0 | CC19: 0 | CD19: 0 | CE19: 0 | CF19: 0 | CG19: 0 | CH19: 0 | CI19: 0 | CJ19: 0 | CK19: 0 | CL19: 0 | CM19: 0 | CN19: 0 | CO19: 0 | CP19: 0 | CQ19: 0 | CR19: 0 | CS19: 0 | CT19: 0 | CU19: 0
G20: Year 1 | H20: No | K20: 1 | T20: 0.03 | U20: 0 | V20: 0 | W20: 0 | X20: 0 | Y20: 0 | Z20: 0 | AA20: 0 | AB20: 0 | AC20: 50th | AD20: 0 | AE20: 0 | AF20: 0 | AG20: 0 | AH20: 0 | AI20: 0 | AJ20: 0 | AK20: 0 | AL20: 0 | AM20: 0 | AN20: 0 | AO20: 0 | AP20: 0 | AQ20: 0 | AR20: =IF(H20= "No",IF($G20="Year 1",($K20*Assumptions!$H$4)+((1-$K20)*Assumptions!$I$4),0),1) -> 0.4 | AS20: =IF(H20= "No",IF($G20="Year 1",($K20*Assumptions!$H$5)+((1-$K20)*Assumptions!$I$5),IF($G20="Year 2",($K20*Assumptions!$H$4)+((1-$K20)*Assumptions!$I$4),0)),1) -> 0.6 | AT20: =IF(H20= "No",IF(G20="Year 1",($K20*Assumptions!$H$6)+((1-$K20)*Assumptions!$I$6),IF(G20="Year 2",($K20*Assumptions!$H$5)+((1-$K20)*Assumptions!$I$5),IF(G20="Year 3",($K20*Assumptions!$H$4)+((1-$K20)*Assumptions!$I$4),0))),1) -> 0.8 | AU20: =IF(H20= "No",IF(G20="Year 1",($K20*Assumptions!$H$7)+((1-$K20)*Assumptions!$I$7),IF(G20="Year 2",($K20*Assumptions!$H$6)+((1-$K20)*Assumptions!$I$6),IF(G20="Year 3",($K20*Assumptions!$H$5)+((1-$K20)*Assumptions!$I$5),IF(G20="Year 4",($K20*Assumptions!$H$4)+((1-$K20)*Assumptions!$I$4),0)))),1) -> 1 | AV20: =IF(H20= "No",IF(G20="Year 1",($K20*Assumptions!$H$8)+((1-$K20)*Assumptions!$I$8),IF(G20="Year 2",($K20*Assumptions!$H$7)+((1-$K20)*Assumptions!$I$7),IF(G20="Year 3",($K20*Assumptions!$H$6)+((1-$K20)*Assumptions!$I$6),IF(G20="Year 4",($K20*Assumptions!$H$5)+((1-$K20)*Assumptions!$I$5),IF(G20="Year 5",($K20*Assumptions!$H$4)+((1-$K20)*Assumptions!$I$4),0))))),1) -> 1 | AW20: =IF(H20= "No",IF(G20="Year 1",($K20*Assumptions!$H$9)+((1-$K20)*Assumptions!$I$9),IF(G20="Year 2",($K20*Assumptions!$H$8)+((1-$K20)*Assumptions!$I$8),IF(G20="Year 3",($K20*Assumptions!$H$7)+((1-$K20)*Assumptions!$I$7),IF(G20="Year 4",($K20*Assumptions!$H$6)+((1-$K20)*Assumptions!$I$6),IF(G20="Year 5",($K20*Assumptions!$H$5)+((1-$K20)*Assumptions!$I$5),IF(G20="Year 6",($K20*Assumptions!$H$4)+((1-$K20)*Assumptions!$I$4),0)))))),1) -> 1 | AX20: 0 | AY20: 0 | AZ20: 0 | BA20: 0 | BB20: 0 | BC20: 0 | BD20: 0 | BE20: 0 | BF20: 0 | BG20: 0 | BH20: 0 | BI20: 0 | BJ20: 0 | BK20: 0 | BL20: 0 | BM20: 0 | BN20: 0 | BO20: 0 | BP20: 0 | BQ20: 0 | BR20: 0 | BS20: 0 | BT20: 0 | BU20: 0 | BV20: 0 | BW20: 0 | BX20: 0 | BY20: 0 | BZ20: 0 | CA20: 0 | CB20: 0 | CC20: 0 | CD20: 0 | CE20: 0 | CF20: 0 | CG20: 0 | CH20: 0 | CI20: 0 | CJ20: 0 | CK20: 0 | CL20: 0 | CM20: 0 | CN20: 0 | CO20: 0 | CP20: 0 | CQ20: 0 | CR20: 0 | CS20: 0 | CT20: 0 | CU20: 0
G21: Year 1 | H21: No | K21: 1 | T21: 0.03 | U21: 0 | V21: 0 | W21: 0 | X21: 0 | Y21: 0 | Z21: 0 | AA21: 0 | AB21: 0 | AC21: 50th | AD21: 0 | AE21: 0 | AF21: 0 | AG21: 0 | AH21: 0 | AI21: 0 | AJ21: 0 | AK21: 0 | AL21: 0 | AM21: 0 | AN21: 0 | AO21: 0 | AP21: 0 | AQ21: 0 | AR21: =IF(H21= "No",IF($G21="Year 1",($K21*Assumptions!$H$4)+((1-$K21)*Assumptions!$I$4),0),1) -> 0.4 | AS21: =IF(H21= "No",IF($G21="Year 1",($K21*Assumptions!$H$5)+((1-$K21)*Assumptions!$I$5),IF($G21="Year 2",($K21*Assumptions!$H$4)+((1-$K21)*Assumptions!$I$4),0)),1) -> 0.6 | AT21: =IF(H21= "No",IF(G21="Year 1",($K21*Assumptions!$H$6)+((1-$K21)*Assumptions!$I$6),IF(G21="Year 2",($K21*Assumptions!$H$5)+((1-$K21)*Assumptions!$I$5),IF(G21="Year 3",($K21*Assumptions!$H$4)+((1-$K21)*Assumptions!$I$4),0))),1) -> 0.8 | AU21: =IF(H21= "No",IF(G21="Year 1",($K21*Assumptions!$H$7)+((1-$K21)*Assumptions!$I$7),IF(G21="Year 2",($K21*Assumptions!$H$6)+((1-$K21)*Assumptions!$I$6),IF(G21="Year 3",($K21*Assumptions!$H$5)+((1-$K21)*Assumptions!$I$5),IF(G21="Year 4",($K21*Assumptions!$H$4)+((1-$K21)*Assumptions!$I$4),0)))),1) -> 1 | AV21: =IF(H21= "No",IF(G21="Year 1",($K21*Assumptions!$H$8)+((1-$K21)*Assumptions!$I$8),IF(G21="Year 2",($K21*Assumptions!$H$7)+((1-$K21)*Assumptions!$I$7),IF(G21="Year 3",($K21*Assumptions!$H$6)+((1-$K21)*Assumptions!$I$6),IF(G21="Year 4",($K21*Assumptions!$H$5)+((1-$K21)*Assumptions!$I$5),IF(G21="Year 5",($K21*Assumptions!$H$4)+((1-$K21)*Assumptions!$I$4),0))))),1) -> 1 | AW21: =IF(H21= "No",IF(G21="Year 1",($K21*Assumptions!$H$9)+((1-$K21)*Assumptions!$I$9),IF(G21="Year 2",($K21*Assumptions!$H$8)+((1-$K21)*Assumptions!$I$8),IF(G21="Year 3",($K21*Assumptions!$H$7)+((1-$K21)*Assumptions!$I$7),IF(G21="Year 4",($K21*Assumptions!$H$6)+((1-$K21)*Assumptions!$I$6),IF(G21="Year 5",($K21*Assumptions!$H$5)+((1-$K21)*Assumptions!$I$5),IF(G21="Year 6",($K21*Assumptions!$H$4)+((1-$K21)*Assumptions!$I$4),0)))))),1) -> 1 | AX21: 0 | AY21: 0 | AZ21: 0 | BA21: 0 | BB21: 0 | BC21: 0 | BD21: 0 | BE21: 0 | BF21: 0 | BG21: 0 | BH21: 0 | BI21: 0 | BJ21: 0 | BK21: 0 | BL21: 0 | BM21: 0 | BN21: 0 | BO21: 0 | BP21: 0 | BQ21: 0 | BR21: 0 | BS21: 0 | BT21: 0 | BU21: 0 | BV21: 0 | BW21: 0 | BX21: 0 | BY21: 0 | BZ21: 0 | CA21: 0 | CB21: 0 | CC21: 0 | CD21: 0 | CE21: 0 | CF21: 0 | CG21: 0 | CH21: 0 | CI21: 0 | CJ21: 0 | CK21: 0 | CL21: 0 | CM21: 0 | CN21: 0 | CO21: 0 | CP21: 0 | CQ21: 0 | CR21: 0 | CS21: 0 | CT21: 0 | CU21: 0
G22: Year 1 | H22: No | K22: 1 | T22: 0.03 | U22: 0 | V22: 0 | W22: 0 | X22: 0 | Y22: 0 | Z22: 0 | AA22: 0 | AB22: 0 | AC22: 50th | AD22: 0 | AE22: 0 | AF22: 0 | AG22: 0 | AH22: 0 | AI22: 0 | AJ22: 0 | AK22: 0 | AL22: 0 | AM22: 0 | AN22: 0 | AO22: 0 | AP22: 0 | AQ22: 0 | AR22: =IF(H22= "No",IF($G22="Year 1",($K22*Assumptions!$H$4)+((1-$K22)*Assumptions!$I$4),0),1) -> 0.4 | AS22: =IF(H22= "No",IF($G22="Year 1",($K22*Assumptions!$H$5)+((1-$K22)*Assumptions!$I$5),IF($G22="Year 2",($K22*Assumptions!$H$4)+((1-$K22)*Assumptions!$I$4),0)),1) -> 0.6 | AT22: =IF(H22= "No",IF(G22="Year 1",($K22*Assumptions!$H$6)+((1-$K22)*Assumptions!$I$6),IF(G22="Year 2",($K22*Assumptions!$H$5)+((1-$K22)*Assumptions!$I$5),IF(G22="Year 3",($K22*Assumptions!$H$4)+((1-$K22)*Assumptions!$I$4),0))),1) -> 0.8 | AU22: =IF(H22= "No",IF(G22="Year 1",($K22*Assumptions!$H$7)+((1-$K22)*Assumptions!$I$7),IF(G22="Year 2",($K22*Assumptions!$H$6)+((1-$K22)*Assumptions!$I$6),IF(G22="Year 3",($K22*Assumptions!$H$5)+((1-$K22)*Assumptions!$I$5),IF(G22="Year 4",($K22*Assumptions!$H$4)+((1-$K22)*Assumptions!$I$4),0)))),1) -> 1 | AV22: =IF(H22= "No",IF(G22="Year 1",($K22*Assumptions!$H$8)+((1-$K22)*Assumptions!$I$8),IF(G22="Year 2",($K22*Assumptions!$H$7)+((1-$K22)*Assumptions!$I$7),IF(G22="Year 3",($K22*Assumptions!$H$6)+((1-$K22)*Assumptions!$I$6),IF(G22="Year 4",($K22*Assumptions!$H$5)+((1-$K22)*Assumptions!$I$5),IF(G22="Year 5",($K22*Assumptions!$H$4)+((1-$K22)*Assumptions!$I$4),0))))),1) -> 1 | AW22: =IF(H22= "No",IF(G22="Year 1",($K22*Assumptions!$H$9)+((1-$K22)*Assumptions!$I$9),IF(G22="Year 2",($K22*Assumptions!$H$8)+((1-$K22)*Assumptions!$I$8),IF(G22="Year 3",($K22*Assumptions!$H$7)+((1-$K22)*Assumptions!$I$7),IF(G22="Year 4",($K22*Assumptions!$H$6)+((1-$K22)*Assumptions!$I$6),IF(G22="Year 5",($K22*Assumptions!$H$5)+((1-$K22)*Assumptions!$I$5),IF(G22="Year 6",($K22*Assumptions!$H$4)+((1-$K22)*Assumptions!$I$4),0)))))),1) -> 1 | AX22: 0 | AY22: 0 | AZ22: 0 | BA22: 0 | BB22: 0 | BC22: 0 | BD22: 0 | BE22: 0 | BF22: 0 | BG22: 0 | BH22: 0 | BI22: 0 | BJ22: 0 | BK22: 0 | BL22: 0 | BM22: 0 | BN22: 0 | BO22: 0 | BP22: 0 | BQ22: 0 | BR22: 0 | BS22: 0 | BT22: 0 | BU22: 0 | BV22: 0 | BW22: 0 | BX22: 0 | BY22: 0 | BZ22: 0 | CA22: 0 | CB22: 0 | CC22: 0 | CD22: 0 | CE22: 0 | CF22: 0 | CG22: 0 | CH22: 0 | CI22: 0 | CJ22: 0 | CK22: 0 | CL22: 0 | CM22: 0 | CN22: 0 | CO22: 0 | CP22: 0 | CQ22: 0 | CR22: 0 | CS22: 0 | CT22: 0 | CU22: 0
G23: Year 1 | H23: No | K23: 1 | T23: 0.03 | U23: 0 | V23: =IFERROR(VLOOKUP(J23,ratetable,6,0),0) -> 0 | W23: 0 | X23: 0 | Y23: 0 | Z23: 0 | AA23: 0 | AB23: 0 | AC23: 50th | AD23: 0 | AE23: 0 | AF23: 0 | AG23: 0 | AH23: 0 | AI23: 0 | AJ23: 0 | AK23: 0 | AL23: 0 | AM23: 0 | AN23: 0 | AO23: 0 | AP23: 0 | AQ23: 0 | AR23: =IF(H23= "No",IF($G23="Year 1",($K23*Assumptions!$H$4)+((1-$K23)*Assumptions!$I$4),0),1) -> 0.4 | AS23: =IF(H23= "No",IF($G23="Year 1",($K23*Assumptions!$H$5)+((1-$K23)*Assumptions!$I$5),IF($G23="Year 2",($K23*Assumptions!$H$4)+((1-$K23)*Assumptions!$I$4),0)),1) -> 0.6 | AT23: =IF(H23= "No",IF(G23="Year 1",($K23*Assumptions!$H$6)+((1-$K23)*Assumptions!$I$6),IF(G23="Year 2",($K23*Assumptions!$H$5)+((1-$K23)*Assumptions!$I$5),IF(G23="Year 3",($K23*Assumptions!$H$4)+((1-$K23)*Assumptions!$I$4),0))),1) -> 0.8 | AU23: =IF(H23= "No",IF(G23="Year 1",($K23*Assumptions!$H$7)+((1-$K23)*Assumptions!$I$7),IF(G23="Year 2",($K23*Assumptions!$H$6)+((1-$K23)*Assumptions!$I$6),IF(G23="Year 3",($K23*Assumptions!$H$5)+((1-$K23)*Assumptions!$I$5),IF(G23="Year 4",($K23*Assumptions!$H$4)+((1-$K23)*Assumptions!$I$4),0)))),1) -> 1 | AV23: =IF(H23= "No",IF(G23="Year 1",($K23*Assumptions!$H$8)+((1-$K23)*Assumptions!$I$8),IF(G23="Year 2",($K23*Assumptions!$H$7)+((1-$K23)*Assumptions!$I$7),IF(G23="Year 3",($K23*Assumptions!$H$6)+((1-$K23)*Assumptions!$I$6),IF(G23="Year 4",($K23*Assumptions!$H$5)+((1-$K23)*Assumptions!$I$5),IF(G23="Year 5",($K23*Assumptions!$H$4)+((1-$K23)*Assumptions!$I$4),0))))),1) -> 1 | AW23: =IF(H23= "No",IF(G23="Year 1",($K23*Assumptions!$H$9)+((1-$K23)*Assumptions!$I$9),IF(G23="Year 2",($K23*Assumptions!$H$8)+((1-$K23)*Assumptions!$I$8),IF(G23="Year 3",($K23*Assumptions!$H$7)+((1-$K23)*Assumptions!$I$7),IF(G23="Year 4",($K23*Assumptions!$H$6)+((1-$K23)*Assumptions!$I$6),IF(G23="Year 5",($K23*Assumptions!$H$5)+((1-$K23)*Assumptions!$I$5),IF(G23="Year 6",($K23*Assumptions!$H$4)+((1-$K23)*Assumptions!$I$4),0)))))),1) -> 1 | AX23: 0 | AY23: 0 | AZ23: 0 | BA23: 0 | BB23: 0 | BC23: 0 | BD23: 0 | BE23: 0 | BF23: 0 | BG23: 0 | BH23: 0 | BI23: 0 | BJ23: 0 | BK23: 0 | BL23: 0 | BM23: 0 | BN23: 0 | BO23: 0 | BP23: 0 | BQ23: 0 | BR23: 0 | BS23: 0 | BT23: 0 | BU23: 0 | BV23: 0 | BW23: 0 | BX23: 0 | BY23: 0 | BZ23: 0 | CA23: 0 | CB23: 0 | CC23: 0 | CD23: 0 | CE23: 0 | CF23: 0 | CG23: 0 | CH23: 0 | CI23: 0 | CJ23: 0 | CK23: 0 | CL23: 0 | CM23: 0 | CN23: 0 | CO23: 0 | CP23: 0 | CQ23: 0 | CR23: 0 | CS23: 0 | CT23: 0 | CU23: 0
C25: 1 cFTE refers to RVU-generating effort. (Excludes Salary Support)
C26: 2 Clinical Salary Support refers to medical directorships, purchase services, and other clinical leadership support revenues. (Excludes cFTE)
C27: 3 FTE refers to full effort across all missions.

Sheet Support Staff Build
B5: Department Staffing | D5: Year One | H5: Year Two | L5: Year Three | P5: Year Four | T5: Year Five | X5: Year Six
C6: Position | E6: Full FTE | F6: Benefits and | G6: Year One | I6: Full FTE | J6: Benefits and | K6: Year One | M6: Full FTE | N6: Benefits and | O6: Year One | Q6: Full FTE | R6: Benefits and | S6: Year One | U6: Full FTE | V6: Benefits and | W6: Year One | Y6: Full FTE | Z6: Benefits and | AA6: Year One
B7: Type of Position/Name | C7: Description | D7: FTE | E7: Compensation | F7: Tack-On | G7: Total | H7: FTE | I7: Compensation | J7: Tack-On | K7: Total | L7: FTE | M7: Compensation | N7: Tack-On | O7: Total | P7: FTE | Q7: Compensation | R7: Tack-On | S7: Total | T7: FTE | U7: Compensation | V7: Tack-On | W7: Total | X7: FTE | Y7: Compensation | Z7: Tack-On | AA7: Total
B8: M&P Staffing
F9: =IFERROR(E9*(Assumptions!$D$6+Assumptions!$D$8+Assumptions!$D$9),0) -> 0 | G9: =IFERROR(SUM((E9+F9)*D9),0) -> 0 | J9: =IFERROR(I9*(Assumptions!$D$6+Assumptions!$D$8+Assumptions!$D$9),0) -> 0 | K9: =IFERROR(SUM((I9+J9)*H9),0) -> 0 | N9: =IFERROR(M9*(Assumptions!$D$6+Assumptions!$D$8+Assumptions!$D$9),0) -> 0 | O9: =IFERROR(SUM((M9+N9)*L9),0) -> 0 | R9: =IFERROR(Q9*(Assumptions!$D$6+Assumptions!$D$8+Assumptions!$D$9),0) -> 0 | S9: =IFERROR(SUM((Q9+R9)*P9),0) -> 0 | V9: =IFERROR(U9*(Assumptions!$D$6+Assumptions!$D$8+Assumptions!$D$9),0) -> 0 | W9: =IFERROR(SUM((U9+V9)*T9),0) -> 0 | Z9: =IFERROR(Y9*(Assumptions!$D$6+Assumptions!$D$8+Assumptions!$D$9),0) -> 0 | AA9: =IFERROR(SUM((Y9+Z9)*X9),0) -> 0
F10: =IFERROR(E10*(Assumptions!$D$6+Assumptions!$D$8+Assumptions!$D$9),0) -> 0 | G10: =IFERROR(SUM((E10+F10)*D10),0) -> 0 | J10: =IFERROR(I10*(Assumptions!$D$6+Assumptions!$D$8+Assumptions!$D$9),0) -> 0 | K10: =IFERROR(SUM((I10+J10)*H10),0) -> 0 | N10: =IFERROR(M10*(Assumptions!$D$6+Assumptions!$D$8+Assumptions!$D$9),0) -> 0 | O10: =IFERROR(SUM((M10+N10)*L10),0) -> 0 | R10: =IFERROR(Q10*(Assumptions!$D$6+Assumptions!$D$8+Assumptions!$D$9),0) -> 0 | S10: =IFERROR(SUM((Q10+R10)*P10),0) -> 0 | V10: =IFERROR(U10*(Assumptions!$D$6+Assumptions!$D$8+Assumptions!$D$9),0) -> 0 | W10: =IFERROR(SUM((U10+V10)*T10),0) -> 0 | Z10: =IFERROR(Y10*(Assumptions!$D$6+Assumptions!$D$8+Assumptions!$D$9),0) -> 0 | AA10: =IFERROR(SUM((Y10+Z10)*X10),0) -> 0
F11: =IFERROR(E11*(Assumptions!$D$6+Assumptions!$D$8+Assumptions!$D$9),0) -> 0 | G11: 0 | J11: =IFERROR(I11*(Assumptions!$D$6+Assumptions!$D$8+Assumptions!$D$9),0) -> 0 | K11: 0 | N11: =IFERROR(M11*(Assumptions!$D$6+Assumptions!$D$8+Assumptions!$D$9),0) -> 0 | O11: 0 | R11: =IFERROR(Q11*(Assumptions!$D$6+Assumptions!$D$8+Assumptions!$D$9),0) -> 0 | S11: 0 | V11: =IFERROR(U11*(Assumptions!$D$6+Assumptions!$D$8+Assumptions!$D$9),0) -> 0 | W11: 0 | Z11: =IFERROR(Y11*(Assumptions!$D$6+Assumptions!$D$8+Assumptions!$D$9),0) -> 0 | AA11: 0
F12: =IFERROR(E12*(Assumptions!$D$6+Assumptions!$D$8+Assumptions!$D$9),0) -> 0 | G12: 0 | J12: =IFERROR(I12*(Assumptions!$D$6+Assumptions!$D$8+Assumptions!$D$9),0) -> 0 | K12: 0 | N12: =IFERROR(M12*(Assumptions!$D$6+Assumptions!$D$8+Assumptions!$D$9),0) -> 0 | O12: 0 | R12: =IFERROR(Q12*(Assumptions!$D$6+Assumptions!$D$8+Assumptions!$D$9),0) -> 0 | S12: 0 | V12: =IFERROR(U12*(Assumptions!$D$6+Assumptions!$D$8+Assumptions!$D$9),0) -> 0 | W12: 0 | Z12: =IFERROR(Y12*(Assumptions!$D$6+Assumptions!$D$8+Assumptions!$D$9),0) -> 0 | AA12: 0
F13: =IFERROR(E13*(Assumptions!$D$6+Assumptions!$D$8+Assumptions!$D$9),0) -> 0 | G13: 0 | J13: =IFERROR(I13*(Assumptions!$D$6+Assumptions!$D$8+Assumptions!$D$9),0) -> 0 | K13: 0 | N13: =IFERROR(M13*(Assumptions!$D$6+Assumptions!$D$8+Assumptions!$D$9),0) -> 0 | O13: 0 | R13: =IFERROR(Q13*(Assumptions!$D$6+Assumptions!$D$8+Assumptions!$D$9),0) -> 0 | S13: 0 | V13: =IFERROR(U13*(Assumptions!$D$6+Assumptions!$D$8+Assumptions!$D$9),0) -> 0 | W13: 0 | Z13: =IFERROR(Y13*(Assumptions!$D$6+Assumptions!$D$8+Assumptions!$D$9),0) -> 0 | AA13: 0
F14: =IFERROR(E14*(Assumptions!$D$6+Assumptions!$D$8+Assumptions!$D$9),0) -> 0 | G14: 0 | J14: =IFERROR(I14*(Assumptions!$D$6+Assumptions!$D$8+Assumptions!$D$9),0) -> 0 | K14: 0 | N14: =IFERROR(M14*(Assumptions!$D$6+Assumptions!$D$8+Assumptions!$D$9),0) -> 0 | O14: 0 | R14: =IFERROR(Q14*(Assumptions!$D$6+Assumptions!$D$8+Assumptions!$D$9),0) -> 0 | S14: 0 | V14: =IFERROR(U14*(Assumptions!$D$6+Assumptions!$D$8+Assumptions!$D$9),0) -> 0 | W14: 0 | Z14: =IFERROR(Y14*(Assumptions!$D$6+Assumptions!$D$8+Assumptions!$D$9),0) -> 0 | AA14: 0
B15: Total M&P Staffing | D15: =SUM(D9:D14) -> 0 | E15: =SUM(E9:E14) -> 0 | F15: 0 | G15: 0 | H15: =SUM(H9:H14) -> 0 | I15: =SUM(I9:I14) -> 0 | J15: 0 | K15: 0 | L15: =SUM(L9:L14) -> 0 | M15: =SUM(M9:M14) -> 0 | N15: 0 | O15: 0 | P15: =SUM(P9:P14) -> 0 | Q15: =SUM(Q9:Q14) -> 0 | R15: 0 | S15: 0 | T15: =SUM(T9:T14) -> 0 | U15: =SUM(U9:U14) -> 0 | V15: 0 | W15: 0 | X15: =SUM(X9:X14) -> 0 | Y15: =SUM(Y9:Y14) -> 0 | Z15: 0 | AA15: 0
B16: C&T Staffing
F17: =IFERROR(E17*(Assumptions!$D$10),0) -> 0 | G17: =IFERROR(SUM((E17+F17)*D17),0) -> 0 | J17: =IFERROR(I17*(Assumptions!$D$10),0) -> 0 | K17: =IFERROR(SUM((I17+J17)*H17),0) -> 0 | N17: =IFERROR(M17*(Assumptions!$D$10),0) -> 0 | O17: =IFERROR(SUM((M17+N17)*L17),0) -> 0 | R17: =IFERROR(Q17*(Assumptions!$D$10),0) -> 0 | S17: =IFERROR(SUM((Q17+R17)*P17),0) -> 0 | V17: =IFERROR(U17*(Assumptions!$D$10),0) -> 0 | W17: =IFERROR(SUM((U17+V17)*T17),0) -> 0 | Z17: =IFERROR(Y17*(Assumptions!$D$10),0) -> 0 | AA17: =IFERROR(SUM((Y17+Z17)*X17),0) -> 0
F18: =IFERROR(E18*(Assumptions!$D$10),0) -> 0 | G18: =IFERROR(SUM((E18+F18)*D18),0) -> 0 | J18: =IFERROR(I18*(Assumptions!$D$10),0) -> 0 | K18: =IFERROR(SUM((I18+J18)*H18),0) -> 0 | N18: =IFERROR(M18*(Assumptions!$D$10),0) -> 0 | O18: =IFERROR(SUM((M18+N18)*L18),0) -> 0 | R18: =IFERROR(Q18*(Assumptions!$D$10),0) -> 0 | S18: =IFERROR(SUM((Q18+R18)*P18),0) -> 0 | V18: =IFERROR(U18*(Assumptions!$D$10),0) -> 0 | W18: =IFERROR(SUM((U18+V18)*T18),0) -> 0 | Z18: =IFERROR(Y18*(Assumptions!$D$10),0) -> 0 | AA18: =IFERROR(SUM((Y18+Z18)*X18),0) -> 0
F19: =IFERROR(E19*(Assumptions!$D$10),0) -> 0 | G19: 0 | J19: =IFERROR(I19*(Assumptions!$D$10),0) -> 0 | K19: 0 | N19: =IFERROR(M19*(Assumptions!$D$10),0) -> 0 | O19: 0 | R19: =IFERROR(Q19*(Assumptions!$D$10),0) -> 0 | S19: 0 | V19: =IFERROR(U19*(Assumptions!$D$10),0) -> 0 | W19: 0 | Z19: =IFERROR(Y19*(Assumptions!$D$10),0) -> 0 | AA19: 0
F20: =IFERROR(E20*(Assumptions!$D$10),0) -> 0 | G20: 0 | J20: =IFERROR(I20*(Assumptions!$D$10),0) -> 0 | K20: 0 | N20: =IFERROR(M20*(Assumptions!$D$10),0) -> 0 | O20: 0 | R20: =IFERROR(Q20*(Assumptions!$D$10),0) -> 0 | S20: 0 | V20: =IFERROR(U20*(Assumptions!$D$10),0) -> 0 | W20: 0 | Z20: =IFERROR(Y20*(Assumptions!$D$10),0) -> 0 | AA20: 0
F21: =IFERROR(E21*(Assumptions!$D$10),0) -> 0 | G21: 0 | J21: =IFERROR(I21*(Assumptions!$D$10),0) -> 0 | K21: 0 | N21: =IFERROR(M21*(Assumptions!$D$10),0) -> 0 | O21: 0 | R21: =IFERROR(Q21*(Assumptions!$D$10),0) -> 0 | S21: 0 | V21: =IFERROR(U21*(Assumptions!$D$10),0) -> 0 | W21: 0 | Z21: =IFERROR(Y21*(Assumptions!$D$10),0) -> 0 | AA21: 0
B22: Total C&T Staffing | D22: =SUM(D17:D21) -> 0 | E22: =SUM(E17:E21) -> 0 | F22: 0 | G22: 0 | H22: =SUM(H17:H21) -> 0 | I22: =SUM(I17:I21) -> 0 | J22: 0 | K22: 0 | L22: =SUM(L17:L21) -> 0 | M22: =SUM(M17:M21) -> 0 | N22: 0 | O22: 0 | P22: =SUM(P17:P21) -> 0 | Q22: =SUM(Q17:Q21) -> 0 | R22: 0 | S22: 0 | T22: =SUM(T17:T21) -> 0 | U22: =SUM(U17:U21) -> 0 | V22: 0 | W22: 0 | X22: =SUM(X17:X21) -> 0 | Y22: =SUM(Y17:Y21) -> 0 | Z22: 0 | AA22: 0
B23: Grand Total Staffing | D23: =D22+D15 -> 0 | E23: =E22+E15 -> 0 | F23: =F22+F15 -> 0 | G23: 0 | H23: =H22+H15 -> 0 | I23: =I22+I15 -> 0 | J23: =J22+J15 -> 0 | K23: =K22+K15 -> 0 | L23: =L22+L15 -> 0 | M23: =M22+M15 -> 0 | N23: =N22+N15 -> 0 | O23: 0 | P23: =P22+P15 -> 0 | Q23: =Q22+Q15 -> 0 | R23: =R22+R15 -> 0 | S23: 0 | T23: =T22+T15 -> 0 | U23: =U22+U15 -> 0 | V23: =V22+V15 -> 0 | W23: 0 | X23: =X22+X15 -> 0 | Y23: =Y22+Y15 -> 0 | Z23: =Z22+Z15 -> 0 | AA23: 0
B25: Yale Medicine Staffing | D25: Year One | H25: Year Two | L25: Year Three | P25: Year Four | T25: Year Five | X25: Year Six
C26: Position | E26: Full FTE | F26: Benefits and | G26: Year One | I26: Full FTE | J26: Benefits and | K26: Year One | M26: Full FTE | N26: Benefits and | O26: Year One | Q26: Full FTE | R26: Benefits and | S26: Year One | U26: Full FTE | V26: Benefits and | W26: Year One | Y26: Full FTE | Z26: Benefits and | AA26: Year One
B27: Type of Position/Name | C27: Description | D27: FTE | E27: Compensation | F27: Tack-On | G27: Total | H27: FTE | I27: Compensation | J27: Tack-On | K27: Total | L27: FTE | M27: Compensation | N27: Tack-On | O27: Total | P27: FTE | Q27: Compensation | R27: Tack-On | S27: Total | T27: FTE | U27: Compensation | V27: Tack-On | W27: Total | X27: FTE | Y27: Compensation | Z27: Tack-On | AA27: Total
B28: M&P Staffing
F29: =IFERROR(E29*(Assumptions!$D$6+Assumptions!$D$8+Assumptions!$D$9),0) -> 0 | G29: =IFERROR(SUM((E29+F29)*D29),0) -> 0 | J29: =IFERROR(I29*(Assumptions!$D$6+Assumptions!$D$8+Assumptions!$D$9),0) -> 0 | K29: =IFERROR(SUM((I29+J29)*H29),0) -> 0 | N29: =IFERROR(M29*(Assumptions!$D$6+Assumptions!$D$8+Assumptions!$D$9),0) -> 0 | O29: =IFERROR(SUM((M29+N29)*L29),0) -> 0 | R29: =IFERROR(Q29*(Assumptions!$D$6+Assumptions!$D$8+Assumptions!$D$9),0) -> 0 | S29: =IFERROR(SUM((Q29+R29)*P29),0) -> 0 | V29: =IFERROR(U29*(Assumptions!$D$6+Assumptions!$D$8+Assumptions!$D$9),0) -> 0 | W29: =IFERROR(SUM((U29+V29)*T29),0) -> 0 | Z29: =IFERROR(Y29*(Assumptions!$D$6+Assumptions!$D$8+Assumptions!$D$9),0) -> 0 | AA29: =IFERROR(SUM((Y29+Z29)*X29),0) -> 0
F30: =IFERROR(E30*(Assumptions!$D$6+Assumptions!$D$8+Assumptions!$D$9),0) -> 0 | G30: =IFERROR(SUM((E30+F30)*D30),0) -> 0 | J30: =IFERROR(I30*(Assumptions!$D$6+Assumptions!$D$8+Assumptions!$D$9),0) -> 0 | K30: =IFERROR(SUM((I30+J30)*H30),0) -> 0 | N30: =IFERROR(M30*(Assumptions!$D$6+Assumptions!$D$8+Assumptions!$D$9),0) -> 0 | O30: =IFERROR(SUM((M30+N30)*L30),0) -> 0 | R30: =IFERROR(Q30*(Assumptions!$D$6+Assumptions!$D$8+Assumptions!$D$9),0) -> 0 | S30: =IFERROR(SUM((Q30+R30)*P30),0) -> 0 | V30: =IFERROR(U30*(Assumptions!$D$6+Assumptions!$D$8+Assumptions!$D$9),0) -> 0 | W30: =IFERROR(SUM((U30+V30)*T30),0) -> 0 | Z30: =IFERROR(Y30*(Assumptions!$D$6+Assumptions!$D$8+Assumptions!$D$9),0) -> 0 | AA30: =IFERROR(SUM((Y30+Z30)*X30),0) -> 0
F31: =IFERROR(E31*(Assumptions!$D$6+Assumptions!$D$8+Assumptions!$D$9),0) -> 0 | G31: 0 | J31: =IFERROR(I31*(Assumptions!$D$6+Assumptions!$D$8+Assumptions!$D$9),0) -> 0 | K31: 0 | N31: =IFERROR(M31*(Assumptions!$D$6+Assumptions!$D$8+Assumptions!$D$9),0) -> 0 | O31: 0 | R31: =IFERROR(Q31*(Assumptions!$D$6+Assumptions!$D$8+Assumptions!$D$9),0) -> 0 | S31: 0 | V31: =IFERROR(U31*(Assumptions!$D$6+Assumptions!$D$8+Assumptions!$D$9),0) -> 0 | W31: 0 | Z31: =IFERROR(Y31*(Assumptions!$D$6+Assumptions!$D$8+Assumptions!$D$9),0) -> 0 | AA31: 0
F32: =IFERROR(E32*(Assumptions!$D$6+Assumptions!$D$8+Assumptions!$D$9),0) -> 0 | G32: 0 | J32: =IFERROR(I32*(Assumptions!$D$6+Assumptions!$D$8+Assumptions!$D$9),0) -> 0 | K32: 0 | N32: =IFERROR(M32*(Assumptions!$D$6+Assumptions!$D$8+Assumptions!$D$9),0) -> 0 | O32: 0 | R32: =IFERROR(Q32*(Assumptions!$D$6+Assumptions!$D$8+Assumptions!$D$9),0) -> 0 | S32: 0 | V32: =IFERROR(U32*(Assumptions!$D$6+Assumptions!$D$8+Assumptions!$D$9),0) -> 0 | W32: 0 | Z32: =IFERROR(Y32*(Assumptions!$D$6+Assumptions!$D$8+Assumptions!$D$9),0) -> 0 | AA32: 0
F33: =IFERROR(E33*(Assumptions!$D$6+Assumptions!$D$8+Assumptions!$D$9),0) -> 0 | G33: 0 | J33: =IFERROR(I33*(Assumptions!$D$6+Assumptions!$D$8+Assumptions!$D$9),0) -> 0 | K33: 0 | N33: =IFERROR(M33*(Assumptions!$D$6+Assumptions!$D$8+Assumptions!$D$9),0) -> 0 | O33: 0 | R33: =IFERROR(Q33*(Assumptions!$D$6+Assumptions!$D$8+Assumptions!$D$9),0) -> 0 | S33: 0 | V33: =IFERROR(U33*(Assumptions!$D$6+Assumptions!$D$8+Assumptions!$D$9),0) -> 0 | W33: 0 | Z33: =IFERROR(Y33*(Assumptions!$D$6+Assumptions!$D$8+Assumptions!$D$9),0) -> 0 | AA33: 0
F34: =IFERROR(E34*(Assumptions!$D$6+Assumptions!$D$8+Assumptions!$D$9),0) -> 0 | G34: 0 | J34: =IFERROR(I34*(Assumptions!$D$6+Assumptions!$D$8+Assumptions!$D$9),0) -> 0 | K34: 0 | N34: =IFERROR(M34*(Assumptions!$D$6+Assumptions!$D$8+Assumptions!$D$9),0) -> 0 | O34: 0 | R34: =IFERROR(Q34*(Assumptions!$D$6+Assumptions!$D$8+Assumptions!$D$9),0) -> 0 | S34: 0 | V34: =IFERROR(U34*(Assumptions!$D$6+Assumptions!$D$8+Assumptions!$D$9),0) -> 0 | W34: 0 | Z34: =IFERROR(Y34*(Assumptions!$D$6+Assumptions!$D$8+Assumptions!$D$9),0) -> 0 | AA34: 0
B35: Total M&P Staffing | D35: =SUM(D29:D34) -> 0 | E35: =SUM(E29:E34) -> 0 | F35: 0 | G35: 0 | H35: =SUM(H29:H34) -> 0 | I35: =SUM(I29:I34) -> 0 | J35: 0 | K35: 0 | L35: =SUM(L29:L34) -> 0 | M35: =SUM(M29:M34) -> 0 | N35: 0 | O35: 0 | P35: =SUM(P29:P34) -> 0 | Q35: =SUM(Q29:Q34) -> 0 | R35: 0 | S35: 0 | T35: =SUM(T29:T34) -> 0 | U35: =SUM(U29:U34) -> 0 | V35: 0 | W35: 0 | X35: =SUM(X29:X34) -> 0 | Y35: =SUM(Y29:Y34) -> 0 | Z35: 0 | AA35: 0
B36: C&T Staffing
F37: =IFERROR(E37*(Assumptions!$D$10),0) -> 0 | G37: =IFERROR(SUM((E37+F37)*D37),0) -> 0 | J37: =IFERROR(I37*(Assumptions!$D$10),0) -> 0 | K37: =IFERROR(SUM((I37+J37)*H37),0) -> 0 | N37: =IFERROR(M37*(Assumptions!$D$10),0) -> 0 | O37: =IFERROR(SUM((M37+N37)*L37),0) -> 0 | R37: =IFERROR(Q37*(Assumptions!$D$10),0) -> 0 | S37: =IFERROR(SUM((Q37+R37)*P37),0) -> 0 | V37: =IFERROR(U37*(Assumptions!$D$10),0) -> 0 | W37: =IFERROR(SUM((U37+V37)*T37),0) -> 0 | Z37: =IFERROR(Y37*(Assumptions!$D$10),0) -> 0 | AA37: =IFERROR(SUM((Y37+Z37)*X37),0) -> 0
F38: =IFERROR(E38*(Assumptions!$D$10),0) -> 0 | G38: =IFERROR(SUM((E38+F38)*D38),0) -> 0 | J38: =IFERROR(I38*(Assumptions!$D$10),0) -> 0 | K38: =IFERROR(SUM((I38+J38)*H38),0) -> 0 | N38: =IFERROR(M38*(Assumptions!$D$10),0) -> 0 | O38: =IFERROR(SUM((M38+N38)*L38),0) -> 0 | R38: =IFERROR(Q38*(Assumptions!$D$10),0) -> 0 | S38: =IFERROR(SUM((Q38+R38)*P38),0) -> 0 | V38: =IFERROR(U38*(Assumptions!$D$10),0) -> 0 | W38: =IFERROR(SUM((U38+V38)*T38),0) -> 0 | Z38: =IFERROR(Y38*(Assumptions!$D$10),0) -> 0 | AA38: =IFERROR(SUM((Y38+Z38)*X38),0) -> 0
F39: =IFERROR(E39*(Assumptions!$D$10),0) -> 0 | G39: 0 | J39: =IFERROR(I39*(Assumptions!$D$10),0) -> 0 | K39: 0 | N39: =IFERROR(M39*(Assumptions!$D$10),0) -> 0 | O39: 0 | R39: =IFERROR(Q39*(Assumptions!$D$10),0) -> 0 | S39: 0 | V39: =IFERROR(U39*(Assumptions!$D$10),0) -> 0 | W39: 0 | Z39: =IFERROR(Y39*(Assumptions!$D$10),0) -> 0 | AA39: 0
F40: =IFERROR(E40*(Assumptions!$D$10),0) -> 0 | G40: 0 | J40: =IFERROR(I40*(Assumptions!$D$10),0) -> 0 | K40: 0 | N40: =IFERROR(M40*(Assumptions!$D$10),0) -> 0 | O40: 0 | R40: =IFERROR(Q40*(Assumptions!$D$10),0) -> 0 | S40: 0 | V40: =IFERROR(U40*(Assumptions!$D$10),0) -> 0 | W40: 0 | Z40: =IFERROR(Y40*(Assumptions!$D$10),0) -> 0 | AA40: 0
F41: =IFERROR(E41*(Assumptions!$D$10),0) -> 0 | G41: 0 | J41: =IFERROR(I41*(Assumptions!$D$10),0) -> 0 | K41: 0 | N41: =IFERROR(M41*(Assumptions!$D$10),0) -> 0 | O41: 0 | R41: =IFERROR(Q41*(Assumptions!$D$10),0) -> 0 | S41: 0 | V41: =IFERROR(U41*(Assumptions!$D$10),0) -> 0 | W41: 0 | Z41: =IFERROR(Y41*(Assumptions!$D$10),0) -> 0 | AA41: 0
B42: Total C&T Staffing | D42: =SUM(D37:D41) -> 0 | E42: =SUM(E37:E41) -> 0 | F42: 0 | G42: 0 | H42: =SUM(H37:H41) -> 0 | I42: =SUM(I37:I41) -> 0 | J42: 0 | K42: 0 | L42: =SUM(L37:L41) -> 0 | M42: =SUM(M37:M41) -> 0 | N42: 0 | O42: 0 | P42: =SUM(P37:P41) -> 0 | Q42: =SUM(Q37:Q41) -> 0 | R42: 0 | S42: 0 | T42: =SUM(T37:T41) -> 0 | U42: =SUM(U37:U41) -> 0 | V42: 0 | W42: 0 | X42: =SUM(X37:X41) -> 0 | Y42: =SUM(Y37:Y41) -> 0 | Z42: 0 | AA42: 0
B43: Grand Total Staffing | D43: =D42+D35 -> 0 | E43: =E42+E35 -> 0 | F43: =F42+F35 -> 0 | G43: 0 | H43: =H42+H35 -> 0 | I43: =I42+I35 -> 0 | J43: =J42+J35 -> 0 | K43: 0 | L43: =L42+L35 -> 0 | M43: =M42+M35 -> 0 | N43: =N42+N35 -> 0 | O43: 0 | P43: =P42+P35 -> 0 | Q43: =Q42+Q35 -> 0 | R43: =R42+R35 -> 0 | S43: 0 | T43: =T42+T35 -> 0 | U43: =U42+U35 -> 0 | V43: =V42+V35 -> 0 | W43: 0 | X43: =X42+X35 -> 0 | Y43: =Y42+Y35 -> 0 | Z43: =Z42+Z35 -> 0 | AA43: 0

Sheet Non-Salary Build (Clinical)
B5: Non-Salary Build Plan
C9: Year One | D9: Year Two | E9: Year Three | F9: Year Four | G9: Year Five | H9: Year Six | I9: Cumulative | K9: Non-Salary
B10: Type of Position/Name | C10: Total | D10: Total | E10: Total | F10: Total | G10: Total | H10: Total | I10: Costs | K10: Notes
B11: Department Expenses
B12: ITS | I12: =SUM(C12:H12) -> 0
B13: Telcom | I13: =SUM(C13:H13) -> 0
B14: Computers | I14: =SUM(C14:H14) -> 0
B15: Office/General Supplies | I15: 0
B16: Travel | I16: 0
B17: Uniforms | I17: 0
B18: Insert as necessary | I18: 0
I19: 0
I20: 0
I21: =SUM(C21:H21) -> 0
B22: Total Department Expenses | C22: =SUM(C12:C21) -> 0 | D22: =SUM(D12:D21) -> 0 | E22: =SUM(E12:E21) -> 0 | F22: =SUM(F12:F21) -> 0 | G22: 0 | H22: 0 | I22: =SUM(C22:H22) -> 0
C24: Year One | D24: Year Two | E24: Year Three | F24: Year Four | G24: Year Five | H24: Year Six | I24: Cumulative | K24: Non-Salary
B25: Type of Position/Name | C25: Total | D25: Total | E25: Total | F25: Total | G25: Total | H25: Total | I25: Costs | K25: Notes
B26: Yale Medicine Expenses
B27: Malpractice | I27: =SUM(C27:H27) -> 0 | L27: =IF(#REF!>0,(#REF!/#REF!)*#REF!," ") ->  | M27: =IF(#REF!>0,(#REF!/#REF!)*#REF!," ") -> 
B28: Medical Practice Management | I28: 0
B29: Medical Supplies & Services | I29: 0 | L29: =IF(#REF!>0,(#REF!/#REF!)*#REF!," ") ->  | M29: =IF(#REF!>0,(#REF!/#REF!)*#REF!," ") -> 
B30: Pharmaceuticals | I30: 0
B31: Space | I31: 0 | L31: =IF(#REF!>0,(#REF!/#REF!)*#REF!," ") ->  | M31: =IF(#REF!>0,(#REF!/#REF!)*#REF!," ") -> 
B32: YNHH APPs | I32: 0 | L32: =IF(#REF!>0,(#REF!/#REF!)*#REF!," ") ->  | M32: =IF(#REF!>0,(#REF!/#REF!)*#REF!," ") -> 
B33: Insert as necessary | I33: =SUM(C33:H33) -> 0 | L33: =IF(#REF!>0,(#REF!/#REF!)*#REF!," ") ->  | M33: =IF(#REF!>0,(#REF!/#REF!)*#REF!," ") -> 
I34: 0
I35: 0
I36: =SUM(C36:H36) -> 0
B37: Total Yale Medicine Expenses | C37: =SUM(C27:C36) -> 0 | D37: 0 | E37: 0 | F37: 0 | G37: 0 | H37: 0 | I37: 0 | L37: =SUM(L27:L33) ->  | M37: =SUM(M27:M33) -> 

Sheet Research Plan
B1: Research Mission Business Plan
C3: Year 1 | K3: Year 2 | S3: Year 3
C4: Grants & Contracts | D4: Gifts/ Endowment | E4: Dept-Funded (YD) | F4: Dean-Funded (APS) | G4: VA | H4: Other (please specify) | I4: Total | K4: Grants & Contracts | L4: Gifts/ Endowment | M4: Dept-Funded (YD) | N4: Dean-Funded (APS) | O4: VA | P4: Other (please specify) | Q4: Total | S4: Grants & Contracts | T4: Gifts/ Endowment | U4: Dept-Funded (YD) | V4: Dean-Funded (APS) | W4: VA | X4: Other (please specify) | Y4: Total | AA4: Grand Total
B5: Revenue:
B6: Grant Directs | C6: 0 | D6: 0 | E6: 0 | F6: 0 | G6: 0 | H6: 0 | I6: =SUM(C6:H6) -> 0 | K6: 0 | L6: 0 | M6: 0 | N6: 0 | O6: 0 | P6: 0 | Q6: =SUM(K6:P6) -> 0 | S6: 0 | T6: 0 | U6: 0 | V6: 0 | W6: 0 | X6: 0 | Y6: =SUM(S6:X6) -> 0 | AA6: =I6+Q6+Y6 -> 0
B7: Grant Indirects | C7: 0 | D7: 0 | E7: 0 | F7: 0 | G7: 0 | H7: 0 | I7: =SUM(C7:H7) -> 0 | K7: 0 | L7: 0 | M7: 0 | N7: 0 | O7: 0 | P7: 0 | Q7: =SUM(K7:P7) -> 0 | S7: 0 | T7: 0 | U7: 0 | V7: 0 | W7: 0 | X7: 0 | Y7: =SUM(S7:X7) -> 0 | AA7: =I7+Q7+Y7 -> 0
A8: =Assumptions!D22 -> 0.2592592593 | B8: Clinical Drug Trials | C8: 0 | D8: 0 | E8: 0 | F8: 0 | G8: 0 | H8: 0 | I8: 0 | K8: 0 | L8: 0 | M8: 0 | N8: 0 | O8: 0 | P8: 0 | Q8: 0 | S8: 0 | T8: 0 | U8: 0 | V8: 0 | W8: 0 | X8: 0 | Y8: 0 | AA8: =I8+Q8+Y8 -> 0
A9: 0.12 | B9: Spendable Gifts | C9: 0 | D9: 0 | E9: 0 | F9: 0 | G9: 0 | H9: 0 | I9: 0 | K9: 0 | L9: 0 | M9: 0 | N9: 0 | O9: 0 | P9: 0 | Q9: 0 | S9: 0 | T9: 0 | U9: 0 | V9: 0 | W9: 0 | X9: 0 | Y9: 0 | AA9: 0
B10: Endowment Income | C10: 0 | D10: 0 | E10: 0 | F10: 0 | G10: 0 | H10: 0 | I10: 0 | K10: 0 | L10: 0 | M10: 0 | N10: 0 | O10: 0 | P10: 0 | Q10: 0 | S10: 0 | T10: 0 | U10: 0 | V10: 0 | W10: 0 | X10: 0 | Y10: 0 | AA10: 0
B11: VA Funding | C11: 0 | D11: 0 | E11: 0 | F11: 0 | G11: 0 | H11: 0 | I11: 0 | K11: 0 | L11: 0 | M11: 0 | N11: 0 | O11: 0 | P11: 0 | Q11: 0 | S11: 0 | T11: 0 | U11: 0 | V11: 0 | W11: 0 | X11: 0 | Y11: 0 | AA11: 0
B12: YNHHS and Other Clinical Contracts | C12: 0 | D12: 0 | E12: 0 | F12: 0 | G12: 0 | H12: 0 | I12: 0 | K12: 0 | L12: 0 | M12: 0 | N12: 0 | O12: 0 | P12: 0 | Q12: 0 | S12: 0 | T12: 0 | U12: 0 | V12: 0 | W12: 0 | X12: 0 | Y12: 0 | AA12: 0
B13: Academic Program Support (APS) | C13: 0 | D13: 0 | E13: 0 | F13: 0 | G13: 0 | H13: 0 | I13: 0 | K13: 0 | L13: 0 | M13: 0 | N13: 0 | O13: 0 | P13: 0 | Q13: 0 | S13: 0 | T13: 0 | U13: 0 | V13: 0 | W13: 0 | X13: 0 | Y13: 0 | AA13: 0
B14: Other Revenue (please specify) | C14: 0 | D14: 0 | E14: 0 | F14: 0 | G14: 0 | H14: 0 | I14: 0 | K14: 0 | L14: 0 | M14: 0 | N14: 0 | O14: 0 | P14: 0 | Q14: 0 | S14: 0 | T14: 0 | U14: 0 | V14: 0 | W14: 0 | X14: 0 | Y14: 0 | AA14: 0
B15: Revenue Grand Total | C15: =SUM(C6:C14) -> 0 | D15: =SUM(D6:D14) -> 0 | E15: 0 | F15: 0 | G15: 0 | H15: 0 | I15: =SUM(C15:H15) -> 0 | K15: =SUM(K6:K14) -> 0 | L15: =SUM(L6:L14) -> 0 | M15: 0 | N15: 0 | O15: 0 | P15: 0 | Q15: 0 | S15: =SUM(S6:S14) -> 0 | T15: =SUM(T6:T14) -> 0 | U15: 0 | V15: 0 | W15: 0 | X15: 0 | Y15: 0 | AA15: 0
B17: Expenses:
B18: Faculty Salary: direct charge | C18: 0 | D18: 0 | E18: 0 | F18: 0 | G18: 0 | H18: 0 | I18: =SUM(C18:H18) -> 0 | K18: 0 | L18: 0 | M18: 0 | N18: 0 | O18: 0 | P18: 0 | Q18: =SUM(K18:P18) -> 0 | S18: 0 | T18: 0 | U18: 0 | V18: 0 | W18: 0 | X18: 0 | Y18: =SUM(S18:X18) -> 0 | AA18: =I18+Q18+Y18 -> 0
A19: DHHS/NIH Cap | B19: Faculty Salary: cost share | C19: n/a | D19: 0 | E19: 0 | F19: 0 | G19: 0 | H19: 0 | I19: 0 | K19: n/a | L19: 0 | M19: 0 | N19: 0 | O19: 0 | P19: 0 | Q19: 0 | S19: n/a | T19: 0 | U19: 0 | V19: 0 | W19: 0 | X19: 0 | Y19: 0 | AA19: 0
B20: Faculty Fringe rate | C20: =Assumptions!$D$29 -> 0.306 | D20: =Assumptions!$D$6 -> 0.332 | E20: =Assumptions!$D$6 -> 0.332 | F20: =Assumptions!$D$6 -> 0.332 | G20: =Assumptions!$D$28 -> 0.307 | H20: =Assumptions!$D$6 -> 0.332 | K20: =Assumptions!$D$29 -> 0.306 | L20: =Assumptions!$D$30 -> 0.332 | M20: =Assumptions!$D$30 -> 0.332 | N20: =Assumptions!$D$30 -> 0.332 | O20: =Assumptions!$D$29 -> 0.306 | P20: =Assumptions!$D$30 -> 0.332 | S20: =Assumptions!$D$29 -> 0.306 | T20: =Assumptions!$D$30 -> 0.332 | U20: =Assumptions!$D$30 -> 0.332 | V20: =Assumptions!$D$30 -> 0.332 | W20: =Assumptions!$D$29 -> 0.306 | X20: =Assumptions!$D$30 -> 0.332
B21: Faculty Fringe $ | C21: =C18*C20 -> 0 | D21: =(D18+D19)*D20 -> 0 | E21: 0 | F21: 0 | G21: 0 | H21: 0 | I21: 0 | K21: =K18*K20 -> 0 | L21: =(L18+L19)*L20 -> 0 | M21: 0 | N21: 0 | O21: 0 | P21: 0 | Q21: 0 | S21: =S18*S20 -> 0 | T21: =(T18+T19)*T20 -> 0 | U21: 0 | V21: 0 | W21: 0 | X21: 0 | Y21: 0 | AA21: =I21+Q21+Y21 -> 0
B22: Total Faculty Cost | C22: =C18+C21 -> 0 | D22: =D18+D19+D21 -> 0 | E22: 0 | F22: 0 | G22: 0 | H22: 0 | I22: 0 | K22: =K18+K21 -> 0 | L22: =L18+L19+L21 -> 0 | M22: 0 | N22: 0 | O22: 0 | P22: 0 | Q22: 0 | S22: =S18+S21 -> 0 | T22: =T18+T19+T21 -> 0 | U22: 0 | V22: 0 | W22: 0 | X22: 0 | Y22: 0 | AA22: 0
B24: Postdoc/Staff Salary | C24: 0 | D24: 0 | E24: 0 | F24: 0 | G24: 0 | H24: 0 | I24: =SUM(C24:H24) -> 0 | K24: 0 | L24: 0 | M24: 0 | N24: 0 | O24: 0 | P24: 0 | Q24: =SUM(K24:P24) -> 0 | S24: 0 | T24: 0 | U24: 0 | V24: 0 | W24: 0 | X24: 0 | Y24: =SUM(S24:X24) -> 0 | AA24: =I24+Q24+Y24 -> 0
B25: Postdoc/Staff Salary - Fringe | C25: 0 | D25: 0 | E25: 0 | F25: 0 | G25: 0 | H25: 0 | I25: 0 | K25: 0 | L25: 0 | M25: 0 | N25: 0 | O25: 0 | P25: 0 | Q25: =SUM(K25:P25) -> 0 | S25: 0 | T25: 0 | U25: 0 | V25: 0 | W25: 0 | X25: 0 | Y25: 0 | AA25: 0
B26: Non-Salary Expenses | C26: 0 | D26: 0 | E26: 0 | F26: 0 | G26: 0 | H26: 0 | I26: 0 | K26: 0 | L26: 0 | M26: 0 | N26: 0 | O26: 0 | P26: 0 | Q26: 0 | S26: 0 | T26: 0 | U26: 0 | V26: 0 | W26: 0 | X26: 0 | Y26: 0 | AA26: 0
B27: Equipment | C27: 0 | D27: 0 | E27: 0 | F27: 0 | G27: 0 | H27: 0 | I27: 0 | K27: 0 | L27: 0 | M27: 0 | N27: 0 | O27: 0 | P27: 0 | Q27: 0 | S27: 0 | T27: 0 | U27: 0 | V27: 0 | W27: 0 | X27: 0 | Y27: 0 | AA27: 0
A28: =A8 -> 0.2592592593 | B28: Clinical Trial Assessment | C28: =$A8*C8 -> 0 | D28: =$A8*D8 -> 0 | E28: 0 | F28: 0 | G28: 0 | H28: 0 | I28: 0 | K28: =$A8*K8 -> 0 | L28: =$A8*L8 -> 0 | M28: 0 | N28: 0 | O28: 0 | P28: 0 | Q28: 0 | S28: =$A8*S8 -> 0 | T28: =$A8*T8 -> 0 | U28: 0 | V28: 0 | W28: 0 | X28: 0 | Y28: 0 | AA28: 0
A29: =A9 -> 0.12 | B29: Gift Assessment | C29: =$A9*C9 -> 0 | D29: 0 | E29: 0 | F29: 0 | G29: 0 | H29: 0 | I29: 0 | K29: =$A9*K9 -> 0 | L29: 0 | M29: 0 | N29: 0 | O29: 0 | P29: 0 | Q29: 0 | S29: =$A9*S9 -> 0 | T29: 0 | U29: 0 | V29: 0 | W29: 0 | X29: 0 | Y29: 0 | AA29: 0
A30: =Assumptions!D25 -> 0.086 | B30: Supplemental Fringe | C30: n/a | D30: =$A30*(D$18+D$19) -> 0 | E30: =$A30*(E$18+E$19) -> 0 | F30: 0 | G30: n/a | H30: 0 | I30: 0 | K30: n/a | L30: =$A30*(L$18+L$19) -> 0 | M30: =$A30*(M$18+M$19) -> 0 | N30: 0 | O30: n/a | P30: 0 | Q30: 0 | S30: n/a | T30: =$A30*(T$18+T$19) -> 0 | U30: =$A30*(U$18+U$19) -> 0 | V30: 0 | W30: n/a | X30: 0 | Y30: 0 | AA30: 0
A31: =Assumptions!D26 -> 0.03 | B31: YSM Sabbatical | C31: n/a | D31: =$A31*(D$18+D$19) -> 0 | E31: 0 | F31: 0 | G31: n/a | H31: 0 | I31: 0 | K31: n/a | L31: =$A31*(L$18+L$19) -> 0 | M31: 0 | N31: 0 | O31: n/a | P31: 0 | Q31: 0 | S31: n/a | T31: =$A31*(T$18+T$19) -> 0 | U31: 0 | V31: 0 | W31: n/a | X31: 0 | Y31: 0 | AA31: 0
B32: Applicable Assessments from above | C32: =SUM(C28:C31) -> 0 | D32: 0 | E32: 0 | F32: 0 | G32: 0 | H32: 0 | I32: 0 | K32: =SUM(K28:K31) -> 0 | L32: 0 | M32: 0 | N32: 0 | O32: 0 | P32: 0 | Q32: 0 | S32: =SUM(S28:S31) -> 0 | T32: 0 | U32: 0 | V32: 0 | W32: 0 | X32: 0 | Y32: 0 | AA32: 0
B33: Grant Indirects | C33: =C7 -> 0 | D33: 0 | E33: 0 | F33: 0 | G33: 0 | H33: 0 | I33: 0 | K33: =K7 -> 0 | L33: 0 | M33: 0 | N33: 0 | O33: 0 | P33: 0 | Q33: 0 | S33: =S7 -> 0 | T33: 0 | U33: 0 | V33: 0 | W33: 0 | X33: 0 | Y33: 0 | AA33: 0
B35: Expense Grand Total | C35: =SUM(C22:C31)+C33 -> 0 | D35: 0 | E35: 0 | F35: 0 | G35: 0 | H35: 0 | I35: 0 | K35: =SUM(K22:K31)+K33 -> 0 | L35: 0 | M35: 0 | N35: 0 | O35: 0 | P35: 0 | Q35: 0 | S35: =SUM(S22:S31)+S33 -> 0 | T35: 0 | U35: 0 | V35: 0 | W35: 0 | X35: 0 | Y35: 0 | AA35: =I35+Q35+Y35 -> 0
B37: Total Net Income | C37: =C15-C35 -> 0 | D37: 0 | E37: 0 | F37: 0 | G37: 0 | H37: 0 | I37: =SUM(C37:H37) -> 0 | K37: =K15-K35 -> 0 | L37: 0 | M37: 0 | N37: 0 | O37: 0 | P37: 0 | Q37: =SUM(K37:P37) -> 0 | S37: =S15-S35 -> 0 | T37: 0 | U37: 0 | V37: 0 | W37: 0 | X37: 0 | Y37: =SUM(S37:X37) -> 0 | AA37: =I37+Q37+Y37 -> 0
C39: Supplemental info:
C40: Please describe grant funding, including % effort on each award if available (eg, 50% effort on R01)
C41: Please describe how cost sharing and other unfunded expenses will be covered (eg, "funded from clinical surplus", "funded from reserves")

Sheet OTC Calculation - OPTIONAL
A1: NIH / HHS SALARY and IRS PENSION CAP - Costing Allocation Calculations
A2: Current NIH Salary Cap | J2: =Assumptions!D32 -> 221900 | M2: Worker Costing Allocations (Effective Effort)
A3: Current IRS Pension Cap | J3: =Assumptions!D16 -> 345000
B4: A | C4: B | D4: C | E4: D (A*B) | F4: E (B*NIH CAP) | G4: F ( (A-Pension Cap)*B) | H4: G ( (A-Pension Cap)*B) | I4: H | J4: I | K4: J | M4: K | N4: L | O4: M | P4: N | Q4: O | S4: Y
A5: Enter Faculty Name | B5: Actual Salary | C5: Intended Effort %* | D5: Is this a NIH/HHS Grant? | E5: Actual Salary at required effort | F5: COA Direct Charge Salary | G5: NIH/HHS Over the Cap Salary | H5: PENSION - Over the Cap Salary | I5: COA Direct Charge Fringe | J5: Combined Over the Cap Fringe | K5: Total Cost Sharing | M5: COA Direct Charge | N5: NIH Cap Cost Share | O5: Pension Cap Cost Share (Ledger:71013) | P5: Total | Q5: Variance | S5: N
A6: Enter Awards or Grants here | B6: 0 | C6: 0 | E6: =B6*C6 -> 0 | F6: =IF(D6="Y",$J$2*C6,E6-H6) -> 0 | G6: =IF(D6="y",E6-F6-H6,0) -> 0 | H6: =IF(B6>=$J$3,((B6-$J$3)*(C6)),0) -> 0 | I6: =F6*$F$17 -> 0 | J6: =(H6*$H$17)+(G6*$G$17) -> 0 | K6: =G6+H6+J6 -> 0 | M6: =IFERROR(F6/B6,0) -> 0 | N6: =IFERROR(G6/B6,0) -> 0 | O6: =IFERROR(H6/B6,0) -> 0 | P6: =SUM(M6:O6) -> 0 | Q6: =C6-P6 -> 0
B7: =B6 -> 0 | C7: 0 | E7: 0 | F7: 0 | G7: 0 | H7: 0 | I7: 0 | J7: 0 | K7: =G7+H7+J7 -> 0 | M7: 0 | N7: 0 | O7: 0 | P7: 0 | Q7: 0
B8: =B7 -> 0 | C8: 0 | E8: 0 | F8: 0 | G8: 0 | H8: 0 | I8: 0 | J8: 0 | K8: 0 | M8: 0 | N8: 0 | O8: 0 | P8: 0 | Q8: 0
B9: 0 | C9: 0 | E9: 0 | F9: 0 | G9: 0 | H9: 0 | I9: 0 | J9: 0 | K9: 0 | M9: 0 | N9: 0 | O9: 0 | P9: 0 | Q9: 0
B10: 0 | C10: 0 | E10: 0 | F10: 0 | G10: 0 | H10: 0 | I10: 0 | J10: 0 | K10: 0 | M10: 0 | N10: 0 | O10: 0 | P10: 0 | Q10: 0
B11: 0 | C11: 0 | E11: 0 | F11: 0 | G11: 0 | H11: 0 | I11: 0 | J11: 0 | K11: 0 | M11: 0 | N11: 0 | O11: 0 | P11: 0 | Q11: 0
B12: 0 | C12: 0 | E12: 0 | F12: 0 | G12: 0 | H12: 0 | I12: 0 | J12: 0 | K12: 0 | M12: 0 | N12: 0 | O12: 0 | P12: 0 | Q12: 0
B13: 0 | C13: 0 | E13: 0 | F13: 0 | G13: 0 | H13: 0 | I13: 0 | J13: 0 | K13: 0 | M13: 0 | N13: 0 | O13: 0 | P13: 0 | Q13: 0
B14: 0 | C14: 0 | E14: 0 | F14: 0 | G14: 0 | H14: 0 | I14: 0 | J14: 0 | K14: 0 | M14: 0 | N14: 0 | O14: 0 | P14: 0 | Q14: 0
B15: 0 | C15: 0 | E15: 0 | F15: 0 | G15: 0 | H15: 0 | I15: 0 | J15: 0 | K15: 0 | M15: 0 | N15: 0 | O15: 0 | P15: 0 | Q15: 0
C16: =SUM(C6:C15) -> 0 | E16: =SUM(E6:E15) -> 0 | F16: 0 | G16: 0 | H16: 0 | I16: 0 | J16: 0 | K16: 0 | M16: =SUM(M6:M15) -> 0 | N16: =SUM(N6:N15) -> 0 | O16: =SUM(O6:O15) -> 0 | P16: =SUM(P6:P15) -> 0 | Q16: =SUM(Q6:Q15) -> 0
E17: FY22 Fringe Rates: | F17: ='Research Plan'!C20 -> 0.306 | G17: ='Research Plan'!D20 -> 0.332 | H17: 0.02
A20: Salary Allocated | B20: =SUM(F16:H16) -> 0
A21: Fringe Allocated | B21: =SUM(I16:J16) -> 0
A22: Total Expense | B22: =SUM(B20:B21) -> 0

Sheet OTC Calculation EXAMPLE
A1: NIH / HHS SALARY and IRS PENSION CAP - Costing Allocation Calculations
A2: Current NIH Salary Cap | J2: =Assumptions!D32 -> 221900 | M2: Worker Costing Allocations (Effective Effort)
A3: Current IRS Pension Cap | J3: =Assumptions!D16 -> 345000
B4: A | C4: B | D4: C | E4: D (A*B) | F4: E (B*NIH CAP) | G4: F ( (A-Pension Cap)*B) | H4: G ( (A-Pension Cap)*B) | I4: H | J4: I | K4: J | M4: K | N4: L | O4: M | P4: N | Q4: O | S4: Y
A5: Enter Faculty Name | B5: Actual Salary | C5: Intended Effort %* | D5: Is this a NIH/HHS Grant? | E5: Actual Salary at required effort | F5: COA Direct Charge Salary | G5: NIH/HHS Over the Cap Salary | H5: PENSION - Over the Cap Salary | I5: COA Direct Charge Fringe | J5: Combined Over the Cap Fringe | K5: Total Cost Sharing | M5: COA Direct Charge | N5: NIH Cap Cost Share | O5: Pension Cap Cost Share (Ledger:71013) | P5: Total | Q5: Variance | S5: N
A6: Enter Awards or Grants here | B6: 1000000 | C6: 0.1 | D6: Y | E6: =B6*C6 -> 100000 | F6: =IF(D6="Y",$J$2*C6,E6-H6) -> 22190 | G6: =IF(D6="y",E6-F6-H6,0) -> 12310 | H6: =IF(B6>=$J$3,((B6-$J$3)*(C6)),0) -> 65500 | I6: =F6*$F$17 -> 6790.14 | J6: =(H6*$H$17)+(G6*$G$17) -> 5396.92 | K6: =G6+H6+J6 -> 83206.92 | M6: =IFERROR(F6/B6,0) -> 0.02219 | N6: =IFERROR(G6/B6,0) -> 0.01231 | O6: =IFERROR(H6/B6,0) -> 0.0655 | P6: =SUM(M6:O6) -> 0.1 | Q6: =C6-P6 -> 0
B7: =B6 -> 1000000 | C7: 0.1 | D7: N | E7: 100000 | F7: 34500 | G7: 0 | H7: 65500 | I7: 10557 | J7: 1310 | K7: =G7+H7+J7 -> 66810 | M7: 0.0345 | N7: 0 | O7: 0.0655 | P7: 0.1 | Q7: 0
B8: =B7 -> 1000000 | C8: 0.15 | D8: Y | E8: 150000 | F8: 33285 | G8: 18465 | H8: 98250 | I8: 10185.21 | J8: 8095.38 | K8: 124810.38 | M8: 0.033285 | N8: 0.018465 | O8: 0.09825 | P8: 0.15 | Q8: 0
B9: 1000000 | C9: 0.16 | D9: N | E9: 160000 | F9: 55200 | G9: 0 | H9: 104800 | I9: 16891.2 | J9: 2096 | K9: 106896 | M9: 0.0552 | N9: 0 | O9: 0.1048 | P9: 0.16 | Q9: 0
B10: 1000000 | C10: 0.09 | D10: N | E10: 90000 | F10: 31050 | G10: 0 | H10: 58950 | I10: 9501.3 | J10: 1179 | K10: 60129 | M10: 0.03105 | N10: 0 | O10: 0.05895 | P10: 0.09 | Q10: 0
B11: 1000000 | C11: 0.25 | D11: Y | E11: 250000 | F11: 55475 | G11: 30775 | H11: 163750 | I11: 16975.35 | J11: 13492.3 | K11: 208017.3 | M11: 0.055475 | N11: 0.030775 | O11: 0.16375 | P11: 0.25 | Q11: 0
B12: 1000000 | C12: 0.05 | D12: N | E12: 50000 | F12: 17250 | G12: 0 | H12: 32750 | I12: 5278.5 | J12: 655 | K12: 33405 | M12: 0.01725 | N12: 0 | O12: 0.03275 | P12: 0.05 | Q12: 0
B13: 1000000 | C13: 0.07 | D13: N | E13: 70000 | F13: 24150 | G13: 0 | H13: 45850 | I13: 7389.9 | J13: 917 | K13: 46767 | M13: 0.02415 | N13: 0 | O13: 0.04585 | P13: 0.07 | Q13: 0
B14: 1000000 | C14: 0.01 | D14: Y | E14: 10000 | F14: 2219 | G14: 1231 | H14: 6550 | I14: 679.014 | J14: 539.692 | K14: 8320.692 | M14: 0.002219 | N14: 0.001231 | O14: 0.00655 | P14: 0.01 | Q14: 0
B15: 1000000 | C15: 0.02 | D15: N | E15: 20000 | F15: 6900 | G15: 0 | H15: 13100 | I15: 2111.4 | J15: 262 | K15: 13362 | M15: 0.0069 | N15: 0 | O15: 0.0131 | P15: 0.02 | Q15: 0
C16: =SUM(C6:C15) -> 1 | E16: =SUM(E6:E15) -> 1000000 | F16: 282219 | G16: 62781 | H16: 655000 | I16: 86359.014 | J16: 33943.292 | K16: 751724.292 | M16: =SUM(M6:M15) -> 0.282219 | N16: =SUM(N6:N15) -> 0.062781 | O16: =SUM(O6:O15) -> 0.655 | P16: =SUM(P6:P15) -> 1 | Q16: =SUM(Q6:Q15) -> 0
E17: FY22 Fringe Rates: | F17: ='Research Plan'!C20 -> 0.306 | G17: ='Research Plan'!D20 -> 0.332 | H17: 0.02
A20: Salary Allocated | B20: =SUM(F16:H16) -> 1000000
A21: Fringe Allocated | B21: =SUM(I16:J16) -> 120302.306
A22: Total Expense | B22: =SUM(B20:B21) -> 1120302.306

Sheet Rate Summary
D1: Compensation Benchmark and Calc. | I1: RVUs | J1: Metric for Model
B2: UHC Specialty | C2: Type | D2: MGMA | E2: AAMC | F2: AAAP | G2: 50/50 Blend | H2: AAAP Benchmark | I2: UHC | J2: Salary $ per RVU
B3: Addiction Medicine | C3: Physician | D3: $276,844 | E3: 246262 | F3: 0 | G3: 261553 | H3: 0 | I3: 4563.07 | J3: 57.31952392
B4: Allergy / Immunology | C4: Physician | D4: $347,000 | E4: 255570 | F4: 0 | G4: 301285 | H4: 0 | I4: 4341.04735 | J4: 69.40375806
B5: Cardiology: Electrophysiology | C5: Physician | D5: $726,428 | E5: 440449 | F5: 0 | G5: 583438.5 | H5: 0 | I5: 10490.891 | J5: 55.61381774
B6: Cardiology: General | C6: Physician | D6: $559,107 | E6: 440449 | F6: 0 | G6: 499778 | H6: 0 | I6: 7544.05245 | J6: 66.24794874
B7: Cardiology: Invasive | C7: Physician | D7: $630,026 | E7: 440449 | F7: 0 | G7: 535237.5 | H7: 0 | I7: 7213.5326 | J7: 74.19908243
B8: Cardiology: Invasive Interventional | C8: Physician | D8: $701,220 | E8: 440449 | F8: 0 | G8: 570834.5 | H8: 0 | I8: 8632.56775 | J8: 66.12569012
B9: Cardiology: Noninvasive | C9: Physician | D9: $559,107 | E9: 440449 | F9: 0 | G9: 499778 | H9: 0 | I9: 8078.7328 | J9: 61.86341501
B10: Clinical Genetics | C10: Physician | D10: $233,750 | E10: 0 | F10: 0 | G10: $233,750 | H10: 0 | I10: 2438.88335 | J10: 95.84304227
B11: Critical Care | C11: Physician | D11: $423,300 | E11: 265313 | F11: 0 | G11: 344306.5 | H11: 0 | I11: 6066.6029 | J11: 56.75441523
B12: Dermatology | C12: Physician | D12: $491,086 | E12: 369520 | F12: 0 | G12: 430303 | H12: 0 | I12: 7389.975 | J12: 58.22793717
B13: Dermatopathology | C13: Physician | D13: $526,051 | E13: 369520 | F13: 0 | G13: 447785.5 | H13: 0 | I13: 9600.0714 | J13: 46.643976
B14: Emergency Medicine | C14: Physician | D14: $378,666 | E14: 344317 | F14: 0 | G14: 361491.5 | H14: 0 | I14: 7296.409 | J14: 49.54375502
B15: Endocrinology / Metabolism | C15: Physician | D15: $280,664 | E15: 223354 | F15: 0 | G15: 252009 | H15: 0 | I15: 5265.34375 | J15: 47.86183238
B16: Family Medicine (without OB) | C16: Physician | D16: $281,579 | E16: 242563 | F16: 0 | G16: 262071 | H16: 0 | I16: 5306.7287 | J16: 49.3846614
B17: Family Medicine: Sports Medicine | C17: Physician | D17: $332,274 | E17: 0 | F17: 0 | G17: $332,274 | H17: 0 | I17: 5672.8844 | J17: 58.57231993
B18: Gastroenterology | C18: Physician | D18: $556,675 | E18: 385662 | F18: 0 | G18: 471168.5 | H18: 0 | I18: 7277.713 | J18: 64.74128617
B19: General Internal Medicine | C19: Physician | D19: $290,569 | E19: 250940 | F19: 0 | G19: 270754.5 | H19: 0 | I19: 4987.5866 | J19: 54.28567396
B20: Geriatrics | C20: Physician | D20: $259,429 | E20: 233471 | F20: 0 | G20: 246450 | H20: 0 | I20: 3869.90285 | J20: 63.68376922
B21: Gynecological Oncology | C21: Physician | D21: $516,901 | E21: 420000 | F21: 0 | G21: 468450.5 | H21: 0 | I21: 6770.27485 | J21: 69.19224262
B22: Hematology | C22: Physician | D22: $516,017 | E22: 329306 | F22: 0 | G22: 422661.5 | H22: 0 | I22: 3335 | J22: 126.7350825
B23: Hepatology | C23: Physician | D23: $646,006 | E23: 385662 | F23: 0 | G23: 515834 | H23: 0 | I23: 5706.4722 | J23: 90.39455235
B24: Hospitalists | C24: Physician | D24: $323,958 | E24: 275300 | F24: 0 | G24: 299629 | H24: 0 | I24: 3797.04555 | J24: 78.91108918
B25: Infectious Disease | C25: Physician | D25: $310,498 | E25: 232035 | F25: 0 | G25: 271266.5 | H25: 0 | I25: 4131.03335 | J25: 65.66553136
B26: Maternal and Fetal Medicine | C26: Physician | D26: $540,010 | E26: 448217 | F26: 0 | G26: 494113.5 | H26: 0 | I26: 8016.9022 | J26: 61.63396879
B27: Medical Oncology with Infusion | C27: Physician | D27: $514,100 | E27: 329306 | F27: 0 | G27: 421703 | H27: 0 | I27: 3335 | J27: 126.4476762
B28: Medical Oncology without Infusion | C28: Physician | D28: $514,100 | E28: 329306 | F28: 0 | G28: 421703 | H28: 0 | I28: 3335 | J28: 126.4476762
B29: MOHS Surgery | C29: Physician | D29: $721,777 | E29: 622306 | F29: 0 | G29: 672041.5 | H29: 0 | I29: 14098.16335 | J29: 47.668727
B30: Nephrology | C30: Physician | D30: $373,974 | E30: 270523 | F30: 0 | G30: 322248.5 | H30: 0 | I30: 8078.6364 | J30: 39.88897186
B31: Nephrology without Dialysis | C31: Physician | D31: $373,974 | E31: 270523 | F31: 0 | G31: 322248.5 | H31: 0 | I31: 5615 | J31: 57.39065004
B32: Neurology: Alzheimers / Dementia | C32: Physician | D32: $347,348 | E32: 265313 | F32: 0 | G32: 306330.5 | H32: 0 | I32: 4363 | J32: 70.21097868
B33: Neurology: Epilepsy / EEG | C33: Physician | D33: $298,264 | E33: 265313 | F33: 0 | G33: 281788.5 | H33: 0 | I33: 6218.3895 | J33: 45.31535054
B34: Neurology: General | C34: Physician | D34: $347,348 | E34: 265313 | F34: 0 | G34: 306330.5 | H34: 0 | I34: 4350.2866 | J34: 70.41616522
B35: Neurology: Movement Disorders | C35: Physician | D35: $347,348 | E35: 265313 | F35: 0 | G35: 306330.5 | H35: 0 | I35: 4679.73995 | J35: 65.45887235
B36: Neurology: Neuromuscular | C36: Physician | D36: $298,395 | E36: 265313 | F36: 0 | G36: 281854 | H36: 0 | I36: 4560.381 | J36: 61.80492376
B37: Neurology: Stroke | C37: Physician | D37: $373,289 | E37: 265313 | F37: 0 | G37: 319301 | H37: 0 | I37: 4720.41 | J37: 67.64264121
B38: Neuropsychology | C38: Physician | D38: $122,391 | E38: 252577 | F38: 0 | G38: 187484 | H38: 0 | I38: 2387.2159 | J38: 78.5366753
B39: Nuclear Medicine | C39: Physician | D39: $444,261 | E39: 389553 | F39: 0 | G39: 416907 | H39: 0 | I39: 6245.39 | J39: 66.75435801
B40: Obstetrics / Gynecology | C40: Physician | D40: $369,179 | E40: 311825 | F40: 0 | G40: 340502 | H40: 0 | I40: 7517.58625 | J40: 45.29405965
B41: Ophthalmology: Corneal / Refractive Surgery | C41: Physician | D41: $449,700 | E41: 377861 | F41: 0 | G41: 413780.5 | H41: 0 | I41: 9808.96905 | J41: 42.18389291
B42: Ophthalmology: General / Comprehensive | C42: Physician | D42: $419,158 | E42: 377861 | F42: 0 | G42: 398509.5 | H42: 0 | I42: 7317.6109 | J42: 54.45896283
B43: Ophthalmology: Glaucoma | C43: Physician | D43: $387,703 | E43: 377861 | F43: 0 | G43: 382782 | H43: 0 | I43: 9806.9049 | J43: 39.0318866
B44: Ophthalmology: Neuro | C44: Physician | D44: $419,158 | E44: 377861 | F44: 0 | G44: 398509.5 | H44: 0 | I44: 6826.8368 | J44: 58.37396025
B45: Ophthalmology: Oculoplastic / Reconstructive Surgery | C45: Physician | D45: $475,191 | E45: 377861 | F45: 0 | G45: 426526 | H45: 0 | I45: 8224.7477 | J45: 51.8588552
B46: Ophthalmology: Pediatric | C46: Physician | D46: $362,085 | E46: 377861 | F46: 0 | G46: 369973 | H46: 0 | I46: 6491.90165 | J46: 56.98992683
B47: Ophthalmology: Retinal | C47: Physician | D47: $587,254 | E47: 377861 | F47: 0 | G47: 482557.5 | H47: 0 | I47: 10468.75645 | J47: 46.09501638
B48: Orthopedic Surgery: Foot / Ankle | C48: Physician | D48: $591,918 | E48: 679288 | F48: 0 | G48: 635603 | H48: 0 | I48: 8781.6717 | J48: 72.37836049
B49: Orthopedic Surgery: General | C49: Physician | D49: $639,741 | E49: 679288 | F49: 0 | G49: 659514.5 | H49: 0 | I49: 8736.59655 | J49: 75.48872106
B50: Orthopedic Surgery: Hand | C50: Physician | D50: $735,501 | E50: 679288 | F50: 0 | G50: 707394.5 | H50: 0 | I50: 9468.73465 | J50: 74.70845114
B51: Orthopedic Surgery: Joint | C51: Physician | D51: $769,327 | E51: 679288 | F51: 0 | G51: 724307.5 | H51: 0 | I51: 10543.03585 | J51: 68.70008888
B52: Orthopedic Surgery: Oncology | C52: Physician | D52: $587,592 | E52: 679288 | F52: 0 | G52: 633440 | H52: 0 | I52: 5424.57745 | J52: 116.772229
B53: Orthopedic Surgery: Pediatric | C53: Physician | D53: $586,441 | E53: 679288 | F53: 0 | G53: 632864.5 | H53: 0 | I53: 7436.3878 | J53: 85.10375158
B54: Orthopedic Surgery: Spine | C54: Physician | D54: $850,699 | E54: 679288 | F54: 0 | G54: 764993.5 | H54: 0 | I54: 12779.4165 | J54: 59.86137943
B55: Orthopedic Surgery: Sports Medicine | C55: Physician | D55: $690,480 | E55: 679288 | F55: 0 | G55: 684884 | H55: 0 | I55: 9057.7325 | J55: 75.61318465
B56: Orthopedic Surgery: Trauma | C56: Physician | D56: $734,735 | E56: 679288 | F56: 0 | G56: 707011.5 | H56: 0 | I56: 9857.94305 | J56: 71.71998219
B57: Otorhinolaryngology | C57: Physician | D57: $488,668 | E57: 519434 | F57: 0 | G57: 504051 | H57: 0 | I57: 7682.28225 | J57: 65.6121428
B58: Palliative Care | C58: Physician | D58: $251,655 | E58: 250940 | F58: 0 | G58: 251297.5 | H58: 0 | I58: 2834.3256 | J58: 88.66218475
B59: Pathology: Anatomic | C59: Physician | D59: $343,958 | E59: 305000 | F59: 0 | G59: 324479 | H59: 0 | I59: 6485.3969 | J59: 50.03225015
B60: Pathology: Clinical | C60: Physician | D60: $365,310 | E60: 289328 | F60: 0 | G60: 327319 | H60: 0 | I60: 5235.7361 | J60: 62.51632889
B61: Pathology: Cytopathology | C61: Physician | D61: $343,958 | E61: 305000 | F61: 0 | G61: 324479 | H61: 0 | I61: 5695.4833 | J61: 56.9712846
B62: Pathology: Hematopathology | C62: Physician | D62: $357,226 | E62: 329306 | F62: 0 | G62: 343266 | H62: 0 | I62: 6696.35835 | J62: 51.26159355
B63: Pathology: Surgical | C63: Physician | D63: $343,958 | E63: 305000 | F63: 0 | G63: 324479 | H63: 0 | I63: 7444.3521 | J63: 43.58727202
B64: Pediatrics: Adolescent Medicine | C64: Physician | D64: $226,154 | E64: 197493 | F64: 225000 | G64: 225577 | H64: 3379 | I64: 3230.8287 | J64: 66.75850843
B65: Pediatrics: Allergy / Immunology | C65: Physician | D65: $247,638 | E65: 226093 | F65: 237400 | G65: 242519 | H65: 3815 | I65: 3446.2388 | J65: 63.56985583
B66: Pediatrics: Bone Marrow Transplant | C66: Physician | D66: * | E66: 481446 | F66: 235100 | G66: 235100 | H66: 3049 | I66: 6169.8353 | J66: 77.10724828
B67: Pediatrics: Cardiology | C67: Physician | D67: $339,997 | E67: 309065 | F67: 319600 | G67: 329798.5 | H67: 4697 | I67: 4751.52255 | J67: 70.21471152
B68: Pediatrics: Cardiology Interventional | C68: Physician | D68: $339,997 | E68: 309065 | F68: 442200 | G68: 391098.5 | H68: 5391 | I68: 4793.5124 | J68: 72.54655908
B69: Pediatrics: Cardiology-Invasive | C69: Physician | D69: $339,997 | E69: 309065 | F69: 0 | G69: 324531 | H69: 0 | I69: 5327.25965 | J69: 60.91893794
B70: Pediatrics: Cardiology-Noninvasive | C70: Physician | D70: $339,997 | E70: 309065 | F70: 0 | G70: 324531 | H70: 0 | I70: 4869.147 | J70: 66.65048313
B71: Pediatrics: Critical Care | C71: Physician | D71: $329,510 | E71: 318988 | F71: 292300 | G71: 310905 | H71: 6114 | I71: 5693.415 | J71: 50.85132483
B72: Pediatrics: Developmental | C72: Physician | D72: $215,000 | E72: 225101 | F72: 217000 | G72: 216000 | H72: 3000 | I72: 2804.5869 | J72: 72
B73: Pediatrics: Emergency Medicine | C73: Physician | D73: $281,708 | E73: 278285 | F73: 278000 | G73: 279854 | H73: 6290 | I73: 5918.366 | J73: 44.49189189
B74: Pediatrics: Endocrinology | C74: Physician | D74: $219,063 | E74: 204300 | F74: 209900 | G74: 214481.5 | H74: 3993 | I74: 3792.94985 | J74: 53.71437516
B75: Pediatrics: Gastroenterology | C75: Physician | D75: $305,448 | E75: 262104 | F75: 270700 | G75: 288074 | H75: 4420 | I75: 4389.74685 | J75: 65.17511312
B76: Pediatrics: General | C76: Physician | D76: $249,368 | E76: 225101 | F76: 214000 | G76: 231684 | H76: 4596 | I76: 4408.5238 | J76: 50.40992167
B77: Pediatrics: Hematology / Oncology | C77: Physician | D77: $251,304 | E77: 232871 | F77: 257800 | G77: 254552 | H77: 3685 | I77: 3579.39405 | J77: 69.07788331
B78: Pediatrics: Hospitalists | C78: Physician | D78: $225,000 | E78: 217911 | F78: 216500 | G78: 220750 | H78: 2682 | I78: 2896 | J78: 82.30797912
B79: Pediatrics: Infectious Disease | C79: Physician | D79: $230,000 | E79: 205734 | F79: 197900 | G79: 213950 | H79: 2936 | I79: 2063.72915 | J79: 72.87125341
B80: Pediatrics: Neonatal Medicine | C80: Physician | D80: $338,686 | E80: 293375 | F80: 299400 | G80: 319043 | H80: 10840 | I80: 11725.1282 | J80: 29.43201107
B81: Pediatrics: Nephrology | C81: Physician | D81: $257,209 | E81: 220991 | F81: 240700 | G81: 248954.5 | H81: 4329 | I81: 3775.9114 | J81: 57.50854701
B82: Pediatrics: Neurology | C82: Physician | D82: $274,352 | E82: 246735 | F82: 260800 | G82: 267576 | H82: 4326 | I82: 4254.6324 | J82: 61.85298197
B83: Pediatrics: Psychiatry | C83: Physician | D83: $325,423 | E83: 280278 | F83: 0 | G83: 302850.5 | H83: 0 | I83: 3839.53555 | J83: 78.87685791
B84: Pediatrics: Psychology | C84: Physician | D84: $122,391 | E84: 0 | F84: 0 | G84: $122,391 | H84: 0 | I84: 1974.2 | J84: 61.99523858
B85: Pediatrics: Pulmonology | C85: Physician | D85: $259,002 | E85: 240316 | F85: 240600 | G85: 249801 | H85: 4177 | I85: 4210.8612 | J85: 59.80392626
B86: Pediatrics: Rheumatology | C86: Physician | D86: $204,549 | E86: 218500 | F86: 230000 | G86: 217274.5 | H86: 3474 | I86: 3306.12 | J86: 62.54303397
B87: Physical Medicine: General | C87: Physician | D87: $325,429 | E87: 323564 | F87: 0 | G87: 324496.5 | H87: 0 | I87: 4965.71445 | J87: 65.34739427
B88: Preventative / Occupational Medicine | C88: Physician | D88: $290,569 | E88: 250940 | F88: 0 | G88: 270754.5 | H88: 0 | I88: 4987.5866 | J88: 54.28567396
B89: Physical Medicine: Pain and Spine | C89: Physician | D89: $325,429 | E89: 323564 | F89: 0 | G89: 324496.5 | H89: 0 | I89: 5756.30555 | J89: 56.37235501
B90: Psychiatry | C90: Physician | D90: $313,693 | E90: 252577 | F90: 0 | G90: 283135 | H90: 0 | I90: 4000.5779 | J90: 70.77352499
B91: Psychology | C91: Physician | D91: $122,391 | E91: 0 | F91: 0 | G91: $122,391 | H91: 0 | I91: 2781.63125 | J91: 43.99972139
B92: Pulmonary Disease | C92: Physician | D92: $401,828 | E92: 291775 | F92: 0 | G92: 346801.5 | H92: 0 | I92: 5832.8783 | J92: 59.45632365
B93: Radiation Oncology | C93: Physician | D93: $571,699 | E93: 514134 | F93: 0 | G93: 542916.5 | H93: 0 | I93: 8372 | J93: 64.84908027
B94: Radiology: Diagnostic | C94: Physician | D94: $568,327 | E94: 457212 | F94: 0 | G94: 512769.5 | H94: 0 | I94: 9452.972 | J94: 54.24426307
B95: Radiology: Interventional | C95: Physician | D95: $581,952 | E95: 457212 | F95: 0 | G95: 519582 | H95: 0 | I95: 6464.8417 | J95: 80.3704134
B96: Reproductive Endocrinology | C96: Physician | D96: $577,248 | E96: 530950 | F96: 0 | G96: 554099 | H96: 0 | I96: 7473.0472 | J96: 74.14632682
B97: Rheumatology | C97: Physician | D97: $283,225 | E97: 247671 | F97: 0 | G97: 265448 | H97: 0 | I97: 4842.51095 | J97: 54.81618994
B98: Sleep Medicine | C98: Physician | D98: $349,926 | E98: 265313 | F98: 0 | G98: 307619.5 | H98: 0 | I98: 5215.40785 | J98: 58.9828272
B99: Surgery: Bariatric | C99: Physician | D99: $554,740 | E99: 462052 | F99: 0 | G99: 508396 | H99: 0 | I99: 7646.4198 | J99: 66.4881099
B100: Surgery: Cardiac | C100: Physician | D100: $850,000 | E100: 723175 | F100: 0 | G100: 786587.5 | H100: 0 | I100: 9975.44295 | J100: 78.8523882
B101: Surgery: Colon and Rectal | C101: Physician | D101: $463,010 | E101: 462052 | F101: 0 | G101: 462531 | H101: 0 | I101: 7431.48145 | J101: 62.23940719
B102: Surgery: General | C102: Physician | D102: $471,833 | E102: 462052 | F102: 0 | G102: 466942.5 | H102: 0 | I102: 7416.4109 | J102: 62.96071055
B103: Surgery: Neurological | C103: Physician | D103: $875,000 | E103: 887291 | F103: 0 | G103: 881145.5 | H103: 0 | I103: 10204.2613 | J103: 86.35073859
B104: Surgery: Pediatric | C104: Physician | D104: $659,675 | E104: 575300 | F104: 0 | G104: 617487.5 | H104: 0 | I104: 5729.2562 | J104: 107.777952
B105: Surgery: Pediatric Cardiac | C105: Physician | D105: $821,771 | E105: 723175 | F105: 0 | G105: 772473 | H105: 0 | I105: 7689.33335 | J105: 100.4603344
B106: Surgery: Pediatric Neurosurgery | C106: Physician | D106: $772,926 | E106: 575300 | F106: 0 | G106: 674113 | H106: 0 | I106: 5151.17415 | J106: 130.865892
B107: Surgery: Plastic | C107: Physician | D107: $610,927 | E107: 647730 | F107: 0 | G107: 629328.5 | H107: 0 | I107: 8228.5935 | J107: 76.48068895
B108: Surgery: Thoracic | C108: Physician | D108: $625,550 | E108: 723175 | F108: 0 | G108: 674362.5 | H108: 0 | I108: 6819.33435 | J108: 98.88978387
B109: Surgery: Trauma | C109: Physician | D109: $511,845 | E109: 475194 | F109: 0 | G109: 493519.5 | H109: 0 | I109: 8022.7037 | J109: 61.51535922
B110: Surgery: Vascular | C110: Physician | D110: $569,132 | E110: 531794 | F110: 0 | G110: 550463 | H110: 0 | I110: 8358.0645 | J110: 65.86010433
B111: Surgical Oncology | C111: Physician | D111: $459,412 | E111: 480079 | F111: 0 | G111: 469745.5 | H111: 0 | I111: 7277.85465 | J111: 64.54450145
B112: Surgical Oncology: Breast | C112: Physician | D112: $459,412 | E112: 480079 | F112: 0 | G112: 469745.5 | H112: 0 | I112: 5828.6344 | J112: 80.59271997
B113: Transplant Surgery: General | C113: Physician | D113: $572,484 | E113: 481446 | F113: 0 | G113: 526965 | H113: 0 | I113: 6925.31125 | J113: 76.09260883
B114: Transplant Surgery: Kidney | C114: Physician | D114: $445,440 | E114: 481446 | F114: 0 | G114: 463443 | H114: 0 | I114: 5930.0717 | J114: 78.15133163
B115: Transplant Surgery: Liver | C115: Physician | D115: $394,822 | E115: 481446 | F115: 0 | G115: 438134 | H115: 0 | I115: 7185.5586 | J115: 60.97424353
B116: Uro-Gynecology | C116: Physician | D116: $383,339 | E116: 365912.5 | F116: 0 | G116: 374625.75 | H116: 0 | I116: 6541.69725 | J116: 57.26736284
B117: Urology | C117: Physician | D117: $529,858 | E117: 465025 | F117: 0 | G117: 497441.5 | H117: 0 | I117: 8484.9078 | J117: 58.62662409
B118: CSC: Pediatrics: Psychiatry | G118: 284266 | I118: 3463 | J118: 82.08663009
B119: CSC: Pediatrics: Psychiatry - NP / PA | G119: 124373 | I119: 3024 | J119: 41.12863757
B120: CSC: Pediatrics: Psychology | G120: 139917 | I120: 2290 | J120: 61.09912664
B121: CSC: Social Worker | G121: 96175.89 | I121: 2123 | J121: 45.30187942
B122: CSC: Speech Language Pathologist | G122: 183400 | I122: 1435.89 | J122: 127.7256614
B123: CSC: Counselor | G123: 96175.89 | I123: 2123 | J123: 45.30187942
B124: CSC: Therapist | G124: 96175.89 | I124: 2123 | J124: 45.30187942
B125: CSC: Psychiatry | G125: 124373 | I125: 3024 | J125: 41.12863757
B126: CSC: APP: Psychiatry | G126: 124373 | I126: 3024 | J126: 41.12863757
D128: Updated for Aug | E128: Updated for Aug | F128: Updated for Aug
B129: Had to manipulate the specialty | D129: CY22 | E129: 2021-22 AAMC | F129: 2022-2023 AAAP | I129: Used prior year
D130: Currently Using | E130: Currently Using | F130: Currently Using | I130: Used regular bone marrow specialty
D131: CY21 | E131: 2020-21 AAMC | F131: 2021-2022 AAAP
I132: Used altnerate
I133: Modified Benchmark
I134: Manual match

Sheet Benefit+OH Rate
A1: Clinical Department | B1: Department Code | C1: Overhead | D1: Benefits | E1: RVUs from Rate Model | F1: $/RVU OH | G1: $/RVU Benefits | H1: Total | J1: Last Updated | K1: 2023-09-30
A2: Cancer Center | B2: MED Comprehensive Cancer Center | C2: 7188334.462 | D2: 14273892.83 | E2: 568492.9326 | F2: 12.64454499 | G2: 25.10830305 | H2: 37.75284804
A3: Child Study Center | B3: MED Child Study Center | C3: 2630223.671 | D3: 3472897.862 | E3: 42048.65349 | F3: 62.55191197 | G3: 82.59236799 | H3: 145.14428
A4: Genetics | B4: MED Genetics | C4: 596291.4644 | D4: 623091.6961 | E4: 12391.56385 | F4: 48.12075954 | G4: 50.28353996 | H4: 98.4042995
A5: Internal Medicine | B5: MED Internal Medicine | C5: 14302017.83 | D5: 32797833.85 | E5: 1548692.444 | F5: 9.234898695 | G5: 21.17775803 | H5: 30.41265673
A6: Laboratory Medicine | B6: MED Laboratory Medicine | C6: 482497.219 | D6: 1358696.397 | E6: 53017.14905 | F6: 9.100776403 | G6: 25.62748887 | H6: 34.72826528
A7: Neurology | B7: MED Neurology | C7: 3298350.571 | D7: 7684086.493 | E7: 360356.2769 | F7: 9.153026555 | G7: 21.32358165 | H7: 30.47660821
A8: Neurosurgery | B8: MED Neurosurgery | C8: 1879324.32 | D8: 3282809.606 | E8: 188256.8298 | F8: 9.982768338 | G8: 17.43793099 | H8: 27.42069932
A9: OB-GYN | B9: MED Obstetrics and Gynecology | C9: 3207943.708 | D9: 7032717.609 | E9: 308491.869 | F9: 10.39879501 | G9: 22.79709229 | H9: 33.1958873
A10: Ophthalmology | B10: MED Ophthalmology and Visual Science | C10: 2661740.244 | D10: 2898699.66 | E10: 161618.9241 | F10: 16.46923625 | G10: 17.93539758 | H10: 34.40463383
A11: Orthopedics | B11: MED Orthopaedics and Rehabilitation | C11: 5612307.416 | D11: 6540112.449 | E11: 393462.3347 | F11: 14.26390005 | G11: 16.62195303 | H11: 30.88585308
A12: Pathology | B12: MED Pathology | C12: 9958381.996 | D12: 4944710.096 | E12: 201878 | F12: 49.32871336 | G12: 24.49355599 | H12: 73.82226935
A13: Pediatrics | B13: MED Pediatrics | C13: 7914545.776 | D13: 12821883.96 | E13: 558546.9243 | F13: 14.16988516 | G13: 22.95578652 | H13: 37.12567168
A14: Psychiatry | B14: MED Psychiatry | C14: 1097399.585 | D14: 3014574.777 | E14: 57376.8549 | F14: 19.12617181 | G14: 52.53990972 | H14: 71.66608153
A15: Radiology | B15: MED Radiology and Biomedical Imaging | C15: 713973.6103 | D15: 2393724.581 | E15: 102553.2469 | F15: 6.961979574 | G15: 23.34128517 | H15: 30.30326474
A16: Surgery | B16: MED Surgery | C16: 15186339.89 | D16: 15597651.39 | E16: 697665.8607 | F16: 21.76735418 | G16: 22.3569079 | H16: 44.12426208
A17: Therapeutic Radiology | B17: MED Therapeutic Radiology | C17: 621230.8719 | D17: 3642598.764 | E17: 201483.708 | F17: 3.083280917 | G17: 18.07887496 | H17: 21.16215588
A18: Urology | B18: MED Urology | C18: 2456695.838 | D18: 4822373.905 | E18: 268620.4145 | F18: 9.145603631 | G18: 17.95237311 | H18: 27.09797674
A19: YMMS | B19: MED Yale Medicine Multi-Specialty Clinics | C19: 216987 | D19: 136736 | E19: 6142 | F19: 35.33 | G19: 22.26 | H19: 57.59
A21: hybrid rate
A22: Just Inteventional

Sheet April Productivity Table (hidden)
E1: FY 2022 | F1: FY 2022 | G1: FY 2022 | H1: FY 2022 | I1: FY 2022 | J1: FY 2023 | K1: FY 2023 | L1: FY 2023 | M1: FY 2023 | N1: FY 2023
A2: Department | B2: UHC Specialty | C2: Provider | D2: End_Month_Name | E2: cFTE (avg) | F2: Epic wRVU | G2: UHC wRVU | H2: Benchmark | I2: % of Benchmark | J2: cFTE (avg) | K2: Epic wRVU | L2: UHC wRVU | M2: Benchmark | N2: % of Benchmark
A3: Child Study Center | B3: Pediatrics: Psychiatry | D3: April | E3: 0.05 | F3: 148 | G3: 148 | H3: 72 | I3: 2.053 | J3: 0.05 | K3: 97 | L3: 97 | M3: 32 | N3: 3.023
A4: Child Study Center | B4: Pediatrics: Psychiatry | D4: April | E4: 0.29 | F4: 338 | G4: 338 | H4: 846 | I4: 0.4 | J4: 0.21 | K4: 345 | L4: 370 | M4: 685 | N4: 0.541
A5: Child Study Center | B5: Pediatrics: Psychiatry | D5: April | E5: 0.8 | F5: 502 | G5: 502 | H5: 2309 | I5: 0.218 | J5: 0.5 | K5: 837 | L5: 929 | M5: 1600 | N5: 0.58
A6: Child Study Center | B6: Pediatrics: Psychiatry | D6: April | E6: 0.35 | F6: 1245 | G6: 1245 | H6: 1010 | I6: 1.233 | J6: 0.05 | K6: 287 | L6: 242 | M6: 160 | N6: 1.514
A7: Child Study Center | B7: Pediatrics: Psychiatry | D7: April | E7: 0.15 | F7: 95 | G7: 95 | H7: 390 | I7: 0.244
A8: Child Study Center | B8: Pediatrics: Psychiatry | D8: April | J8: 0.25 | K8: 394 | L8: 490 | M8: 720 | N8: 0.68
A9: Child Study Center | B9: Pediatrics: Psychiatry | D9: April | E9: 0.07 | F9: 102 | G9: 102 | H9: 202 | I9: 0.507 | J9: 0.15 | K9: 197 | L9: 218 | M9: 480 | N9: 0.454
A10: Child Study Center | B10: Pediatrics: Psychiatry | D10: April | E10: 0.05 | F10: 16 | G10: 16 | H10: 14 | I10: 1.097 | J10: 0.05 | K10: 21 | L10: 21 | M10: 32 | N10: 0.647
A11: Child Study Center | B11: Pediatrics: Psychiatry | D11: April | E11: 0.35 | F11: 226 | G11: 226 | H11: 909 | I11: 0.249 | J11: 0.35 | K11: 157 | L11: 162 | M11: 896 | N11: 0.181
A12: Child Study Center | B12: Pediatrics: Psychiatry | D12: April | E12: 0.2 | F12: 356 | G12: 356 | H12: 577 | I12: 0.617
A13: Child Study Center | B13: Pediatrics: Psychiatry | D13: April | E13: 0.05 | F13: 88 | G13: 88 | H13: 130 | I13: 0.68 | J13: 0.05 | K13: 27 | L13: 27 | M13: 48 | N13: 0.564
A14: Child Study Center | B14: Pediatrics: Psychiatry | D14: April | E14: 0.25 | F14: 258 | G14: 258 | H14: 722 | I14: 0.358
A15: Child Study Center | B15: Pediatrics: Psychiatry | D15: April | E15: 0.5 | F15: 441 | G15: 441 | H15: 1299 | I15: 0.34
A16: Child Study Center | B16: Pediatrics: Psychiatry | D16: April | E16: 0.75 | F16: 234 | G16: 234 | H16: 2165 | I16: 0.108 | J16: 0.5 | K16: 250 | L16: 274 | M16: 1600 | N16: 0.171
A17: Child Study Center | B17: Pediatrics: Psychiatry | D17: April | J17: 0.13 | K17: 208 | L17: 262 | M17: 333 | N17: 0.788
A18: Child Study Center | B18: Pediatrics: Psychiatry | D18: April | J18: 0.4 | K18: 412 | L18: 448 | M18: 1024 | N18: 0.438
A19: Child Study Center | B19: Pediatrics: Psychiatry | D19: April | J19: 0.13 | K19: 195 | L19: 203 | M19: 416 | N19: 0.488
A20: Child Study Center | B20: Pediatrics: Psychiatry | D20: April | E20: 0.1 | F20: 190 | G20: 190 | H20: 289 | I20: 0.658 | J20: 0.1 | K20: 132 | L20: 136 | M20: 320 | N20: 0.424
A21: Child Study Center | B21: Pediatrics: Psychiatry | D21: April | E21: 0.13 | F21: 428 | G21: 428 | H21: 375 | I21: 1.14 | J21: 0.13 | K21: 332 | L21: 376 | M21: 416 | N21: 0.904
A22: Child Study Center | B22: Pediatrics: Psychiatry | D22: Total | E22: 4.09 | F22: 4668 | G22: 4668 | H22: 11308 | I22: 0.413 | J22: 3.05 | K22: 3891 | L22: 4254 | M22: 8761 | N22: 0.486
A23: Child Study Center | B23: Department Total | D23: Total | E23: 4.09 | F23: 4668 | G23: 4668 | H23: 11308 | I23: 0.413 | J23: 3.05 | K23: 3891 | L23: 4254 | M23: 8761 | N23: 0.486
A24: Dermatology | B24: Dermatology | D24: April | E24: 0.63 | F24: 6985 | G24: 6990 | H24: 4076 | I24: 1.715 | J24: 0.63 | K24: 6262 | L24: 6268 | M24: 3849 | N24: 1.629
A25: Dermatology | B25: Dermatology | D25: April | E25: 0.38 | F25: 2500 | G25: 2490 | H25: 2446 | I25: 1.018 | J25: 0.38 | K25: 2328 | L25: 2324 | M25: 2309 | N25: 1.006
A26: Dermatology | B26: Dermatology | D26: April | E26: 0.5 | F26: 7069 | G26: 6955 | H26: 3261 | I26: 2.133 | J26: 0.63 | K26: 6257 | L26: 6107 | M26: 3849 | N26: 1.587
A27: Dermatology | B27: Dermatology | D27: April | E27: 0.25 | F27: 3672 | G27: 3665 | H27: 1631 | I27: 2.247 | J27: 0.38 | K27: 2546 | L27: 2539 | M27: 2309 | N27: 1.1
A28: Dermatology | B28: Dermatology | D28: April | E28: 0.75 | F28: 8236 | G28: 8105 | H28: 4892 | I28: 1.657 | J28: 0.75 | K28: 7865 | L28: 7773 | M28: 4619 | N28: 1.683
A29: Dermatology | B29: Dermatology | D29: April | E29: 0.5 | F29: 2369 | G29: 2369 | H29: 3261 | I29: 0.726 | J29: 0.5 | K29: 2294 | L29: 2290 | M29: 3079 | N29: 0.744
A30: Dermatology | B30: Dermatology | D30: April | E30: 0.03 | F30: 86 | G30: 86 | H30: 137 | I30: 0.627 | J30: 0.03 | K30: 63 | L30: 63 | M30: 111 | N30: 0.567
A31: Dermatology | B31: Dermatology | D31: April | E31: 0.13 | F31: 866 | G31: 865 | H31: 652 | I31: 1.326 | J31: 0.25 | K31: 2867 | L31: 2861 | M31: 1540 | N31: 1.858
A32: Dermatology | B32: Dermatology | D32: April | J32: 0.25 | K32: 2887 | L32: 2886 | M32: 1540 | N32: 1.874
A33: Dermatology | B33: Dermatology | D33: April | E33: 1 | F33: 3482 | G33: 3478 | H33: 6522 | I33: 0.533 | J33: 1 | K33: 3075 | L33: 3074 | M33: 6158 | N33: 0.499
A34: Dermatology | B34: Dermatology | D34: April | E34: 0.5 | F34: 1080 | G34: 1069 | H34: 3261 | I34: 0.328 | J34: 0.5 | K34: 910 | L34: 906 | M34: 3079 | N34: 0.294
A35: Dermatology | B35: Dermatology | D35: April | E35: 0.25 | F35: 1972 | G35: 1965 | H35: 1631 | I35: 1.205 | J35: 0.28 | K35: 2540 | L35: 2540 | M35: 1724 | N35: 1.473
A36: Dermatology | B36: Dermatology | D36: April | J36: 0.38 | K36: 1357 | L36: 1353 | M36: 1386 | N36: 0.977
A37: Dermatology | B37: Dermatology | D37: April | E37: 0.75 | F37: 8728 | G37: 8703 | H37: 4892 | I37: 1.779 | J37: 0.5 | K37: 8087 | L37: 8068 | M37: 3079 | N37: 2.62
A38: Dermatology | B38: Dermatology | D38: April | E38: 0.25 | F38: 2267 | G38: 2265 | H38: 1631 | I38: 1.389 | J38: 0.25 | K38: 2122 | L38: 2120 | M38: 1540 | N38: 1.377
A39: Dermatology | B39: Dermatology | D39: April | J39: 0.25 | K39: 1534 | L39: 1533 | M39: 1078 | N39: 1.423
A40: Dermatology | B40: Dermatology | D40: April | E40: 0.75 | F40: 5295 | G40: 5277 | H40: 4892 | I40: 1.079 | J40: 0.63 | K40: 2800 | L40: 2796 | M40: 2694 | N40: 1.038
A41: Dermatology | B41: Dermatology | D41: April | E41: 0.38 | F41: 3498 | G41: 3442 | H41: 2446 | I41: 1.407 | J41: 0.38 | K41: 3143 | L41: 3089 | M41: 2309 | N41: 1.337
A42: Dermatology | B42: Dermatology | D42: April | E42: 0.63 | F42: 6401 | G42: 6271 | H42: 4076 | I42: 1.538 | J42: 0.63 | K42: 4796 | L42: 4677 | M42: 2694 | N42: 1.736
A43: Dermatology | B43: Dermatology | D43: April | E43: 0.63 | F43: 2985 | G43: 2979 | H43: 4076 | I43: 0.731 | J43: 0.63 | K43: 3215 | L43: 3204 | M43: 3849 | N43: 0.832
A44: Dermatology | B44: Dermatology | D44: April | E44: 0.75 | F44: 4636 | G44: 4585 | H44: 3913 | I44: 1.172 | J44: 0.75 | K44: 4934 | L44: 4858 | M44: 3695 | N44: 1.315
A45: Dermatology | B45: Dermatology | D45: April | E45: 0.63 | F45: 4950 | G45: 4941 | H45: 4076 | I45: 1.212 | J45: 0.63 | K45: 5534 | L45: 5511 | M45: 3849 | N45: 1.432
A46: Dermatology | B46: Dermatology | D46: April | E46: 0.38 | F46: 2819 | G46: 2814 | H46: 2446 | I46: 1.151 | J46: 0.38 | K46: 3041 | L46: 3040 | M46: 2309 | N46: 1.317
A47: Dermatology | B47: Dermatology | D47: April | E47: 0.5 | F47: 4859 | G47: 4766 | H47: 3261 | I47: 1.461 | J47: 0.5 | K47: 4625 | L47: 4536 | M47: 3079 | N47: 1.473
A48: Dermatology | B48: Dermatology | D48: Total | E48: 10.53 | F48: 84754 | G48: 84080 | H48: 67478 | I48: 1.246 | J48: 11.44 | K48: 85081 | L48: 84415 | M48: 65728 | N48: 1.284
A49: Dermatology | B49: Dermatopathology | D49: April | E49: 0.25 | F49: 96 | G49: 99 | H49: 1924 | I49: 0.051 | J49: 0.25 | K49: 34 | L49: 34 | M49: 1000 | N49: 0.034
A50: Dermatology | B50: Dermatopathology | D50: April | E50: 0.7 | F50: 110 | G50: 110 | H50: 6733 | I50: 0.016 | J50: 0.64 | K50: 186 | L50: 186 | M50: 4620 | N50: 0.04
A51: Dermatology | B51: Dermatopathology | D51: April | E51: 0.8 | F51: 151 | G51: 154 | H51: 6925 | I51: 0.022 | J51: 0.8 | K51: 140 | L51: 140 | M51: 6400 | N51: 0.022
A52: Dermatology | B52: Dermatopathology | D52: April | E52: 0.7 | F52: 602 | G52: 602 | H52: 4040 | I52: 0.149 | J52: 0.7 | K52: 731 | L52: 731 | M52: 5600 | N52: 0.131
A53: Dermatology | B53: Dermatopathology | D53: April | E53: 0.7 | F53: 122 | G53: 122 | H53: 6733 | I53: 0.018 | J53: 0.7 | K53: 152 | L53: 152 | M53: 5600 | N53: 0.027
A54: Dermatology | B54: Dermatopathology | D54: April | E54: 0.8 | F54: 125 | G54: 125 | H54: 6925 | I54: 0.018 | J54: 0.8 | K54: 382 | L54: 382 | M54: 6400 | N54: 0.06
A55: Dermatology | B55: Dermatopathology | D55: Total | E55: 3.95 | F55: 1206 | G55: 1212 | H55: 33279 | I55: 0.036 | J55: 3.89 | K55: 1625 | L55: 1625 | M55: 29620 | N55: 0.055
A56: Dermatology | B56: MOHS Surgery | D56: April | E56: 1 | F56: 15914 | G56: 14105 | H56: 12015 | I56: 1.174 | J56: 1 | K56: 14023 | L56: 12371 | M56: 11748 | N56: 1.053
A57: Dermatology | B57: MOHS Surgery | D57: April | E57: 0.75 | F57: 5811 | G57: 5593 | H57: 5407 | I57: 1.035 | J57: 0.75 | K57: 9257 | L57: 8784 | M57: 8811 | N57: 0.997
A58: Dermatology | B58: MOHS Surgery | D58: April | E58: 0.85 | F58: 12602 | G58: 11888 | H58: 10212 | I58: 1.164 | J58: 0.75 | K58: 11929 | L58: 11174 | M58: 8811 | N58: 1.268
A59: Dermatology | B59: MOHS Surgery | D59: Total | E59: 2.6 | F59: 34328 | G59: 31586 | H59: 27634 | I59: 1.143 | J59: 2.5 | K59: 35209 | L59: 32329 | M59: 29371 | N59: 1.101
A60: Dermatology | B60: Department Total | D60: Total | E60: 17.08 | F60: 120287 | G60: 116877 | H60: 128391 | I60: 0.91 | J60: 17.83 | K60: 121915 | L60: 118369 | M60: 124719 | N60: 0.949
A61: Emergency Medicine | B61: Emergency Medicine | D61: April | E61: 0.85 | F61: 6492 | G61: 6490 | H61: 5092 | I61: 1.275 | J61: 0.85 | K61: 5927 | L61: 5926 | M61: 5168 | N61: 1.147
A62: Emergency Medicine | B62: Emergency Medicine | D62: April | E62: 0.31 | F62: 3953 | G62: 3953 | H62: 1857 | I62: 2.128 | J62: 0.3 | K62: 3883 | L62: 3882 | M62: 1824 | N62: 2.128
A63: Emergency Medicine | B63: Emergency Medicine | D63: April | E63: 0.8 | F63: 3474 | G63: 3474 | H63: 2396 | I63: 1.45
A64: Emergency Medicine | B64: Emergency Medicine | D64: April | E64: 0.52 | F64: 6127 | G64: 6124 | H64: 3115 | I64: 1.966 | J64: 0.52 | K64: 6142 | L64: 6139 | M64: 3162 | N64: 1.942
A65: Emergency Medicine | B65: Emergency Medicine | D65: April | E65: 1 | F65: 6983 | G65: 6977 | H65: 4792 | I65: 1.456 | J65: 1 | K65: 4556 | L65: 4555 | M65: 4256 | N65: 1.07
A66: Emergency Medicine | B66: Emergency Medicine | D66: April | E66: 1 | F66: 8272 | G66: 8271 | H66: 5991 | I66: 1.381 | J66: 1 | K66: 7940 | L66: 7936 | M66: 6080 | N66: 1.305
A67: Emergency Medicine | B67: Emergency Medicine | D67: April | E67: 0.74 | F67: 7014 | G67: 7009 | H67: 4433 | I67: 1.581 | J67: 0.74 | K67: 5751 | L67: 5752 | M67: 4499 | N67: 1.278
A68: Emergency Medicine | B68: Emergency Medicine | D68: April | E68: 0.55 | F68: 3304 | G68: 3304 | H68: 3295 | I68: 1.003
A69: Emergency Medicine | B69: Emergency Medicine | D69: April | E69: 0.7 | F69: 7441 | G69: 7437 | H69: 4193 | I69: 1.774 | J69: 0.7 | K69: 4932 | L69: 4931 | M69: 4256 | N69: 1.159
A70: Emergency Medicine | B70: Emergency Medicine | D70: April | E70: 0.54 | F70: 4139 | G70: 4138 | H70: 3235 | I70: 1.279 | J70: 0.54 | K70: 4898 | L70: 4895 | M70: 3283 | N70: 1.491
A71: Emergency Medicine | B71: Emergency Medicine | D71: April | J71: 1 | K71: 6424 | L71: 6423 | M71: 4256 | N71: 1.509
A72: Emergency Medicine | B72: Emergency Medicine | D72: April | E72: 0.76 | F72: 6928 | G72: 6926 | H72: 4553 | I72: 1.521 | J72: 0.5 | K72: 7954 | L72: 7953 | M72: 3040 | N72: 2.616
A73: Emergency Medicine | B73: Emergency Medicine | D73: April | J73: 1 | K73: 5411 | L73: 5407 | M73: 5472 | N73: 0.988
A74: Emergency Medicine | B74: Emergency Medicine | D74: April | E74: 0.7 | F74: 6476 | G74: 6475 | H74: 4193 | I74: 1.544
A75: Emergency Medicine | B75: Emergency Medicine | D75: April | E75: 0.74 | F75: 4834 | G75: 4833 | H75: 4433 | I75: 1.09 | J75: 0.6 | K75: 5521 | L75: 5521 | M75: 3648 | N75: 1.513
A76: Emergency Medicine | B76: Emergency Medicine | D76: April | E76: 0.4 | F76: 5639 | G76: 5635 | H76: 2396 | I76: 2.352
A77: Emergency Medicine | B77: Emergency Medicine | D77: April | E77: 0.89 | F77: 7445 | G77: 7440 | H77: 5332 | I77: 1.396 | J77: 1 | K77: 6392 | L77: 6391 | M77: 6080 | N77: 1.051
A78: Emergency Medicine | B78: Emergency Medicine | D78: April | E78: 0.44 | F78: 4183 | G78: 4183 | H78: 2636 | I78: 1.587 | J78: 0.44 | K78: 3676 | L78: 3748 | M78: 2675 | N78: 1.401
A79: Emergency Medicine | B79: Emergency Medicine | D79: April | E79: 0.7 | F79: 3773 | G79: 3773 | H79: 4193 | I79: 0.9 | J79: 0.5 | K79: 5411 | L79: 5409 | M79: 3040 | N79: 1.779
A80: Emergency Medicine | B80: Emergency Medicine | D80: April | E80: 0.2 | F80: 1243 | G80: 1243 | H80: 1198 | I80: 1.037 | J80: 0.2 | K80: 1671 | L80: 1671 | M80: 1216 | N80: 1.374
A81: Emergency Medicine | B81: Emergency Medicine | D81: April | E81: 0.6 | F81: 4772 | G81: 4768 | H81: 3594 | I81: 1.327 | J81: 0.6 | K81: 4718 | L81: 4717 | M81: 3648 | N81: 1.293
A82: Emergency Medicine | B82: Emergency Medicine | D82: April | E82: 1 | F82: 8425 | G82: 8424 | H82: 5991 | I82: 1.406 | J82: 1 | K82: 9103 | L82: 9102 | M82: 6080 | N82: 1.497
A83: Emergency Medicine | B83: Emergency Medicine | D83: April | E83: 0.3 | F83: 3616 | G83: 3612 | H83: 1797 | I83: 2.01 | J83: 0.5 | K83: 3848 | L83: 3845 | M83: 3040 | N83: 1.265
A84: Emergency Medicine | B84: Emergency Medicine | D84: April | J84: 1 | K84: 5228 | L84: 5225 | M84: 4256 | N84: 1.228
A85: Emergency Medicine | B85: Emergency Medicine | D85: April | J85: 1 | K85: 4863 | L85: 4860 | M85: 3648 | N85: 1.332
A86: Emergency Medicine | B86: Emergency Medicine | D86: April | E86: 0.5 | F86: 3104 | G86: 3103 | H86: 2995 | I86: 1.036 | J86: 0.3 | K86: 2677 | L86: 2676 | M86: 1824 | N86: 1.467
A87: Emergency Medicine | B87: Emergency Medicine | D87: April | E87: 0.4 | F87: 3625 | G87: 3620 | H87: 2396 | I87: 1.511 | J87: 0.4 | K87: 3374 | L87: 3374 | M87: 2189 | N87: 1.541
A88: Emergency Medicine | B88: Emergency Medicine | D88: April | J88: 1 | K88: 5438 | L88: 5435 | M88: 5472 | N88: 0.993
A89: Emergency Medicine | B89: Emergency Medicine | D89: April | E89: 1 | F89: 11746 | G89: 11742 | H89: 5991 | I89: 1.96 | J89: 1 | K89: 10927 | L89: 10923 | M89: 6080 | N89: 1.796
A90: Emergency Medicine | B90: Emergency Medicine | D90: April | E90: 0.75 | F90: 5360 | G90: 5357 | H90: 4493 | I90: 1.192 | J90: 0.1 | K90: 3411 | L90: 3411 | M90: 608 | N90: 5.61
A91: Emergency Medicine | B91: Emergency Medicine | D91: April | E91: 0.74 | F91: 7585 | G91: 7581 | H91: 4433 | I91: 1.71
A92: Emergency Medicine | B92: Emergency Medicine | D92: April | E92: 0.4 | F92: 3314 | G92: 3312 | H92: 2396 | I92: 1.382 | J92: 0.62 | K92: 2868 | L92: 2868 | M92: 3770 | N92: 0.761
A93: Emergency Medicine | B93: Emergency Medicine | D93: April | E93: 0.59 | F93: 2969 | G93: 2969 | H93: 3534 | I93: 0.84 | J93: 0.44 | K93: 2872 | L93: 2872 | M93: 2675 | N93: 1.074
A94: Emergency Medicine | B94: Emergency Medicine | D94: April | E94: 0.15 | F94: 1612 | G94: 1612 | H94: 899 | I94: 1.794 | J94: 0.15 | K94: 1590 | L94: 1591 | M94: 912 | N94: 1.745
A95: Emergency Medicine | B95: Emergency Medicine | D95: April | J95: 1 | K95: 6002 | L95: 6001 | M95: 4864 | N95: 1.234
A96: Emergency Medicine | B96: Emergency Medicine | D96: April | E96: 0.2 | F96: 1793 | G96: 1793 | H96: 1198 | I96: 1.497 | J96: 0.2 | K96: 1231 | L96: 1229 | M96: 1216 | N96: 1.011
A97: Emergency Medicine | B97: Emergency Medicine | D97: April | J97: 1 | K97: 5966 | L97: 5958 | M97: 5472 | N97: 1.089
A98: Emergency Medicine | B98: Emergency Medicine | D98: April | E98: 0.13 | F98: 3586 | G98: 3585 | H98: 674 | I98: 5.32
A99: Emergency Medicine | B99: Emergency Medicine | D99: April | J99: 1 | K99: 7070 | L99: 7063 | M99: 6080 | N99: 1.162
A100: Emergency Medicine | B100: Emergency Medicine | D100: April | E100: 1 | F100: 5429 | G100: 5425 | H100: 5991 | I100: 0.906 | J100: 1 | K100: 42 | L100: 42 | M100: 1824 | N100: 0.023
A101: Emergency Medicine | B101: Emergency Medicine | D101: April | E101: 1 | F101: 6073 | G101: 6070 | H101: 5391 | I101: 1.126
A102: Emergency Medicine | B102: Emergency Medicine | D102: April | E102: 0.85 | F102: 4158 | G102: 4156 | H102: 5092 | I102: 0.816 | J102: 0.2 | K102: 3031 | L102: 3030 | M102: 1216 | N102: 2.491
A103: Emergency Medicine | B103: Emergency Medicine | D103: April | E103: 0.7 | F103: 4850 | G103: 4848 | H103: 4193 | I103: 1.156 | J103: 0.96 | K103: 5003 | L103: 5001 | M103: 5837 | N103: 0.857
A104: Emergency Medicine | B104: Emergency Medicine | D104: April | E104: 0.49 | F104: 4760 | G104: 4756 | H104: 2935 | I104: 1.62 | J104: 0.15 | K104: 4118 | L104: 4114 | M104: 912 | N104: 4.511
A105: Emergency Medicine | B105: Emergency Medicine | D105: April | J105: 0.9 | K105: 6856 | L105: 6853 | M105: 4378 | N105: 1.565
A106: Emergency Medicine | B106: Emergency Medicine | D106: April | E106: 0.4 | F106: 4394 | G106: 4392 | H106: 2157 | I106: 2.036
A107: Emergency Medicine | B107: Emergency Medicine | D107: April | E107: 1 | F107: 7919 | G107: 7915 | H107: 5991 | I107: 1.321 | J107: 1 | K107: 7189 | L107: 7187 | M107: 6080 | N107: 1.182
A108: Emergency Medicine | B108: Emergency Medicine | D108: April | E108: 0.59 | F108: 5798 | G108: 5794 | H108: 3534 | I108: 1.639 | J108: 0.35 | K108: 4789 | L108: 4786 | M108: 2128 | N108: 2.249
A109: Emergency Medicine | B109: Emergency Medicine | D109: April | E109: 0.7 | F109: 7605 | G109: 7604 | H109: 4193 | I109: 1.813
A110: Emergency Medicine | B110: Emergency Medicine | D110: April | J110: 1 | K110: 5192 | L110: 5191 | M110: 6080 | N110: 0.854
A111: Emergency Medicine | B111: Emergency Medicine | D111: April | E111: 0.44 | F111: 3452 | G111: 3451 | H111: 2636 | I111: 1.309 | J111: 0.15 | K111: 2807 | L111: 2805 | M111: 912 | N111: 3.075
A112: Emergency Medicine | B112: Emergency Medicine | D112: April | E112: 0.4 | F112: 4871 | G112: 4866 | H112: 2396 | I112: 2.031 | J112: 0.03 | K112: 2617 | L112: 2616 | M112: 182 | N112: 14.344
A113: Emergency Medicine | B113: Emergency Medicine | D113: April | E113: 0.89 | F113: 5654 | G113: 5648 | H113: 5332 | I113: 1.059 | J113: 1 | K113: 4915 | L113: 4914 | M113: 6080 | N113: 0.808
A114: Emergency Medicine | B114: Emergency Medicine | D114: April | E114: 0.59 | F114: 4564 | G114: 4560 | H114: 3534 | I114: 1.29 | J114: 0.59 | K114: 3863 | L114: 3860 | M114: 3587 | N114: 1.076
A115: Emergency Medicine | B115: Emergency Medicine | D115: April | J115: 1 | K115: 4213 | L115: 4211 | M115: 4256 | N115: 0.989
A116: Emergency Medicine | B116: Emergency Medicine | D116: April | J116: 1 | K116: 3591 | L116: 3591 | M116: 4256 | N116: 0.844
A117: Emergency Medicine | B117: Emergency Medicine | D117: April | J117: 1 | K117: 6016 | L117: 6013 | M117: 6080 | N117: 0.989
A118: Emergency Medicine | B118: Emergency Medicine | D118: April | E118: 0.38 | F118: 3723 | G118: 3721 | H118: 2276 | I118: 1.635
A119: Emergency Medicine | B119: Emergency Medicine | D119: April | E119: 0.5 | F119: 4586 | G119: 4586 | H119: 2995 | I119: 1.531 | J119: 0.72 | K119: 2414 | L119: 2412 | M119: 4378 | N119: 0.551
A120: Emergency Medicine | B120: Emergency Medicine | D120: April | E120: 0.6 | F120: 6384 | G120: 6383 | H120: 3594 | I120: 1.776 | J120: 0.1 | K120: 4580 | L120: 4580 | M120: 608 | N120: 7.532
A121: Emergency Medicine | B121: Emergency Medicine | D121: April | J121: 1 | K121: 3956 | L121: 3955 | M121: 4864 | N121: 0.813
A122: Emergency Medicine | B122: Emergency Medicine | D122: April | J122: 1 | K122: 6329 | L122: 6327 | M122: 5472 | N122: 1.156
A123: Emergency Medicine | B123: Emergency Medicine | D123: April | E123: 0.5 | F123: 4828 | G123: 4828 | H123: 2995 | I123: 1.612
A124: Emergency Medicine | B124: Emergency Medicine | D124: April | E124: 0.65 | F124: 5846 | G124: 5846 | H124: 3894 | I124: 1.501 | J124: 1 | K124: 6084 | L124: 6082 | M124: 6080 | N124: 1
A125: Emergency Medicine | B125: Emergency Medicine | D125: April | E125: 0.7 | F125: 7401 | G125: 7399 | H125: 4193 | I125: 1.764 | J125: 1 | K125: 7910 | L125: 7907 | M125: 6080 | N125: 1.3
A126: Emergency Medicine | B126: Emergency Medicine | D126: April | E126: 1 | F126: 3538 | G126: 3537 | H126: 5391 | I126: 0.656 | J126: 1 | K126: 3725 | L126: 3725 | M126: 6080 | N126: 0.613
A127: Emergency Medicine | B127: Emergency Medicine | D127: April | E127: 0.67 | F127: 3997 | G127: 3994 | H127: 4014 | I127: 0.995 | J127: 0.33 | K127: 2800 | L127: 2797 | M127: 2007 | N127: 1.394
A128: Emergency Medicine | B128: Emergency Medicine | D128: April | E128: 1 | F128: 1577 | G128: 1576 | H128: 2396 | I128: 0.658
A129: Emergency Medicine | B129: Emergency Medicine | D129: April | E129: 0.4 | F129: 3276 | G129: 3272 | H129: 2396 | I129: 1.366 | J129: 1 | K129: 4609 | L129: 4608 | M129: 6080 | N129: 0.758
A130: Emergency Medicine | B130: Emergency Medicine | D130: April | E130: 0.6 | F130: 5958 | G130: 5955 | H130: 3594 | I130: 1.657 | J130: 1 | K130: 5543 | L130: 5542 | M130: 6080 | N130: 0.911
A131: Emergency Medicine | B131: Emergency Medicine | D131: April | E131: 0.75 | F131: 5836 | G131: 5834 | H131: 4493 | I131: 1.299 | J131: 0.75 | K131: 6291 | L131: 6289 | M131: 4560 | N131: 1.379
A132: Emergency Medicine | B132: Emergency Medicine | D132: April | E132: 1 | F132: 4784 | G132: 4781 | H132: 5391 | I132: 0.887
A133: Emergency Medicine | B133: Emergency Medicine | D133: April | E133: 1 | F133: 4630 | G133: 4627 | H133: 5391 | I133: 0.858 | J133: 0.9 | K133: 8000 | L133: 7998 | M133: 5472 | N133: 1.462
A134: Emergency Medicine | B134: Emergency Medicine | D134: April | E134: 0.13 | F134: 1338 | G134: 1338 | H134: 779 | I134: 1.718 | J134: 0.8 | K134: 735 | L134: 735 | M134: 4864 | N134: 0.151
A135: Emergency Medicine | B135: Emergency Medicine | D135: April | E135: 0.49 | F135: 3804 | G135: 3803 | H135: 2935 | I135: 1.295 | J135: 0.35 | K135: 1929 | L135: 1928 | M135: 2128 | N135: 0.906
A136: Emergency Medicine | B136: Emergency Medicine | D136: April | E136: 1 | F136: 4428 | G136: 4426 | H136: 4792 | I136: 0.923
A137: Emergency Medicine | B137: Emergency Medicine | D137: April | E137: 0.7 | F137: 7445 | G137: 7439 | H137: 4193 | I137: 1.774 | J137: 1 | K137: 8121 | L137: 8120 | M137: 6080 | N137: 1.335
A138: Emergency Medicine | B138: Emergency Medicine | D138: April | E138: 0.7 | F138: 6766 | G138: 6764 | H138: 4193 | I138: 1.613 | J138: 0.25 | K138: 4891 | L138: 4889 | M138: 1520 | N138: 3.216
A139: Emergency Medicine | B139: Emergency Medicine | D139: April | E139: 1 | F139: 4631 | G139: 4628 | H139: 5391 | I139: 0.858 | J139: 1 | K139: 3369 | L139: 3368 | M139: 6080 | N139: 0.554
A140: Emergency Medicine | B140: Emergency Medicine | D140: April | E140: 0.4 | F140: 2095 | G140: 2095 | H140: 2396 | I140: 0.874
A141: Emergency Medicine | B141: Emergency Medicine | D141: April | E141: 0.2 | F141: 2137 | G141: 2136 | H141: 1198 | I141: 1.783
A142: Emergency Medicine | B142: Emergency Medicine | D142: April | E142: 0.25 | F142: 7896 | G142: 7893 | H142: 1498 | I142: 5.271 | J142: 1 | K142: 4709 | L142: 4707 | M142: 6080 | N142: 0.774
A143: Emergency Medicine | B143: Emergency Medicine | D143: April | E143: 0.3 | F143: 2151 | G143: 2150 | H143: 1797 | I143: 1.196 | J143: 0.04 | K143: 3095 | L143: 3094 | M143: 243 | N143: 12.721
A144: Emergency Medicine | B144: Emergency Medicine | D144: April | E144: 1 | F144: 9683 | G144: 9680 | H144: 5991 | I144: 1.616 | J144: 1 | K144: 8821 | L144: 8822 | M144: 6080 | N144: 1.451
A145: Emergency Medicine | B145: Emergency Medicine | D145: April | E145: 1 | F145: 8678 | G145: 8677 | H145: 5991 | I145: 1.448 | J145: 1 | K145: 5531 | L145: 5530 | M145: 6080 | N145: 0.909
A146: Emergency Medicine | B146: Emergency Medicine | D146: April | E146: 1 | F146: 8678 | G146: 8677 | H146: 5991 | I146: 1.449 | J146: 1 | K146: 7545 | L146: 7545 | M146: 6080 | N146: 1.241
A147: Emergency Medicine | B147: Emergency Medicine | D147: April | E147: 0.64 | F147: 5582 | G147: 5580 | H147: 3834 | I147: 1.455 | J147: 0.8 | K147: 5605 | L147: 5601 | M147: 4864 | N147: 1.152
A148: Emergency Medicine | B148: Emergency Medicine | D148: April | E148: 0.58 | F148: 3429 | G148: 3427 | H148: 3475 | I148: 0.986 | J148: 0.03 | K148: 2988 | L148: 2986 | M148: 182 | N148: 16.37
A149: Emergency Medicine | B149: Emergency Medicine | D149: Total | E149: 46.79 | F149: 373859 | G149: 373704 | H149: 268570 | I149: 1.391 | J149: 50.6 | K149: 351495 | L149: 351448 | M149: 285654 | N149: 1.23
A150: Emergency Medicine | B150: General Internal Medicine | D150: April | J150: 0.38 | K150: 651 | L150: 650 | M150: 935 | N150: 0.695
A151: Emergency Medicine | B151: General Internal Medicine | D151: Total | J151: 0.38 | K151: 651 | L151: 650 | M151: 935 | N151: 0.695
A152: Emergency Medicine | B152: Department Total | D152: Total | E152: 46.79 | F152: 373859 | G152: 373704 | H152: 268570 | I152: 1.391 | J152: 50.98 | K152: 352146 | L152: 352098 | M152: 286590 | N152: 1.229
A153: Genetics | B153: Clinical Genetics | D153: April | E153: 0.05 | F153: 135 | G153: 135 | H153: 90 | I153: 1.501 | J153: 0.05 | K153: 217 | L153: 217 | M153: 102 | N153: 2.135
A154: Genetics | B154: Clinical Genetics | D154: April | J154: 1 | K154: 473 | L154: 473 | M154: 813 | N154: 0.582
A155: Genetics | B155: Clinical Genetics | D155: April | E155: 0.5 | F155: 1624 | G155: 1624 | H155: 996 | I155: 1.631 | J155: 0.5 | K155: 1773 | L155: 1773 | M155: 1016 | N155: 1.744
A156: Genetics | B156: Clinical Genetics | D156: April | E156: 1 | F156: 1734 | G156: 1732 | H156: 1992 | I156: 0.869 | J156: 1 | K156: 5 | L156: 5 | M156: 203 | N156: 0.027
A157: Genetics | B157: Clinical Genetics | D157: April | J157: 0.25 | K157: 240 | L157: 240 | M157: 406 | N157: 0.59
A158: Genetics | B158: Clinical Genetics | D158: April | E158: 0.98 | F158: 2054 | G158: 2054 | H158: 1952 | I158: 1.052 | J158: 0.98 | K158: 1934 | L158: 1934 | M158: 1992 | N158: 0.971
A159: Genetics | B159: Clinical Genetics | D159: April | E159: 0.3 | F159: 607 | G159: 607 | H159: 598 | I159: 1.016 | J159: 0.3 | K159: 674 | L159: 674 | M159: 610 | N159: 1.105
A160: Genetics | B160: Clinical Genetics | D160: Total | E160: 2.83 | F160: 6154 | G160: 6152 | H160: 5627 | I160: 1.093 | J160: 4.08 | K160: 5316 | L160: 5316 | M160: 5142 | N160: 1.034
A161: Genetics | B161: Department Total | D161: Total | E161: 2.83 | F161: 6154 | G161: 6152 | H161: 5627 | I161: 1.093 | J161: 4.08 | K161: 5316 | L161: 5316 | M161: 5142 | N161: 1.034
A162: Internal Medicine | B162: Addiction Medicine | D162: April | E162: 0.55 | F162: 603 | G162: 603 | H162: 1590 | I162: 0.379 | J162: 0.43 | K162: 1421 | L162: 1421 | M162: 1635 | N162: 0.869
A163: Internal Medicine | B163: Addiction Medicine | D163: Total | E163: 0.55 | F163: 603 | G163: 603 | H163: 1590 | I163: 0.379 | J163: 0.43 | K163: 1421 | L163: 1421 | M163: 1635 | N163: 0.869
A164: Internal Medicine | B164: Allergy / Immunology | D164: April | E164: 0.37 | F164: 1335 | G164: 1334 | H164: 1343 | I164: 0.994 | J164: 0.39 | K164: 1302 | L164: 1302 | M164: 1411 | N164: 0.923
A165: Internal Medicine | B165: Allergy / Immunology | D165: April | J165: 1 | K165: 1775 | L165: 1769 | M165: 3256 | N165: 0.543
A166: Internal Medicine | B166: Allergy / Immunology | D166: April | E166: 0.73 | F166: 2400 | G166: 2397 | H166: 2649 | I166: 0.905 | J166: 1 | K166: 2411 | L166: 2404 | M166: 3618 | N166: 0.665
A167: Internal Medicine | B167: Allergy / Immunology | D167: April | J167: 0.27 | K167: 408 | L167: 408 | M167: 879 | N167: 0.464
A168: Internal Medicine | B168: Allergy / Immunology | D168: April | E168: 1 | F168: 991 | G168: 983 | H168: 2177 | I168: 0.451
A169: Internal Medicine | B169: Allergy / Immunology | D169: April | E169: 0.33 | F169: 1331 | G169: 1331 | H169: 1198 | I169: 1.112 | J169: 0.27 | K169: 1212 | L169: 1211 | M169: 977 | N169: 1.24
A170: Internal Medicine | B170: Allergy / Immunology | D170: April | E170: 0.18 | F170: 1419 | G170: 1419 | H170: 653 | I170: 2.172 | J170: 0.25 | K170: 1245 | L170: 1243 | M170: 904 | N170: 1.374
A171: Internal Medicine | B171: Allergy / Immunology | D171: April | E171: 1 | F171: 3476 | G171: 3475 | H171: 3629 | I171: 0.957 | J171: 1 | K171: 3021 | L171: 3021 | M171: 3618 | N171: 0.835
A172: Internal Medicine | B172: Allergy / Immunology | D172: Total | E172: 3.61 | F172: 10952 | G172: 10938 | H172: 11649 | I172: 0.939 | J172: 4.18 | K172: 11374 | L172: 11358 | M172: 14662 | N172: 0.775
A173: Internal Medicine | B173: Cardiology: Electrophysiology | D173: April | E173: 0.6 | F173: 3238 | G173: 3178 | H173: 5238 | I173: 0.607 | J173: 0.6 | K173: 3149 | L173: 3111 | M173: 5245 | N173: 0.593
A174: Internal Medicine | B174: Cardiology: Electrophysiology | D174: April | E174: 1 | F174: 6886 | G174: 6783 | H174: 8731 | I174: 0.777 | J174: 1 | K174: 7913 | L174: 7611 | M174: 8742 | N174: 0.871
A175: Internal Medicine | B175: Cardiology: Electrophysiology | D175: April | E175: 1 | F175: 9006 | G175: 8808 | H175: 8731 | I175: 1.009 | J175: 1 | K175: 10141 | L175: 9869 | M175: 8742 | N175: 1.129
A176: Internal Medicine | B176: Cardiology: Electrophysiology | D176: April | E176: 1 | F176: 4903 | G176: 4543 | H176: 8731 | I176: 0.52
A177: Internal Medicine | B177: Cardiology: Electrophysiology | D177: April | E177: 0.9 | F177: 7203 | G177: 7065 | H177: 7858 | I177: 0.899 | J177: 0.9 | K177: 7356 | L177: 7285 | M177: 7868 | N177: 0.926
A178: Internal Medicine | B178: Cardiology: Electrophysiology | D178: April | E178: 0.4 | F178: 3565 | G178: 3517 | H178: 3492 | I178: 1.007 | J178: 0.4 | K178: 3276 | L178: 3222 | M178: 3497 | N178: 0.921
A179: Internal Medicine | B179: Cardiology: Electrophysiology | D179: April | E179: 0.6 | F179: 5718 | G179: 5374 | H179: 5238 | I179: 1.026 | J179: 0.6 | K179: 5991 | L179: 5508 | M179: 5245 | N179: 1.05
A180: Internal Medicine | B180: Cardiology: Electrophysiology | D180: April | E180: 0.8 | F180: 10597 | G180: 10521 | H180: 6985 | I180: 1.506 | J180: 0.8 | K180: 9403 | L180: 9304 | M180: 6994 | N180: 1.33
A181: Internal Medicine | B181: Cardiology: Electrophysiology | D181: April | E181: 0.4 | F181: 1363 | G181: 1354 | H181: 3492 | I181: 0.388 | J181: 0.4 | K181: 773 | L181: 769 | M181: 3147 | N181: 0.244
A182: Internal Medicine | B182: Cardiology: Electrophysiology | D182: April | E182: 0.5 | F182: 5710 | G182: 5709 | H182: 4365 | I182: 1.308 | J182: 0.4 | K182: 4558 | L182: 4556 | M182: 2798 | N182: 1.629
A183: Internal Medicine | B183: Cardiology: Electrophysiology | D183: April | E183: 1 | F183: 9904 | G183: 9687 | H183: 8731 | I183: 1.109 | J183: 1 | K183: 9994 | L183: 9711 | M183: 8742 | N183: 1.111
A184: Internal Medicine | B184: Cardiology: Electrophysiology | D184: April | E184: 1 | F184: 2315 | G184: 2315 | H184: 7858 | I184: 0.295 | J184: 0.9 | K184: 4561 | L184: 4561 | M184: 6295 | N184: 0.725
A185: Internal Medicine | B185: Cardiology: Electrophysiology | D185: April | E185: 0.6 | F185: 4196 | G185: 4156 | H185: 5238 | I185: 0.793 | J185: 0.6 | K185: 4100 | L185: 4074 | M185: 5245 | N185: 0.777
A186: Internal Medicine | B186: Cardiology: Electrophysiology | D186: April | E186: 0.15 | F186: 135 | G186: 135 | H186: 131 | I186: 1.031
A187: Internal Medicine | B187: Cardiology: Electrophysiology | D187: April | E187: 1 | F187: 9738 | G187: 9405 | H187: 8731 | I187: 1.077 | J187: 1 | K187: 10086 | L187: 9740 | M187: 8742 | N187: 1.114
A188: Internal Medicine | B188: Cardiology: Electrophysiology | D188: Total | E188: 10.95 | F188: 84476 | G188: 82548 | H188: 93550 | I188: 0.882 | J188: 9.6 | K188: 81300 | L188: 79321 | M188: 81304 | N188: 0.976
A189: Internal Medicine | B189: Cardiology: General | D189: April | E189: 0.7 | F189: 421 | G189: 421 | H189: 435 | I189: 0.968 | J189: 0.6 | K189: 293 | L189: 293 | M189: 754 | N189: 0.389
A190: Internal Medicine | B190: Cardiology: General | D190: April | J190: 0.7 | K190: 3107 | L190: 3107 | M190: 3080 | N190: 1.009
A191: Internal Medicine | B191: Cardiology: General | D191: April | E191: 0.7 | F191: 582 | G191: 582 | H191: 3046 | I191: 0.191 | J191: 0.25 | K191: 1434 | L191: 1433 | M191: 1572 | N191: 0.912
A192: Internal Medicine | B192: Cardiology: General | D192: April | E192: 0.4 | F192: 1398 | G192: 1396 | H192: 2487 | I192: 0.561 | J192: 0.4 | K192: 686 | L192: 684 | M192: 2012 | N192: 0.34
A193: Internal Medicine | B193: Cardiology: General | D193: April | E193: 0.8 | F193: 2671 | G193: 2671 | H193: 4974 | I193: 0.537 | J193: 0.8 | K193: 2461 | L193: 2461 | M193: 5029 | N193: 0.489
A194: Internal Medicine | B194: Cardiology: General | D194: April | E194: 0.7 | F194: 365 | G194: 365 | H194: 435 | I194: 0.838
A195: Internal Medicine | B195: Cardiology: General | D195: April | E195: 0.2 | F195: 190 | G195: 190 | H195: 1119 | I195: 0.17 | J195: 0.2 | K195: 128 | L195: 128 | M195: 1132 | N195: 0.113
A196: Internal Medicine | B196: Cardiology: General | D196: April | E196: 1 | F196: 9693 | G196: 9685 | H196: 6217 | I196: 1.558 | J196: 1 | K196: 7246 | L196: 7240 | M196: 5029 | N196: 1.44
A197: Internal Medicine | B197: Cardiology: General | D197: April | E197: 0.2 | F197: 1685 | G197: 1685 | H197: 1119 | I197: 1.505
A198: Internal Medicine | B198: Cardiology: General | D198: April | E198: 1 | F198: 384 | G198: 384 | H198: 622 | I198: 0.618 | J198: 0.8 | K198: 1087 | L198: 1087 | M198: 1006 | N198: 1.081
A199: Internal Medicine | B199: Cardiology: General | D199: April | E199: 0.8 | F199: 124 | G199: 124 | H199: 497 | I199: 0.249
A200: Internal Medicine | B200: Cardiology: General | D200: April | J200: 0.5 | K200: 1250 | L200: 1250 | M200: 2515 | N200: 0.497
... 1699 more rows

Sheet UHC Data - YTD Aug (hidden)
A1: Service_Area | B1: Division | C1: Provider | D1: Prov_ID | E1: NPI | F1: Prov_Type | G1: Specialty | H1: Degree | I1: FY | J1: UHC_wRVU | K1: cFTE_FYTD_Avg | L1: Benchmark25 | M1: Benchmark25_Adj | N1: Benchmark50 | O1: Benchmark50_Adj | P1: Benchmark63 | Q1: Benchmark63_Adj | R1: Benchmark75 | S1: Benchmark75_Adj | T1: Benchmark90 | U1: Benchmark90_Adj
A2: Yale Medicine | B2: Anesthesiology | F2: Anesthesiologist | G2: Anesthesiology | H2: MD | I2: 2024 | J2: 122.4534 | K2: 1 | L2: 0 | M2: 0 | N2: 0 | O2: 0 | P2: 0 | Q2: 0 | R2: 0 | S2: 0 | T2: 0 | U2: 0
A3: Yale Medicine | B3: Anesthesiology | F3: Physician/Anesthesiologist | G3: Anesthesiology | H3: MD | I3: 2024 | J3: 24.5931 | K3: 0.85 | L3: 0 | M3: 0 | N3: 0 | O3: 0 | P3: 0 | Q3: 0 | R3: 0 | S3: 0 | T3: 0 | U3: 0
A4: Yale Medicine | B4: Anesthesiology | F4: Anesthesiologist | G4: Anesthesiology | H4: MD | I4: 2024 | J4: 194.2495 | K4: 1 | L4: 0 | M4: 0 | N4: 0 | O4: 0 | P4: 0 | Q4: 0 | R4: 0 | S4: 0 | T4: 0 | U4: 0
A5: Yale Medicine | B5: Anesthesiology | F5: Anesthesiologist | G5: Anesthesiology | H5: MD | I5: 2024 | J5: 87.2822 | K5: 0 | L5: 0 | M5: 0 | N5: 0 | O5: 0 | P5: 0 | Q5: 0 | R5: 0 | S5: 0 | T5: 0 | U5: 0
A6: Yale Medicine | B6: Anesthesiology | F6: Anesthesiologist | G6: Anesthesiology | H6: MD | I6: 2024 | J6: 51.4612 | K6: 1 | L6: 0 | M6: 0 | N6: 0 | O6: 0 | P6: 0 | Q6: 0 | R6: 0 | S6: 0 | T6: 0 | U6: 0
A7: Yale Medicine | B7: Anesthesiology | F7: Anesthesiologist | G7: Anesthesiology | H7: MD | I7: 2024 | J7: 39.4282 | K7: 1 | L7: 0 | M7: 0 | N7: 0 | O7: 0 | P7: 0 | Q7: 0 | R7: 0 | S7: 0 | T7: 0 | U7: 0
A8: Yale Medicine | B8: Anesthesiology | F8: Anesthesiologist | G8: Anesthesiology | H8: MD | I8: 2024 | J8: 10.289 | K8: 1 | L8: 0 | M8: 0 | N8: 0 | O8: 0 | P8: 0 | Q8: 0 | R8: 0 | S8: 0 | T8: 0 | U8: 0
A9: Yale Medicine | B9: Anesthesiology | F9: Anesthesiologist | G9: Anesthesiology | H9: MD | I9: 2024 | J9: 18.2807 | K9: 1 | L9: 0 | M9: 0 | N9: 0 | O9: 0 | P9: 0 | Q9: 0 | R9: 0 | S9: 0 | T9: 0 | U9: 0
A10: Yale Medicine | B10: Anesthesiology | F10: Anesthesiologist | G10: Anesthesiology | H10: MD | I10: 2024 | J10: 14.1846 | K10: 0 | L10: 0 | M10: 0 | N10: 0 | O10: 0 | P10: 0 | Q10: 0 | R10: 0 | S10: 0 | T10: 0 | U10: 0
A11: Yale Medicine | B11: Anesthesiology | F11: Nurse Anesthetist | G11: Anesthesiology | H11: CRNA | I11: 2024 | J11: 0 | K11: 0 | L11: 0 | M11: 0 | N11: 0 | O11: 0 | P11: 0 | Q11: 0 | R11: 0 | S11: 0 | T11: 0 | U11: 0
A12: Yale Medicine | B12: Anesthesiology | F12: Anesthesiologist | G12: Anesthesiology | H12: MD | I12: 2024 | J12: 63.3425 | K12: 1 | L12: 0 | M12: 0 | N12: 0 | O12: 0 | P12: 0 | Q12: 0 | R12: 0 | S12: 0 | T12: 0 | U12: 0
A13: Yale Medicine | B13: Anesthesiology | F13: Anesthesiologist | G13: Anesthesiology | H13: MD | I13: 2024 | J13: 115.5312 | K13: 1 | L13: 0 | M13: 0 | N13: 0 | O13: 0 | P13: 0 | Q13: 0 | R13: 0 | S13: 0 | T13: 0 | U13: 0
A14: Yale Medicine | B14: Anesthesiology | F14: Anesthesiologist | G14: Anesthesiology | H14: MD | I14: 2024 | J14: 417.4889 | K14: 1 | L14: 0 | M14: 0 | N14: 0 | O14: 0 | P14: 0 | Q14: 0 | R14: 0 | S14: 0 | T14: 0 | U14: 0
A15: Yale Medicine | B15: Anesthesiology | F15: Anesthesiologist | G15: Anesthesiology | H15: MD | I15: 2024 | J15: 2.2603 | K15: 0 | L15: 0 | M15: 0 | N15: 0 | O15: 0 | P15: 0 | Q15: 0 | R15: 0 | S15: 0 | T15: 0 | U15: 0
A16: Yale Medicine | B16: Anesthesiology | F16: Anesthesiologist | G16: Anesthesiology | H16: DO | I16: 2024 | J16: 83.7336 | K16: 0 | L16: 0 | M16: 0 | N16: 0 | O16: 0 | P16: 0 | Q16: 0 | R16: 0 | S16: 0 | T16: 0 | U16: 0
A17: Yale Medicine | B17: Anesthesiology | F17: Anesthesiologist | G17: Anesthesiology | H17: MD | I17: 2024 | J17: 8.8145 | K17: 0 | L17: 0 | M17: 0 | N17: 0 | O17: 0 | P17: 0 | Q17: 0 | R17: 0 | S17: 0 | T17: 0 | U17: 0
A18: Yale Medicine | B18: Anesthesiology | F18: Anesthesiologist | G18: Anesthesiology | H18: MD | I18: 2024 | J18: 93.2421 | K18: 1 | L18: 0 | M18: 0 | N18: 0 | O18: 0 | P18: 0 | Q18: 0 | R18: 0 | S18: 0 | T18: 0 | U18: 0
A19: Yale Medicine | B19: Anesthesiology | F19: Anesthesiologist | G19: Anesthesiology | H19: MD | I19: 2024 | J19: 36.7373 | K19: 1 | L19: 0 | M19: 0 | N19: 0 | O19: 0 | P19: 0 | Q19: 0 | R19: 0 | S19: 0 | T19: 0 | U19: 0
A20: Yale Medicine | B20: Anesthesiology | F20: Anesthesiologist | G20: Anesthesiology | H20: MD | I20: 2024 | J20: 327.6672 | K20: 1 | L20: 0 | M20: 0 | N20: 0 | O20: 0 | P20: 0 | Q20: 0 | R20: 0 | S20: 0 | T20: 0 | U20: 0
A21: Yale Medicine | B21: Anesthesiology | F21: Nurse Anesthetist | G21: Anesthesiology | H21: CRNA | I21: 2024 | J21: 0 | K21: 0 | L21: 0 | M21: 0 | N21: 0 | O21: 0 | P21: 0 | Q21: 0 | R21: 0 | S21: 0 | T21: 0 | U21: 0
A22: Yale Medicine | B22: Anesthesiology | F22: Anesthesiologist | G22: Anesthesiology | H22: MD | I22: 2024 | J22: 23.901 | K22: 1 | L22: 0 | M22: 0 | N22: 0 | O22: 0 | P22: 0 | Q22: 0 | R22: 0 | S22: 0 | T22: 0 | U22: 0
A23: Yale Medicine | B23: Anesthesiology | F23: Anesthesiologist | G23: Anesthesiology | H23: MD | I23: 2024 | J23: 135.2615 | K23: 1 | L23: 0 | M23: 0 | N23: 0 | O23: 0 | P23: 0 | Q23: 0 | R23: 0 | S23: 0 | T23: 0 | U23: 0
A24: Yale Medicine | B24: Anesthesiology | F24: Nurse Practitioner | G24: Anesthesiology | H24: NP | I24: 2024 | J24: 195.06 | K24: 0 | L24: 0 | M24: 0 | N24: 0 | O24: 0 | P24: 0 | Q24: 0 | R24: 0 | S24: 0 | T24: 0 | U24: 0
A25: Yale Medicine | B25: Anesthesiology | F25: Anesthesiologist | G25: Anesthesiology | H25: MD | I25: 2024 | J25: 78.0327 | K25: 1 | L25: 0 | M25: 0 | N25: 0 | O25: 0 | P25: 0 | Q25: 0 | R25: 0 | S25: 0 | T25: 0 | U25: 0
A26: Yale Medicine | B26: Anesthesiology | F26: Anesthesiologist | G26: Anesthesiology | H26: MD | I26: 2024 | J26: 316.1647 | K26: 0.68 | L26: 0 | M26: 0 | N26: 0 | O26: 0 | P26: 0 | Q26: 0 | R26: 0 | S26: 0 | T26: 0 | U26: 0
A27: Yale Medicine | B27: Anesthesiology | F27: Nurse Anesthetist | G27: Anesthesiology | H27: CRNA | I27: 2024 | J27: 1 | K27: 0 | L27: 0 | M27: 0 | N27: 0 | O27: 0 | P27: 0 | Q27: 0 | R27: 0 | S27: 0 | T27: 0 | U27: 0
A28: Yale Medicine | B28: Anesthesiology | F28: Physician/Anesthesiologist | G28: Anesthesiology | H28: MD | I28: 2024 | J28: 278.4371 | K28: 0.95 | L28: 0 | M28: 0 | N28: 0 | O28: 0 | P28: 0 | Q28: 0 | R28: 0 | S28: 0 | T28: 0 | U28: 0
A29: Yale Medicine | B29: Anesthesiology | F29: Anesthesiologist | G29: Anesthesiology | H29: MD | I29: 2024 | J29: 61.3934 | K29: 1 | L29: 0 | M29: 0 | N29: 0 | O29: 0 | P29: 0 | Q29: 0 | R29: 0 | S29: 0 | T29: 0 | U29: 0
A30: Yale Medicine | B30: Anesthesiology | F30: Anesthesiologist | G30: Anesthesiology | H30: MD | I30: 2024 | J30: 259.8484 | K30: 1 | L30: 0 | M30: 0 | N30: 0 | O30: 0 | P30: 0 | Q30: 0 | R30: 0 | S30: 0 | T30: 0 | U30: 0
A31: Yale Medicine | B31: Anesthesiology | F31: Anesthesiologist | G31: Anesthesiology | H31: MD | I31: 2024 | J31: 66.0293 | K31: 1 | L31: 0 | M31: 0 | N31: 0 | O31: 0 | P31: 0 | Q31: 0 | R31: 0 | S31: 0 | T31: 0 | U31: 0
A32: Yale Medicine | B32: Anesthesiology | F32: Anesthesiologist | G32: Anesthesiology | H32: MD | I32: 2024 | J32: 49.4526 | K32: 1 | L32: 0 | M32: 0 | N32: 0 | O32: 0 | P32: 0 | Q32: 0 | R32: 0 | S32: 0 | T32: 0 | U32: 0
A33: Yale Medicine | B33: Anesthesiology | F33: Anesthesiologist | G33: Anesthesiology | H33: MD | I33: 2024 | J33: 31.3655 | K33: 1 | L33: 0 | M33: 0 | N33: 0 | O33: 0 | P33: 0 | Q33: 0 | R33: 0 | S33: 0 | T33: 0 | U33: 0
A34: Yale Medicine | B34: Anesthesiology | F34: Anesthesiologist | G34: Anesthesiology | H34: MD | I34: 2024 | J34: 27.729 | K34: 0.2 | L34: 0 | M34: 0 | N34: 0 | O34: 0 | P34: 0 | Q34: 0 | R34: 0 | S34: 0 | T34: 0 | U34: 0
A35: Yale Medicine | B35: Anesthesiology | F35: Anesthesiologist | G35: Anesthesiology | H35: MD | I35: 2024 | J35: 361.2635 | K35: 1 | L35: 0 | M35: 0 | N35: 0 | O35: 0 | P35: 0 | Q35: 0 | R35: 0 | S35: 0 | T35: 0 | U35: 0
A36: Yale Medicine | B36: Anesthesiology | F36: Anesthesiologist | G36: Anesthesiology | H36: MD | I36: 2024 | J36: 622.8658 | K36: 1 | L36: 0 | M36: 0 | N36: 0 | O36: 0 | P36: 0 | Q36: 0 | R36: 0 | S36: 0 | T36: 0 | U36: 0
A37: Yale Medicine | B37: Anesthesiology | F37: Anesthesiologist | G37: Anesthesiology | H37: DO | I37: 2024 | J37: 66.5904 | K37: 1 | L37: 0 | M37: 0 | N37: 0 | O37: 0 | P37: 0 | Q37: 0 | R37: 0 | S37: 0 | T37: 0 | U37: 0
A38: Yale Medicine | B38: Anesthesiology | F38: Anesthesiologist | G38: Anesthesiology | H38: MD | I38: 2024 | J38: 161.0339 | K38: 0.25 | L38: 0 | M38: 0 | N38: 0 | O38: 0 | P38: 0 | Q38: 0 | R38: 0 | S38: 0 | T38: 0 | U38: 0
A39: Yale Medicine | B39: Anesthesiology | F39: Anesthesiologist | G39: Anesthesiology | H39: MD | I39: 2024 | J39: 77.2997 | K39: 1 | L39: 0 | M39: 0 | N39: 0 | O39: 0 | P39: 0 | Q39: 0 | R39: 0 | S39: 0 | T39: 0 | U39: 0
A40: Yale Medicine | B40: Anesthesiology | F40: Anesthesiologist | G40: Anesthesiology | H40: MD | I40: 2024 | J40: 119.1741 | K40: 0.68 | L40: 0 | M40: 0 | N40: 0 | O40: 0 | P40: 0 | Q40: 0 | R40: 0 | S40: 0 | T40: 0 | U40: 0
A41: Yale Medicine | B41: Anesthesiology | F41: Anesthesiologist | G41: Anesthesiology | H41: MD | I41: 2024 | J41: 342.8741 | K41: 1 | L41: 0 | M41: 0 | N41: 0 | O41: 0 | P41: 0 | Q41: 0 | R41: 0 | S41: 0 | T41: 0 | U41: 0
A42: Yale Medicine | B42: Anesthesiology | F42: Anesthesiologist | G42: Anesthesiology | H42: MD | I42: 2024 | J42: 70.4342 | K42: 1 | L42: 0 | M42: 0 | N42: 0 | O42: 0 | P42: 0 | Q42: 0 | R42: 0 | S42: 0 | T42: 0 | U42: 0
A43: Yale Medicine | B43: Anesthesiology | F43: Anesthesiologist | G43: Anesthesiology | H43: MD | I43: 2024 | J43: 16.0265 | K43: 0 | L43: 0 | M43: 0 | N43: 0 | O43: 0 | P43: 0 | Q43: 0 | R43: 0 | S43: 0 | T43: 0 | U43: 0
A44: Yale Medicine | B44: Anesthesiology | F44: Anesthesiologist | G44: Anesthesiology | H44: MD | I44: 2024 | J44: 80.0042 | K44: 1 | L44: 0 | M44: 0 | N44: 0 | O44: 0 | P44: 0 | Q44: 0 | R44: 0 | S44: 0 | T44: 0 | U44: 0
A45: Yale Medicine | B45: Anesthesiology | F45: Anesthesiologist | G45: Anesthesiology | H45: MD | I45: 2024 | J45: 17.4203 | K45: 0.9 | L45: 0 | M45: 0 | N45: 0 | O45: 0 | P45: 0 | Q45: 0 | R45: 0 | S45: 0 | T45: 0 | U45: 0
A46: Yale Medicine | B46: Anesthesiology | F46: Anesthesiologist | G46: Anesthesiology | H46: MD | I46: 2024 | J46: 51.9214 | K46: 0.5 | L46: 0 | M46: 0 | N46: 0 | O46: 0 | P46: 0 | Q46: 0 | R46: 0 | S46: 0 | T46: 0 | U46: 0
A47: Yale Medicine | B47: Anesthesiology | F47: Anesthesiologist | G47: Anesthesiology | H47: MD | I47: 2024 | J47: 243.4807 | K47: 1 | L47: 0 | M47: 0 | N47: 0 | O47: 0 | P47: 0 | Q47: 0 | R47: 0 | S47: 0 | T47: 0 | U47: 0
A48: Yale Medicine | B48: Anesthesiology | F48: Anesthesiologist | G48: Anesthesiology | H48: MD | I48: 2024 | J48: 72.0208 | K48: 0.1 | L48: 0 | M48: 0 | N48: 0 | O48: 0 | P48: 0 | Q48: 0 | R48: 0 | S48: 0 | T48: 0 | U48: 0
A49: Yale Medicine | B49: Anesthesiology | F49: Anesthesiologist | G49: Anesthesiology | H49: MD | I49: 2024 | J49: 99.8867 | K49: 1 | L49: 0 | M49: 0 | N49: 0 | O49: 0 | P49: 0 | Q49: 0 | R49: 0 | S49: 0 | T49: 0 | U49: 0
A50: Yale Medicine | B50: Anesthesiology | F50: Anesthesiologist | G50: Anesthesiology | H50: MD | I50: 2024 | J50: 49.454 | K50: 1 | L50: 0 | M50: 0 | N50: 0 | O50: 0 | P50: 0 | Q50: 0 | R50: 0 | S50: 0 | T50: 0 | U50: 0
A51: Yale Medicine | B51: Anesthesiology | F51: Anesthesiologist | G51: Anesthesiology | H51: MD | I51: 2024 | J51: 8.3119 | K51: 0 | L51: 0 | M51: 0 | N51: 0 | O51: 0 | P51: 0 | Q51: 0 | R51: 0 | S51: 0 | T51: 0 | U51: 0
A52: Yale Medicine | B52: Anesthesiology | F52: Anesthesiologist | G52: Anesthesiology | H52: MD | I52: 2024 | J52: 88.944 | K52: 0.85 | L52: 0 | M52: 0 | N52: 0 | O52: 0 | P52: 0 | Q52: 0 | R52: 0 | S52: 0 | T52: 0 | U52: 0
A53: Yale Medicine | B53: Anesthesiology | F53: Anesthesiologist | G53: Anesthesiology | H53: MD | I53: 2024 | J53: 7.589 | K53: 1 | L53: 0 | M53: 0 | N53: 0 | O53: 0 | P53: 0 | Q53: 0 | R53: 0 | S53: 0 | T53: 0 | U53: 0
A54: Yale Medicine | B54: Anesthesiology | F54: Anesthesiologist | G54: Anesthesiology | H54: MD | I54: 2024 | J54: 63.307 | K54: 1 | L54: 0 | M54: 0 | N54: 0 | O54: 0 | P54: 0 | Q54: 0 | R54: 0 | S54: 0 | T54: 0 | U54: 0
A55: Yale Medicine | B55: Anesthesiology | F55: Anesthesiologist | G55: Anesthesiology | H55: MD | I55: 2024 | J55: 37.8864 | K55: 1 | L55: 0 | M55: 0 | N55: 0 | O55: 0 | P55: 0 | Q55: 0 | R55: 0 | S55: 0 | T55: 0 | U55: 0
A56: Yale Medicine | B56: Anesthesiology | F56: Anesthesiologist | G56: Anesthesiology | H56: MD | I56: 2024 | J56: 13.89 | K56: 0 | L56: 0 | M56: 0 | N56: 0 | O56: 0 | P56: 0 | Q56: 0 | R56: 0 | S56: 0 | T56: 0 | U56: 0
A57: Yale Medicine | B57: Anesthesiology | F57: Anesthesiologist | G57: Anesthesiology | H57: MD | I57: 2024 | J57: 281.9982 | K57: 1 | L57: 0 | M57: 0 | N57: 0 | O57: 0 | P57: 0 | Q57: 0 | R57: 0 | S57: 0 | T57: 0 | U57: 0
A58: Yale Medicine | B58: Anesthesiology | F58: Anesthesiologist | G58: Anesthesiology | H58: MD | I58: 2024 | J58: 28.5565 | K58: 1 | L58: 0 | M58: 0 | N58: 0 | O58: 0 | P58: 0 | Q58: 0 | R58: 0 | S58: 0 | T58: 0 | U58: 0
A59: Yale Medicine | B59: Anesthesiology | F59: Anesthesiologist | G59: Anesthesiology | H59: MD | I59: 2024 | J59: 22.6662 | K59: 0 | L59: 0 | M59: 0 | N59: 0 | O59: 0 | P59: 0 | Q59: 0 | R59: 0 | S59: 0 | T59: 0 | U59: 0
A60: Yale Medicine | B60: Anesthesiology | F60: Anesthesiologist | G60: Anesthesiology | H60: MD | I60: 2024 | J60: 119.3146 | K60: 1 | L60: 0 | M60: 0 | N60: 0 | O60: 0 | P60: 0 | Q60: 0 | R60: 0 | S60: 0 | T60: 0 | U60: 0
A61: Yale Medicine | B61: Anesthesiology | F61: Anesthesiologist | G61: Anesthesiology | H61: MD | I61: 2024 | J61: 18.6851 | K61: 0.5 | L61: 0 | M61: 0 | N61: 0 | O61: 0 | P61: 0 | Q61: 0 | R61: 0 | S61: 0 | T61: 0 | U61: 0
A62: Yale Medicine | B62: Anesthesiology | F62: Anesthesiologist | G62: Anesthesiology | H62: DO | I62: 2024 | J62: 4.0115 | K62: 1 | L62: 0 | M62: 0 | N62: 0 | O62: 0 | P62: 0 | Q62: 0 | R62: 0 | S62: 0 | T62: 0 | U62: 0
A63: Yale Medicine | B63: Anesthesiology | F63: Anesthesiologist | G63: Anesthesiology | H63: DO | I63: 2024 | J63: 73.7309 | K63: 1 | L63: 0 | M63: 0 | N63: 0 | O63: 0 | P63: 0 | Q63: 0 | R63: 0 | S63: 0 | T63: 0 | U63: 0
A64: Yale Medicine | B64: Anesthesiology | F64: Anesthesiologist | G64: Anesthesiology | H64: MD | I64: 2024 | J64: 90.4252 | K64: 0.85 | L64: 0 | M64: 0 | N64: 0 | O64: 0 | P64: 0 | Q64: 0 | R64: 0 | S64: 0 | T64: 0 | U64: 0
A65: Yale Medicine | B65: Anesthesiology | F65: Anesthesiologist | G65: Anesthesiology | H65: MD | I65: 2024 | J65: 20.3776 | K65: 1 | L65: 0 | M65: 0 | N65: 0 | O65: 0 | P65: 0 | Q65: 0 | R65: 0 | S65: 0 | T65: 0 | U65: 0
A66: Yale Medicine | B66: Anesthesiology | F66: Anesthesiologist | G66: Anesthesiology | H66: MD | I66: 2024 | J66: 22.217 | K66: 0 | L66: 0 | M66: 0 | N66: 0 | O66: 0 | P66: 0 | Q66: 0 | R66: 0 | S66: 0 | T66: 0 | U66: 0
A67: Yale Medicine | B67: Anesthesiology | F67: Anesthesiologist | G67: Anesthesiology | H67: MD | I67: 2024 | J67: 31.398 | K67: 1 | L67: 0 | M67: 0 | N67: 0 | O67: 0 | P67: 0 | Q67: 0 | R67: 0 | S67: 0 | T67: 0 | U67: 0
A68: Yale Medicine | B68: Anesthesiology | F68: Anesthesiologist | G68: Anesthesiology | H68: MD | I68: 2024 | J68: 58.9518 | K68: 0 | L68: 0 | M68: 0 | N68: 0 | O68: 0 | P68: 0 | Q68: 0 | R68: 0 | S68: 0 | T68: 0 | U68: 0
A69: Yale Medicine | B69: Anesthesiology | F69: Nurse Practitioner | G69: Anesthesiology | H69: APRN | I69: 2024 | J69: 225.52 | K69: 0 | L69: 0 | M69: 0 | N69: 0 | O69: 0 | P69: 0 | Q69: 0 | R69: 0 | S69: 0 | T69: 0 | U69: 0
A70: Yale Medicine | B70: Anesthesiology | F70: Anesthesiologist | G70: Anesthesiology | H70: MD | I70: 2024 | J70: 97.5356 | K70: 1 | L70: 0 | M70: 0 | N70: 0 | O70: 0 | P70: 0 | Q70: 0 | R70: 0 | S70: 0 | T70: 0 | U70: 0
A71: Yale Medicine | B71: Anesthesiology | F71: Anesthesiologist | G71: Anesthesiology | H71: MD | I71: 2024 | J71: 110.8651 | K71: 1 | L71: 0 | M71: 0 | N71: 0 | O71: 0 | P71: 0 | Q71: 0 | R71: 0 | S71: 0 | T71: 0 | U71: 0
A72: Yale Medicine | B72: Anesthesiology | F72: Anesthesiologist | G72: Anesthesiology | H72: MD | I72: 2024 | J72: 82.1909 | K72: 1 | L72: 0 | M72: 0 | N72: 0 | O72: 0 | P72: 0 | Q72: 0 | R72: 0 | S72: 0 | T72: 0 | U72: 0
A73: Yale Medicine | B73: Anesthesiology | F73: Anesthesiologist | G73: Anesthesiology | H73: MD | I73: 2024 | J73: 27.4998 | K73: 0 | L73: 0 | M73: 0 | N73: 0 | O73: 0 | P73: 0 | Q73: 0 | R73: 0 | S73: 0 | T73: 0 | U73: 0
A74: Yale Medicine | B74: Anesthesiology | F74: Anesthesiologist | G74: Anesthesiology | H74: MD | I74: 2024 | J74: 31.8922 | K74: 0.79 | L74: 0 | M74: 0 | N74: 0 | O74: 0 | P74: 0 | Q74: 0 | R74: 0 | S74: 0 | T74: 0 | U74: 0
A75: Yale Medicine | B75: Anesthesiology | F75: Anesthesiologist | G75: Anesthesiology | H75: MD | I75: 2024 | J75: 42.2891 | K75: 1 | L75: 0 | M75: 0 | N75: 0 | O75: 0 | P75: 0 | Q75: 0 | R75: 0 | S75: 0 | T75: 0 | U75: 0
A76: Yale Medicine | B76: Anesthesiology | F76: Anesthesiologist | G76: Anesthesiology | H76: MD | I76: 2024 | J76: 142.2007 | K76: 1 | L76: 0 | M76: 0 | N76: 0 | O76: 0 | P76: 0 | Q76: 0 | R76: 0 | S76: 0 | T76: 0 | U76: 0
A77: Yale Medicine | B77: Anesthesiology | F77: Nurse Anesthetist | G77: Anesthesiology | H77: CRNA | I77: 2024 | J77: 3 | K77: 0 | L77: 0 | M77: 0 | N77: 0 | O77: 0 | P77: 0 | Q77: 0 | R77: 0 | S77: 0 | T77: 0 | U77: 0
A78: Yale Medicine | B78: Anesthesiology | F78: Anesthesiologist | G78: Anesthesiology | H78: MD | I78: 2024 | J78: 80.26 | K78: 1 | L78: 0 | M78: 0 | N78: 0 | O78: 0 | P78: 0 | Q78: 0 | R78: 0 | S78: 0 | T78: 0 | U78: 0
A79: Yale Medicine | B79: Anesthesiology | F79: Anesthesiologist | G79: Anesthesiology | H79: MD | I79: 2024 | J79: 86.7516 | K79: 1 | L79: 0 | M79: 0 | N79: 0 | O79: 0 | P79: 0 | Q79: 0 | R79: 0 | S79: 0 | T79: 0 | U79: 0
A80: Yale Medicine | B80: Anesthesiology | F80: Anesthesiologist | G80: Anesthesiology | H80: MD | I80: 2024 | J80: 595.0108 | K80: 1 | L80: 0 | M80: 0 | N80: 0 | O80: 0 | P80: 0 | Q80: 0 | R80: 0 | S80: 0 | T80: 0 | U80: 0
A81: Yale Medicine | B81: Anesthesiology | F81: Fellow | G81: Anesthesiology | H81: MD | I81: 2024 | J81: 4.5057 | K81: 0 | L81: 0 | M81: 0 | N81: 0 | O81: 0 | P81: 0 | Q81: 0 | R81: 0 | S81: 0 | T81: 0 | U81: 0
A82: Yale Medicine | B82: Anesthesiology | F82: Anesthesiologist | G82: Anesthesiology | H82: MD | I82: 2024 | J82: 367.688 | K82: 1 | L82: 0 | M82: 0 | N82: 0 | O82: 0 | P82: 0 | Q82: 0 | R82: 0 | S82: 0 | T82: 0 | U82: 0
A83: Yale Medicine | B83: Anesthesiology | F83: Anesthesiologist | G83: Anesthesiology | H83: MD | I83: 2024 | J83: 29.7708 | K83: 1 | L83: 0 | M83: 0 | N83: 0 | O83: 0 | P83: 0 | Q83: 0 | R83: 0 | S83: 0 | T83: 0 | U83: 0
A84: Yale Medicine | B84: Anesthesiology | F84: Anesthesiologist | G84: Anesthesiology | H84: MD | I84: 2024 | J84: 389.7928 | K84: 0.95 | L84: 0 | M84: 0 | N84: 0 | O84: 0 | P84: 0 | Q84: 0 | R84: 0 | S84: 0 | T84: 0 | U84: 0
A85: Yale Medicine | B85: Anesthesiology | F85: Anesthesiologist | G85: Anesthesiology | H85: MD | I85: 2024 | J85: 37.1875 | K85: 0 | L85: 0 | M85: 0 | N85: 0 | O85: 0 | P85: 0 | Q85: 0 | R85: 0 | S85: 0 | T85: 0 | U85: 0
A86: Yale Medicine | B86: Anesthesiology | F86: Anesthesiologist | G86: Anesthesiology | H86: DO | I86: 2024 | J86: 45.6495 | K86: 0 | L86: 0 | M86: 0 | N86: 0 | O86: 0 | P86: 0 | Q86: 0 | R86: 0 | S86: 0 | T86: 0 | U86: 0
A87: Yale Medicine | B87: Anesthesiology | F87: Nurse Anesthetist | G87: Anesthesiology | H87: CRNA | I87: 2024 | J87: 0 | K87: 0 | L87: 0 | M87: 0 | N87: 0 | O87: 0 | P87: 0 | Q87: 0 | R87: 0 | S87: 0 | T87: 0 | U87: 0
A88: Yale Medicine | B88: Anesthesiology | F88: Anesthesiologist | G88: Anesthesiology | H88: MD | I88: 2024 | J88: 0 | K88: 0 | L88: 0 | M88: 0 | N88: 0 | O88: 0 | P88: 0 | Q88: 0 | R88: 0 | S88: 0 | T88: 0 | U88: 0
A89: Yale Medicine | B89: Anesthesiology | F89: Anesthesiologist | G89: Anesthesiology | H89: MD | I89: 2024 | J89: 23.5629 | K89: 1 | L89: 0 | M89: 0 | N89: 0 | O89: 0 | P89: 0 | Q89: 0 | R89: 0 | S89: 0 | T89: 0 | U89: 0
A90: Yale Medicine | B90: Anesthesiology | F90: Anesthesiologist | G90: Anesthesiology | H90: MD | I90: 2024 | J90: 22.4914 | K90: 1 | L90: 0 | M90: 0 | N90: 0 | O90: 0 | P90: 0 | Q90: 0 | R90: 0 | S90: 0 | T90: 0 | U90: 0
A91: Yale Medicine | B91: Anesthesiology | F91: Anesthesiologist | G91: Anesthesiology | H91: MD | I91: 2024 | J91: 50.125 | K91: 1 | L91: 0 | M91: 0 | N91: 0 | O91: 0 | P91: 0 | Q91: 0 | R91: 0 | S91: 0 | T91: 0 | U91: 0
A92: Yale Medicine | B92: Anesthesiology | F92: Anesthesiologist | G92: Anesthesiology | H92: MD | I92: 2024 | J92: 32.4848 | K92: 1 | L92: 0 | M92: 0 | N92: 0 | O92: 0 | P92: 0 | Q92: 0 | R92: 0 | S92: 0 | T92: 0 | U92: 0
A93: Yale Medicine | B93: Anesthesiology | F93: Anesthesiologist | G93: Anesthesiology | H93: MD | I93: 2024 | J93: 27.4945 | K93: 0.7 | L93: 0 | M93: 0 | N93: 0 | O93: 0 | P93: 0 | Q93: 0 | R93: 0 | S93: 0 | T93: 0 | U93: 0
A94: Yale Medicine | B94: Anesthesiology | F94: Anesthesiologist | G94: Anesthesiology | H94: MD | I94: 2024 | J94: 50.0414 | K94: 1 | L94: 0 | M94: 0 | N94: 0 | O94: 0 | P94: 0 | Q94: 0 | R94: 0 | S94: 0 | T94: 0 | U94: 0
A95: Yale Medicine | B95: Anesthesiology | F95: Anesthesiologist | G95: Anesthesiology | H95: MD | I95: 2024 | J95: 180.0577 | K95: 1 | L95: 0 | M95: 0 | N95: 0 | O95: 0 | P95: 0 | Q95: 0 | R95: 0 | S95: 0 | T95: 0 | U95: 0
A96: Yale Medicine | B96: Anesthesiology | F96: Anesthesiologist | G96: Anesthesiology | H96: MD | I96: 2024 | J96: 6.42 | K96: 0.85 | L96: 0 | M96: 0 | N96: 0 | O96: 0 | P96: 0 | Q96: 0 | R96: 0 | S96: 0 | T96: 0 | U96: 0
A97: Yale Medicine | B97: Anesthesiology | F97: Anesthesiologist | G97: Anesthesiology | H97: MD | I97: 2024 | J97: 7.5144 | K97: 0 | L97: 0 | M97: 0 | N97: 0 | O97: 0 | P97: 0 | Q97: 0 | R97: 0 | S97: 0 | T97: 0 | U97: 0
A98: Yale Medicine | B98: Anesthesiology | F98: Anesthesiologist | G98: Anesthesiology | H98: MD PHD | I98: 2024 | J98: 33.7561 | K98: 0 | L98: 0 | M98: 0 | N98: 0 | O98: 0 | P98: 0 | Q98: 0 | R98: 0 | S98: 0 | T98: 0 | U98: 0
A99: Yale Medicine | B99: Anesthesiology | F99: Nurse Anesthetist | G99: Anesthesiology | H99: CRNA | I99: 2024 | J99: 1.3 | K99: 0 | L99: 0 | M99: 0 | N99: 0 | O99: 0 | P99: 0 | Q99: 0 | R99: 0 | S99: 0 | T99: 0 | U99: 0
A100: Yale Medicine | B100: Anesthesiology | F100: Anesthesiologist | G100: Anesthesiology | H100: MD | I100: 2024 | J100: 24.8369 | K100: 1 | L100: 0 | M100: 0 | N100: 0 | O100: 0 | P100: 0 | Q100: 0 | R100: 0 | S100: 0 | T100: 0 | U100: 0
A101: Yale Medicine | B101: Anesthesiology | F101: Anesthesiologist | G101: Anesthesiology | H101: MD | I101: 2024 | J101: 70.9449 | K101: 0.73 | L101: 0 | M101: 0 | N101: 0 | O101: 0 | P101: 0 | Q101: 0 | R101: 0 | S101: 0 | T101: 0 | U101: 0
A102: Yale Medicine | B102: Anesthesiology | F102: Anesthesiologist | G102: Anesthesiology | H102: MD | I102: 2024 | J102: 28.9548 | K102: 0.79 | L102: 0 | M102: 0 | N102: 0 | O102: 0 | P102: 0 | Q102: 0 | R102: 0 | S102: 0 | T102: 0 | U102: 0
A103: Yale Medicine | B103: Anesthesiology | F103: Anesthesiologist | G103: Anesthesiology | H103: DO | I103: 2024 | J103: 58.2748 | K103: 1 | L103: 0 | M103: 0 | N103: 0 | O103: 0 | P103: 0 | Q103: 0 | R103: 0 | S103: 0 | T103: 0 | U103: 0
A104: Yale Medicine | B104: Anesthesiology | F104: Anesthesiologist | G104: Anesthesiology | H104: MD | I104: 2024 | J104: 372.1798 | K104: 0.33 | L104: 0 | M104: 0 | N104: 0 | O104: 0 | P104: 0 | Q104: 0 | R104: 0 | S104: 0 | T104: 0 | U104: 0
A105: Yale Medicine | B105: Anesthesiology | F105: Physician/Anesthesiologist | G105: Anesthesiology | H105: MD | I105: 2024 | J105: 406.6025 | K105: 0.85 | L105: 0 | M105: 0 | N105: 0 | O105: 0 | P105: 0 | Q105: 0 | R105: 0 | S105: 0 | T105: 0 | U105: 0
A106: Yale Medicine | B106: Anesthesiology | F106: Anesthesiologist | G106: Anesthesiology | H106: MD | I106: 2024 | J106: 79.6808 | K106: 1 | L106: 0 | M106: 0 | N106: 0 | O106: 0 | P106: 0 | Q106: 0 | R106: 0 | S106: 0 | T106: 0 | U106: 0
A107: Yale Medicine | B107: Anesthesiology | F107: Anesthesiologist | G107: Anesthesiology | H107: MD | I107: 2024 | J107: 350.1462 | K107: 1 | L107: 0 | M107: 0 | N107: 0 | O107: 0 | P107: 0 | Q107: 0 | R107: 0 | S107: 0 | T107: 0 | U107: 0
A108: Yale Medicine | B108: Anesthesiology | F108: Anesthesiologist | G108: Anesthesiology | H108: MD | I108: 2024 | J108: 46.8396 | K108: 1 | L108: 0 | M108: 0 | N108: 0 | O108: 0 | P108: 0 | Q108: 0 | R108: 0 | S108: 0 | T108: 0 | U108: 0
A109: Yale Medicine | B109: Anesthesiology | F109: Anesthesiologist | G109: Anesthesiology | H109: MD | I109: 2024 | J109: 15.3727 | K109: 0.95 | L109: 0 | M109: 0 | N109: 0 | O109: 0 | P109: 0 | Q109: 0 | R109: 0 | S109: 0 | T109: 0 | U109: 0
A110: Yale Medicine | B110: Anesthesiology | F110: Anesthesiologist | G110: Anesthesiology | H110: MD | I110: 2024 | J110: 43.9932 | K110: 1 | L110: 0 | M110: 0 | N110: 0 | O110: 0 | P110: 0 | Q110: 0 | R110: 0 | S110: 0 | T110: 0 | U110: 0
A111: Yale Medicine | B111: Anesthesiology | F111: Anesthesiologist | G111: Anesthesiology | H111: MD | I111: 2024 | J111: 63.3211 | K111: 0 | L111: 0 | M111: 0 | N111: 0 | O111: 0 | P111: 0 | Q111: 0 | R111: 0 | S111: 0 | T111: 0 | U111: 0
A112: Yale Medicine | B112: Anesthesiology | F112: Anesthesiologist | G112: Anesthesiology | H112: MD | I112: 2024 | J112: 25.4247 | K112: 0.79 | L112: 0 | M112: 0 | N112: 0 | O112: 0 | P112: 0 | Q112: 0 | R112: 0 | S112: 0 | T112: 0 | U112: 0
A113: Yale Medicine | B113: Anesthesiology | F113: Anesthesiologist | G113: Anesthesiology | H113: MD | I113: 2024 | J113: 70.6784 | K113: 0.1 | L113: 0 | M113: 0 | N113: 0 | O113: 0 | P113: 0 | Q113: 0 | R113: 0 | S113: 0 | T113: 0 | U113: 0
A114: Yale Medicine | B114: Anesthesiology | F114: Anesthesiologist | G114: Anesthesiology | H114: MD | I114: 2024 | J114: 0.7864 | K114: 0 | L114: 0 | M114: 0 | N114: 0 | O114: 0 | P114: 0 | Q114: 0 | R114: 0 | S114: 0 | T114: 0 | U114: 0
A115: Yale Medicine | B115: Anesthesiology | F115: Anesthesiologist | G115: Anesthesiology | H115: MD | I115: 2024 | J115: 78.0575 | K115: 1 | L115: 0 | M115: 0 | N115: 0 | O115: 0 | P115: 0 | Q115: 0 | R115: 0 | S115: 0 | T115: 0 | U115: 0
A116: Yale Medicine | B116: Anesthesiology | F116: Anesthesiologist | G116: Anesthesiology | H116: MD | I116: 2024 | J116: 112.1564 | K116: 1 | L116: 0 | M116: 0 | N116: 0 | O116: 0 | P116: 0 | Q116: 0 | R116: 0 | S116: 0 | T116: 0 | U116: 0
A117: Yale Medicine | B117: Anesthesiology | F117: Anesthesiologist | G117: Anesthesiology | H117: MD | I117: 2024 | J117: 172.3845 | K117: 1 | L117: 0 | M117: 0 | N117: 0 | O117: 0 | P117: 0 | Q117: 0 | R117: 0 | S117: 0 | T117: 0 | U117: 0
A118: Yale Medicine | B118: Anesthesiology | F118: Anesthesiologist | G118: Anesthesiology | H118: MD | I118: 2024 | J118: 31.8044 | K118: 0 | L118: 0 | M118: 0 | N118: 0 | O118: 0 | P118: 0 | Q118: 0 | R118: 0 | S118: 0 | T118: 0 | U118: 0
A119: Yale Medicine | B119: Anesthesiology | F119: Anesthesiologist | G119: Anesthesiology | H119: MD | I119: 2024 | J119: 0 | K119: 0 | L119: 0 | M119: 0 | N119: 0 | O119: 0 | P119: 0 | Q119: 0 | R119: 0 | S119: 0 | T119: 0 | U119: 0
A120: Yale Medicine | B120: Anesthesiology | F120: Anesthesiologist | G120: Anesthesiology | H120: MD | I120: 2024 | J120: 23.6167 | K120: 0.25 | L120: 0 | M120: 0 | N120: 0 | O120: 0 | P120: 0 | Q120: 0 | R120: 0 | S120: 0 | T120: 0 | U120: 0
A121: Yale Medicine | B121: Anesthesiology | F121: Anesthesiologist | G121: Anesthesiology | H121: MD | I121: 2024 | J121: 49.8574 | K121: 1 | L121: 0 | M121: 0 | N121: 0 | O121: 0 | P121: 0 | Q121: 0 | R121: 0 | S121: 0 | T121: 0 | U121: 0
A122: Yale Medicine | B122: Anesthesiology | F122: Nurse Anesthetist | G122: Anesthesiology | H122: CRNA | I122: 2024 | J122: 0 | K122: 0 | L122: 0 | M122: 0 | N122: 0 | O122: 0 | P122: 0 | Q122: 0 | R122: 0 | S122: 0 | T122: 0 | U122: 0
A123: Yale Medicine | B123: Anesthesiology | F123: Anesthesiologist | G123: Anesthesiology | H123: MD | I123: 2024 | J123: 0 | K123: 0 | L123: 0 | M123: 0 | N123: 0 | O123: 0 | P123: 0 | Q123: 0 | R123: 0 | S123: 0 | T123: 0 | U123: 0
A124: Yale Medicine | B124: Anesthesiology | F124: Anesthesiologist | G124: Anesthesiology | H124: MD | I124: 2024 | J124: 37.0877 | K124: 0 | L124: 0 | M124: 0 | N124: 0 | O124: 0 | P124: 0 | Q124: 0 | R124: 0 | S124: 0 | T124: 0 | U124: 0
A125: Yale Medicine | B125: Anesthesiology | F125: Physician/Anesthesiologist | G125: Anesthesiology | H125: MD | I125: 2024 | J125: 234.275 | K125: 0.55 | L125: 0 | M125: 0 | N125: 0 | O125: 0 | P125: 0 | Q125: 0 | R125: 0 | S125: 0 | T125: 0 | U125: 0
A126: Yale Medicine | B126: Anesthesiology | F126: Nurse Anesthetist | G126: Anesthesiology | H126: CRNA | I126: 2024 | J126: 0 | K126: 0 | L126: 0 | M126: 0 | N126: 0 | O126: 0 | P126: 0 | Q126: 0 | R126: 0 | S126: 0 | T126: 0 | U126: 0
A127: Yale Medicine | B127: Anesthesiology | F127: Anesthesiologist | G127: Anesthesiology | H127: MD | I127: 2024 | J127: 13.6501 | K127: 0.5 | L127: 0 | M127: 0 | N127: 0 | O127: 0 | P127: 0 | Q127: 0 | R127: 0 | S127: 0 | T127: 0 | U127: 0
A128: Yale Medicine | B128: Anesthesiology | F128: Nurse Practitioner | G128: Anesthesiology | H128: APRN | I128: 2024 | J128: 101.44 | K128: 0 | L128: 0 | M128: 0 | N128: 0 | O128: 0 | P128: 0 | Q128: 0 | R128: 0 | S128: 0 | T128: 0 | U128: 0
A129: Yale Medicine | B129: Anesthesiology | F129: Anesthesiologist | G129: Anesthesiology | H129: MD | I129: 2024 | J129: 6.7335 | K129: 0 | L129: 0 | M129: 0 | N129: 0 | O129: 0 | P129: 0 | Q129: 0 | R129: 0 | S129: 0 | T129: 0 | U129: 0
A130: Yale Medicine | B130: Anesthesiology | F130: Anesthesiologist | G130: Anesthesiology | H130: MD | I130: 2024 | J130: 40.2303 | K130: 1 | L130: 0 | M130: 0 | N130: 0 | O130: 0 | P130: 0 | Q130: 0 | R130: 0 | S130: 0 | T130: 0 | U130: 0
A131: Yale Medicine | B131: Anesthesiology | F131: Nurse Anesthetist | G131: Anesthesiology | H131: CRNA | I131: 2024 | J131: 0 | K131: 0 | L131: 0 | M131: 0 | N131: 0 | O131: 0 | P131: 0 | Q131: 0 | R131: 0 | S131: 0 | T131: 0 | U131: 0
A132: Yale Medicine | B132: Anesthesiology | F132: Anesthesiologist | G132: Anesthesiology | H132: MD | I132: 2024 | J132: 66.2464 | K132: 1 | L132: 0 | M132: 0 | N132: 0 | O132: 0 | P132: 0 | Q132: 0 | R132: 0 | S132: 0 | T132: 0 | U132: 0
A133: Yale Medicine | B133: Anesthesiology | F133: Anesthesiologist | G133: Anesthesiology | H133: MD | I133: 2024 | J133: 20.5345 | K133: 0 | L133: 0 | M133: 0 | N133: 0 | O133: 0 | P133: 0 | Q133: 0 | R133: 0 | S133: 0 | T133: 0 | U133: 0
A134: Yale Medicine | B134: Anesthesiology | F134: Anesthesiologist | G134: Anesthesiology | H134: MD | I134: 2024 | J134: 472.2128 | K134: 1 | L134: 0 | M134: 0 | N134: 0 | O134: 0 | P134: 0 | Q134: 0 | R134: 0 | S134: 0 | T134: 0 | U134: 0
A135: Yale Medicine | B135: Anesthesiology | F135: Anesthesiologist | G135: Anesthesiology | H135: MD | I135: 2024 | J135: 56.124 | K135: 1 | L135: 0 | M135: 0 | N135: 0 | O135: 0 | P135: 0 | Q135: 0 | R135: 0 | S135: 0 | T135: 0 | U135: 0
A136: Yale Medicine | B136: Anesthesiology | F136: Physician/Anesthesiologist | G136: Anesthesiology | H136: MD | I136: 2024 | J136: 570.3145 | K136: 1 | L136: 0 | M136: 0 | N136: 0 | O136: 0 | P136: 0 | Q136: 0 | R136: 0 | S136: 0 | T136: 0 | U136: 0
A137: Yale Medicine | B137: Anesthesiology | F137: Anesthesiologist | G137: Anesthesiology | H137: MD | I137: 2024 | J137: 295.11 | K137: 1 | L137: 0 | M137: 0 | N137: 0 | O137: 0 | P137: 0 | Q137: 0 | R137: 0 | S137: 0 | T137: 0 | U137: 0
A138: Yale Medicine | B138: Anesthesiology | F138: Anesthesiologist | G138: Anesthesiology | H138: MD | I138: 2024 | J138: 36.9632 | K138: 1 | L138: 0 | M138: 0 | N138: 0 | O138: 0 | P138: 0 | Q138: 0 | R138: 0 | S138: 0 | T138: 0 | U138: 0
A139: Yale Medicine | B139: Anesthesiology | F139: Anesthesiologist | G139: Anesthesiology | H139: MD | I139: 2024 | J139: 63.6145 | K139: 0 | L139: 0 | M139: 0 | N139: 0 | O139: 0 | P139: 0 | Q139: 0 | R139: 0 | S139: 0 | T139: 0 | U139: 0
A140: Yale Medicine | B140: Anesthesiology | F140: Anesthesiologist | G140: Anesthesiology | H140: MD | I140: 2024 | J140: 17.446 | K140: 1 | L140: 0 | M140: 0 | N140: 0 | O140: 0 | P140: 0 | Q140: 0 | R140: 0 | S140: 0 | T140: 0 | U140: 0
A141: Yale Medicine | B141: Anesthesiology | F141: Physician/Anesthesiologist | G141: Anesthesiology | H141: MD | I141: 2024 | J141: 300.4291 | K141: 1 | L141: 0 | M141: 0 | N141: 0 | O141: 0 | P141: 0 | Q141: 0 | R141: 0 | S141: 0 | T141: 0 | U141: 0
A142: Yale Medicine | B142: Anesthesiology | F142: Anesthesiologist | G142: Anesthesiology | H142: MD | I142: 2024 | J142: 0.7534 | K142: 0 | L142: 0 | M142: 0 | N142: 0 | O142: 0 | P142: 0 | Q142: 0 | R142: 0 | S142: 0 | T142: 0 | U142: 0
A143: Yale Medicine | B143: Anesthesiology | F143: Anesthesiologist | G143: Anesthesiology | H143: MD | I143: 2024 | J143: 18.279 | K143: 1 | L143: 0 | M143: 0 | N143: 0 | O143: 0 | P143: 0 | Q143: 0 | R143: 0 | S143: 0 | T143: 0 | U143: 0
A144: Yale Medicine | B144: Anesthesiology | F144: Anesthesiologist | G144: Anesthesiology | H144: MD | I144: 2024 | J144: 8.0683 | K144: 1 | L144: 0 | M144: 0 | N144: 0 | O144: 0 | P144: 0 | Q144: 0 | R144: 0 | S144: 0 | T144: 0 | U144: 0
A145: Yale Medicine | B145: Anesthesiology | F145: Nurse Anesthetist | G145: Anesthesiology | H145: CRNA | I145: 2024 | J145: 0 | K145: 0 | L145: 0 | M145: 0 | N145: 0 | O145: 0 | P145: 0 | Q145: 0 | R145: 0 | S145: 0 | T145: 0 | U145: 0
A146: Yale Medicine | B146: Anesthesiology | F146: Anesthesiologist | G146: Anesthesiology | H146: MD | I146: 2024 | J146: 32.0788 | K146: 1 | L146: 0 | M146: 0 | N146: 0 | O146: 0 | P146: 0 | Q146: 0 | R146: 0 | S146: 0 | T146: 0 | U146: 0
A147: Yale Medicine | B147: Anesthesiology | F147: Anesthesiologist | G147: Anesthesiology | H147: MD | I147: 2024 | J147: 48.8651 | K147: 1 | L147: 0 | M147: 0 | N147: 0 | O147: 0 | P147: 0 | Q147: 0 | R147: 0 | S147: 0 | T147: 0 | U147: 0
A148: Yale Medicine | B148: Anesthesiology | F148: Anesthesiologist | G148: Anesthesiology | H148: MD | I148: 2024 | J148: 198.3934 | K148: 1 | L148: 0 | M148: 0 | N148: 0 | O148: 0 | P148: 0 | Q148: 0 | R148: 0 | S148: 0 | T148: 0 | U148: 0
A149: Yale Medicine | B149: Anesthesiology | F149: Anesthesiologist | G149: Anesthesiology | H149: MD | I149: 2024 | J149: 252.7533 | K149: 1 | L149: 0 | M149: 0 | N149: 0 | O149: 0 | P149: 0 | Q149: 0 | R149: 0 | S149: 0 | T149: 0 | U149: 0
A150: Yale Medicine | B150: Anesthesiology | F150: Anesthesiologist | G150: Anesthesiology | H150: MD | I150: 2024 | J150: 0 | K150: 0 | L150: 0 | M150: 0 | N150: 0 | O150: 0 | P150: 0 | Q150: 0 | R150: 0 | S150: 0 | T150: 0 | U150: 0
A151: Yale Medicine | B151: Anesthesiology | F151: Anesthesiologist | G151: Anesthesiology | H151: MD PhD | I151: 2024 | J151: 163.4046 | K151: 1 | L151: 0 | M151: 0 | N151: 0 | O151: 0 | P151: 0 | Q151: 0 | R151: 0 | S151: 0 | T151: 0 | U151: 0
A152: Yale Medicine | B152: Anesthesiology | F152: Nurse Anesthetist | G152: CRNA | H152: CRNA | I152: 2024 | J152: 0 | K152: 0 | L152: 0 | M152: 0 | N152: 0 | O152: 0 | P152: 0 | Q152: 0 | R152: 0 | S152: 0 | T152: 0 | U152: 0
A153: Yale Medicine | B153: Anesthesiology | F153: Nurse Anesthetist | G153: CRNA | H153: CRNA | I153: 2024 | J153: 0 | K153: 0 | L153: 0 | M153: 0 | N153: 0 | O153: 0 | P153: 0 | Q153: 0 | R153: 0 | S153: 0 | T153: 0 | U153: 0
A154: Yale Medicine | B154: Anesthesiology | F154: Nurse Anesthetist | G154: CRNA | H154: CRNA | I154: 2024 | J154: 0 | K154: 0 | L154: 0 | M154: 0 | N154: 0 | O154: 0 | P154: 0 | Q154: 0 | R154: 0 | S154: 0 | T154: 0 | U154: 0
A155: Yale Medicine | B155: Anesthesiology | F155: Nurse Anesthetist | G155: CRNA | H155: CRNA | I155: 2024 | J155: 0 | K155: 0 | L155: 0 | M155: 0 | N155: 0 | O155: 0 | P155: 0 | Q155: 0 | R155: 0 | S155: 0 | T155: 0 | U155: 0
A156: Yale Medicine | B156: Anesthesiology | F156: Nurse Anesthetist | G156: CRNA | H156: CRNA | I156: 2024 | J156: 0 | K156: 0 | L156: 0 | M156: 0 | N156: 0 | O156: 0 | P156: 0 | Q156: 0 | R156: 0 | S156: 0 | T156: 0 | U156: 0
A157: Yale Medicine | B157: Anesthesiology | F157: Nurse Anesthetist | G157: CRNA | H157: CRNA | I157: 2024 | J157: 0 | K157: 0 | L157: 0 | M157: 0 | N157: 0 | O157: 0 | P157: 0 | Q157: 0 | R157: 0 | S157: 0 | T157: 0 | U157: 0
A158: Yale Medicine | B158: Anesthesiology | F158: Nurse Anesthetist | G158: CRNA | H158: CRNA | I158: 2024 | J158: 0 | K158: 0 | L158: 0 | M158: 0 | N158: 0 | O158: 0 | P158: 0 | Q158: 0 | R158: 0 | S158: 0 | T158: 0 | U158: 0
A159: Yale Medicine | B159: Anesthesiology | F159: Nurse Anesthetist | G159: CRNA | H159: CRNA | I159: 2024 | J159: 0 | K159: 0 | L159: 0 | M159: 0 | N159: 0 | O159: 0 | P159: 0 | Q159: 0 | R159: 0 | S159: 0 | T159: 0 | U159: 0
A160: Yale Medicine | B160: Anesthesiology | F160: Nurse Anesthetist | G160: CRNA | H160: CRNA | I160: 2024 | J160: 1 | K160: 0 | L160: 0 | M160: 0 | N160: 0 | O160: 0 | P160: 0 | Q160: 0 | R160: 0 | S160: 0 | T160: 0 | U160: 0
A161: Yale Medicine | B161: Anesthesiology | F161: Nurse Anesthetist | G161: CRNA | H161: CRNA | I161: 2024 | J161: 0 | K161: 0 | L161: 0 | M161: 0 | N161: 0 | O161: 0 | P161: 0 | Q161: 0 | R161: 0 | S161: 0 | T161: 0 | U161: 0
A162: Yale Medicine | B162: Anesthesiology | F162: Nurse Anesthetist | G162: CRNA | H162: CRNA | I162: 2024 | J162: 0 | K162: 0 | L162: 0 | M162: 0 | N162: 0 | O162: 0 | P162: 0 | Q162: 0 | R162: 0 | S162: 0 | T162: 0 | U162: 0
A163: Yale Medicine | B163: Anesthesiology | F163: Nurse Anesthetist | G163: CRNA | H163: CRNA | I163: 2024 | J163: 0 | K163: 0 | L163: 0 | M163: 0 | N163: 0 | O163: 0 | P163: 0 | Q163: 0 | R163: 0 | S163: 0 | T163: 0 | U163: 0
A164: Yale Medicine | B164: Anesthesiology | F164: Nurse Anesthetist | G164: CRNA | H164: CRNA | I164: 2024 | J164: 0 | K164: 0 | L164: 0 | M164: 0 | N164: 0 | O164: 0 | P164: 0 | Q164: 0 | R164: 0 | S164: 0 | T164: 0 | U164: 0
A165: Yale Medicine | B165: Anesthesiology | F165: Nurse Anesthetist | G165: CRNA | H165: CRNA | I165: 2024 | J165: 0 | K165: 0 | L165: 0 | M165: 0 | N165: 0 | O165: 0 | P165: 0 | Q165: 0 | R165: 0 | S165: 0 | T165: 0 | U165: 0
A166: Yale Medicine | B166: Anesthesiology | F166: Nurse Anesthetist | G166: CRNA | H166: CRNA | I166: 2024 | J166: 0 | K166: 0 | L166: 0 | M166: 0 | N166: 0 | O166: 0 | P166: 0 | Q166: 0 | R166: 0 | S166: 0 | T166: 0 | U166: 0
A167: Yale Medicine | B167: Anesthesiology | F167: Nurse Anesthetist | G167: CRNA | H167: CRNA | I167: 2024 | J167: 0 | K167: 0 | L167: 0 | M167: 0 | N167: 0 | O167: 0 | P167: 0 | Q167: 0 | R167: 0 | S167: 0 | T167: 0 | U167: 0
A168: Yale Medicine | B168: Anesthesiology | F168: Nurse Anesthetist | G168: CRNA | H168: CRNA | I168: 2024 | J168: 0 | K168: 0 | L168: 0 | M168: 0 | N168: 0 | O168: 0 | P168: 0 | Q168: 0 | R168: 0 | S168: 0 | T168: 0 | U168: 0
A169: Yale Medicine | B169: Anesthesiology | F169: Nurse Anesthetist | G169: CRNA | H169: CRNA | I169: 2024 | J169: 0 | K169: 0 | L169: 0 | M169: 0 | N169: 0 | O169: 0 | P169: 0 | Q169: 0 | R169: 0 | S169: 0 | T169: 0 | U169: 0
A170: Yale Medicine | B170: Anesthesiology | F170: Nurse Anesthetist | G170: CRNA | H170: CRNA | I170: 2024 | J170: 1 | K170: 0 | L170: 0 | M170: 0 | N170: 0 | O170: 0 | P170: 0 | Q170: 0 | R170: 0 | S170: 0 | T170: 0 | U170: 0
A171: Yale Medicine | B171: Anesthesiology | F171: Nurse Anesthetist | G171: CRNA | H171: CRNA | I171: 2024 | J171: 0 | K171: 0 | L171: 0 | M171: 0 | N171: 0 | O171: 0 | P171: 0 | Q171: 0 | R171: 0 | S171: 0 | T171: 0 | U171: 0
A172: Yale Medicine | B172: Anesthesiology | F172: Nurse Anesthetist | G172: CRNA | H172: CRNA | I172: 2024 | J172: 0 | K172: 0 | L172: 0 | M172: 0 | N172: 0 | O172: 0 | P172: 0 | Q172: 0 | R172: 0 | S172: 0 | T172: 0 | U172: 0
A173: Yale Medicine | B173: Anesthesiology | F173: Nurse Anesthetist | G173: CRNA | H173: CRNA | I173: 2024 | J173: 0 | K173: 0 | L173: 0 | M173: 0 | N173: 0 | O173: 0 | P173: 0 | Q173: 0 | R173: 0 | S173: 0 | T173: 0 | U173: 0
A174: Yale Medicine | B174: Anesthesiology | F174: Nurse Anesthetist | G174: CRNA | H174: CRNA | I174: 2024 | J174: 1 | K174: 0 | L174: 0 | M174: 0 | N174: 0 | O174: 0 | P174: 0 | Q174: 0 | R174: 0 | S174: 0 | T174: 0 | U174: 0
A175: Yale Medicine | B175: Anesthesiology | F175: Nurse Anesthetist | G175: CRNA | H175: CRNA | I175: 2024 | J175: 0 | K175: 0 | L175: 0 | M175: 0 | N175: 0 | O175: 0 | P175: 0 | Q175: 0 | R175: 0 | S175: 0 | T175: 0 | U175: 0
A176: Yale Medicine | B176: Anesthesiology | F176: Nurse Anesthetist | G176: CRNA | H176: CRNA | I176: 2024 | J176: 0 | K176: 0 | L176: 0 | M176: 0 | N176: 0 | O176: 0 | P176: 0 | Q176: 0 | R176: 0 | S176: 0 | T176: 0 | U176: 0
A177: Yale Medicine | B177: Anesthesiology | F177: Nurse Anesthetist | G177: CRNA | H177: CRNA | I177: 2024 | J177: 0 | K177: 0 | L177: 0 | M177: 0 | N177: 0 | O177: 0 | P177: 0 | Q177: 0 | R177: 0 | S177: 0 | T177: 0 | U177: 0
A178: Yale Medicine | B178: Anesthesiology | F178: Nurse Anesthetist | G178: CRNA | H178: CRNA | I178: 2024 | J178: 0 | K178: 0 | L178: 0 | M178: 0 | N178: 0 | O178: 0 | P178: 0 | Q178: 0 | R178: 0 | S178: 0 | T178: 0 | U178: 0
A179: Yale Medicine | B179: Anesthesiology | F179: Nurse Anesthetist | G179: CRNA | H179: CRNA | I179: 2024 | J179: 0 | K179: 0 | L179: 0 | M179: 0 | N179: 0 | O179: 0 | P179: 0 | Q179: 0 | R179: 0 | S179: 0 | T179: 0 | U179: 0
A180: Yale Medicine | B180: Anesthesiology | F180: Nurse Anesthetist | G180: CRNA | H180: CRNA | I180: 2024 | J180: 0 | K180: 0 | L180: 0 | M180: 0 | N180: 0 | O180: 0 | P180: 0 | Q180: 0 | R180: 0 | S180: 0 | T180: 0 | U180: 0
A181: Yale Medicine | B181: Anesthesiology | F181: Nurse Anesthetist | G181: CRNA | H181: CRNA | I181: 2024 | J181: 0 | K181: 0 | L181: 0 | M181: 0 | N181: 0 | O181: 0 | P181: 0 | Q181: 0 | R181: 0 | S181: 0 | T181: 0 | U181: 0
A182: Yale Medicine | B182: Anesthesiology | F182: Nurse Anesthetist | G182: CRNA | H182: CRNA | I182: 2024 | J182: 0 | K182: 0 | L182: 0 | M182: 0 | N182: 0 | O182: 0 | P182: 0 | Q182: 0 | R182: 0 | S182: 0 | T182: 0 | U182: 0
A183: Yale Medicine | B183: Anesthesiology | F183: Nurse Anesthetist | G183: CRNA | H183: CRNA | I183: 2024 | J183: 0 | K183: 0 | L183: 0 | M183: 0 | N183: 0 | O183: 0 | P183: 0 | Q183: 0 | R183: 0 | S183: 0 | T183: 0 | U183: 0
A184: Yale Medicine | B184: Anesthesiology | F184: Nurse Anesthetist | G184: CRNA | H184: CRNA | I184: 2024 | J184: 0 | K184: 0 | L184: 0 | M184: 0 | N184: 0 | O184: 0 | P184: 0 | Q184: 0 | R184: 0 | S184: 0 | T184: 0 | U184: 0
A185: Yale Medicine | B185: Anesthesiology | F185: Nurse Anesthetist | G185: CRNA | H185: CRNA | I185: 2024 | J185: 1 | K185: 0 | L185: 0 | M185: 0 | N185: 0 | O185: 0 | P185: 0 | Q185: 0 | R185: 0 | S185: 0 | T185: 0 | U185: 0
A186: Yale Medicine | B186: Anesthesiology | F186: Nurse Anesthetist | G186: CRNA | H186: CRNA | I186: 2024 | J186: 0 | K186: 0 | L186: 0 | M186: 0 | N186: 0 | O186: 0 | P186: 0 | Q186: 0 | R186: 0 | S186: 0 | T186: 0 | U186: 0
A187: Yale Medicine | B187: Anesthesiology | F187: Nurse Anesthetist | G187: CRNA | H187: CRNA | I187: 2024 | J187: 0 | K187: 0 | L187: 0 | M187: 0 | N187: 0 | O187: 0 | P187: 0 | Q187: 0 | R187: 0 | S187: 0 | T187: 0 | U187: 0
A188: Yale Medicine | B188: Anesthesiology | F188: Nurse Anesthetist | G188: CRNA | H188: CRNA | I188: 2024 | J188: 0 | K188: 0 | L188: 0 | M188: 0 | N188: 0 | O188: 0 | P188: 0 | Q188: 0 | R188: 0 | S188: 0 | T188: 0 | U188: 0
A189: Yale Medicine | B189: Anesthesiology | F189: Nurse Anesthetist | G189: CRNA | H189: CRNA | I189: 2024 | J189: 0 | K189: 0 | L189: 0 | M189: 0 | N189: 0 | O189: 0 | P189: 0 | Q189: 0 | R189: 0 | S189: 0 | T189: 0 | U189: 0
A190: Yale Medicine | B190: Anesthesiology | F190: Nurse Anesthetist | G190: CRNA | H190: CRNA | I190: 2024 | J190: 0 | K190: 0 | L190: 0 | M190: 0 | N190: 0 | O190: 0 | P190: 0 | Q190: 0 | R190: 0 | S190: 0 | T190: 0 | U190: 0
A191: Yale Medicine | B191: Anesthesiology | F191: Nurse Anesthetist | G191: CRNA | H191: CRNA | I191: 2024 | J191: 0 | K191: 0 | L191: 0 | M191: 0 | N191: 0 | O191: 0 | P191: 0 | Q191: 0 | R191: 0 | S191: 0 | T191: 0 | U191: 0
A192: Yale Medicine | B192: Anesthesiology | F192: Nurse Anesthetist | G192: CRNA | H192: CRNA | I192: 2024 | J192: 0 | K192: 0 | L192: 0 | M192: 0 | N192: 0 | O192: 0 | P192: 0 | Q192: 0 | R192: 0 | S192: 0 | T192: 0 | U192: 0
A193: Yale Medicine | B193: Anesthesiology | F193: Nurse Anesthetist | G193: CRNA | H193: CRNA | I193: 2024 | J193: 0 | K193: 0 | L193: 0 | M193: 0 | N193: 0 | O193: 0 | P193: 0 | Q193: 0 | R193: 0 | S193: 0 | T193: 0 | U193: 0
A194: Yale Medicine | B194: Anesthesiology | F194: Nurse Anesthetist | G194: CRNA | H194: CRNA | I194: 2024 | J194: 0 | K194: 0 | L194: 0 | M194: 0 | N194: 0 | O194: 0 | P194: 0 | Q194: 0 | R194: 0 | S194: 0 | T194: 0 | U194: 0
A195: Yale Medicine | B195: Anesthesiology | F195: Nurse Anesthetist | G195: CRNA | H195: CRNA | I195: 2024 | J195: 0 | K195: 0 | L195: 0 | M195: 0 | N195: 0 | O195: 0 | P195: 0 | Q195: 0 | R195: 0 | S195: 0 | T195: 0 | U195: 0
A196: Yale Medicine | B196: Anesthesiology | F196: Nurse Anesthetist | G196: CRNA | H196: CRNA | I196: 2024 | J196: 0 | K196: 0 | L196: 0 | M196: 0 | N196: 0 | O196: 0 | P196: 0 | Q196: 0 | R196: 0 | S196: 0 | T196: 0 | U196: 0
A197: Yale Medicine | B197: Anesthesiology | F197: Nurse Anesthetist | G197: CRNA | H197: CRNA | I197: 2024 | J197: 0 | K197: 0 | L197: 0 | M197: 0 | N197: 0 | O197: 0 | P197: 0 | Q197: 0 | R197: 0 | S197: 0 | T197: 0 | U197: 0
A198: Yale Medicine | B198: Anesthesiology | F198: Nurse Anesthetist | G198: CRNA | H198: CRNA | I198: 2024 | J198: 0 | K198: 0 | L198: 0 | M198: 0 | N198: 0 | O198: 0 | P198: 0 | Q198: 0 | R198: 0 | S198: 0 | T198: 0 | U198: 0
A199: Yale Medicine | B199: Anesthesiology | F199: Nurse Anesthetist | G199: CRNA | H199: CRNA | I199: 2024 | J199: 0 | K199: 0 | L199: 0 | M199: 0 | N199: 0 | O199: 0 | P199: 0 | Q199: 0 | R199: 0 | S199: 0 | T199: 0 | U199: 0
A200: Yale Medicine | B200: Anesthesiology | F200: Nurse Anesthetist | G200: CRNA | H200: CRNA | I200: 2024 | J200: 4 | K200: 0 | L200: 0 | M200: 0 | N200: 0 | O200: 0 | P200: 0 | Q200: 0 | R200: 0 | S200: 0 | T200: 0 | U200: 0
... 3193 more rows

Sheet Malpractice Rates (hidden)
A1: ISO Code | B1: ISO Code Description | C1: 2023 Class | D1: CY2023 YSM RATES
A2: 80254 | B2: Allergy (No Surg) | C2: A7 | D2: 12306
A3: 80183 | B3: Anesthesiology - Other | C3: A8 | D3: 13844
A4: 80151 | B4: Anesthesiology - Pain Management | C4: 03 | D4: 20681
A5: 80422 | B5: Cardiac Cath (Minor Surg) | C5: 05 | D5: 24954
A6: 80141 | B6: Cardiac Surgery Incl Heart Transplants | C6: 20B | D6: 124238
A7: 80281 | B7: Cardiovascular Dis (Minor Surg) | C7: 03 | D7: 20681
A8: 80255 | B8: Cardiovascular Disease (No Surg) | C8: 03 | D8: 20681
A9: 80411 | B9: Chiropractic | C9: A4 | D9: 8546
A10: 80115 | B10: Colon & Rectal Surgery | C10: 11 | D10: 44097
A11: 80211 | B11: Dent - General | C11: A1 | D11: 1709
A12: 80210 | B12: Dent - Oral Surg | C12: A4 | D12: 8546
A13: 80282 | B13: Dermatology (Minor Surg) | C13: A7 | D13: 12306
A14: 80256 | B14: Dermatology (No Surg) | C14: A7 | D14: 12306
A15: 80102 | B15: Emerg Med (Minor Surg) | C15: 12 | D15: 48370
A16: 80238 | B16: Endocrinology | C16: A4 | D16: 8546
A17: 80272 | B17: Endocrinology (Minor Surg) | C17: 01 | D17: 17092
A18: 80103 | B18: Endocrinology Surgery | C18: 11 | D18: 44097
A19: 80971 | B19: Family Medicine w/ OB | C19: 11 | D19: 44097
A20: 80274 | B20: Gastroenterology (Minor Surg) | C20: 03 | D20: 20681
A21: 80241 | B21: Gastroenterology (No Surg) | C21: A9 | D21: 15383
A22: 80104 | B22: Gastroenterology Surgery | C22: 16 | D22: 70931
A23: 80231 | B23: Gen Prevent Med (No Surg) | C23: A9 | D23: 15383
A24: 80421 | B24: Gen/Fam Practice (Minor Surg) | C24: 01 | D24: 17092
A25: 80420 | B25: Gen/Fam Practice (No Surg) | C25: 01 | D25: 17092
A26: 80143 | B26: General Surgery | C26: 16 | D26: 70931
A27: 80276 | B27: Geriatrics (Minor Surg) | C27: 03 | D27: 20681
A28: 80243 | B28: Geriatrics (No Surg) | C28: A7 | D28: 12306
A29: 80277 | B29: Gyn (Minor Surg) | C29: 04 | D29: 22732
A30: 80244 | B30: Gyn (No Surg) | C30: A9 | D30: 15383
A31: 80167 | B31: Gynecological Surgery | C31: 17 | D31: 78110
A32: 80170 | B32: Head & Neck Surgery | C32: 15 | D32: 64437
A33: 80278 | B33: Hematology (Minor Surg) | C33: 01 | D33: 17092
A34: 80245 | B34: Hematology (No Surg) | C34: 01 | D34: 17092
A35: 80222 | B35: Hospitalist | C35: A9 | D35: 15383
A36: 80963 | B36: Independent Certified Nurse Midwife | C36: 12 | D36: 48370
A37: 80966 | B37: Independent Nurse Practitioner | C37: A3 | D37: 6153
A38: 80246 | B38: Infec Diseases (No Surg) | C38: A8 | D38: 13844
A39: 80279 | B39: Infect Diseases (Minor Surg) | C39: 02 | D39: 18801
A40: 80283 | B40: Intensive Care Med (Minor Surg) | C40: 03 | D40: 20681
A41: 80423 | B41: Intensivist | C41: 01 | D41: 17092
A42: 80284 | B42: Internal Med (Minor Surg) | C42: A8 | D42: 13844
A43: 80257 | B43: Internal Med (No Surg) | C43: A8 | D43: 13844
A44: 80804 | B44: Neonatology (minor surgery) | C44: 05 | D44: 24954
A45: 80259 | B45: Neoplastic Disease (No Surg) | C45: 01 | D45: 17092
A46: 80286 | B46: Neoplastic Diseases (Minor Surg) | C46: 01 | D46: 17092
A47: 80107 | B47: Neoplastic Surgery | C47: 11 | D47: 44097
A48: 80287 | B48: Nephrology (Minor Surg) | C48: 01 | D48: 17092
A49: 80260 | B49: Nephrology (No Surg) | C49: 01 | D49: 17092
A50: 80108 | B50: Nephrology Surgery Incl Kidney Transplants | C50: 13 | D50: 53327
A51: 80288 | B51: Neurology (Minor Surg) | C51: 01 | D51: 17092
A52: 80261 | B52: Neurology (No Surg) | C52: 01 | D52: 17092
A53: 80152 | B53: Neurosurgery | C53: 21 | D53: 169210
A54: 80262 | B54: Nuclear Med (No Surg) | C54: A7 | D54: 12306
A55: 80901 | B55: OB/GYN Invasive Procedures | C55: 08 | D55: 33158
A56: 80153 | B56: Ob/Gyn Surgery | C56: 20 | D56: 112277
A57: 80168 | B57: Obstetrics Surgery | C57: 20 | D57: 112277
A58: 80233 | B58: Occup Med (No Surg) | C58: A8 | D58: 13844
A59: 80289 | B59: Ophthalmology (Minor Surg) | C59: 03 | D59: 20681
A60: 80263 | B60: Ophthalmology (No Surg) | C60: A4 | D60: 8546
A61: 80114 | B61: Ophthamology Surgery | C61: 05 | D61: 24954
A62: 80937 | B62: Optician | C62: A1 | D62: 1709
A63: 80944 | B63: Optometrist | C63: A1 | D63: 1709
A64: 80154 | B64: Orthopedic Surgery | C64: 18 | D64: 85801
A65: 80204 | B65: Orthopedics (minor surgery) | C65: 05 | D65: 24954
A66: 80205 | B66: Orthopedics (no surgery) | C66: 01 | D66: 17092
A67: 80291 | B67: Otorhinolaryngology (Minor Surg) | C67: 04 | D67: 22732
A68: 80265 | B68: Otorhinolaryngology (No Surg) | C68: A8 | D68: 13844
A69: 80159 | B69: Otorhinolaryngology Surgery | C69: 12 | D69: 48370
A70: 80155 | B70: Otorhinolaryngology Surgery incl Plastic | C70: 14 | D70: 58625
A71: 80902 | B71: Outpatient Obstetrics | C71: 04 | D71: 22732
A72: 80266 | B72: Pathology (No Surg) | C72: A9 | D72: 15383
A73: 80180 | B73: Pediatric Surgery | C73: 15 | D73: 64437
A74: 80293 | B74: Pediatrics (Minor Surg) | C74: 02 | D74: 18801
A75: 80267 | B75: Pediatrics (No Surg) | C75: 02 | D75: 18801
A76: 80234 | B76: Pharma/Clinical (No Surg) | C76: A7 | D76: 12306
A77: 80235 | B77: Phys Med/Rehab (No Surg) | C77: A8 | D77: 13844
A78: 80208 | B78: Physical Medicine and Rehab (minor surgery) | C78: 02 | D78: 18801
A79: 80268 | B79: Physician (No Surg) (NOC) | C79: A6 | D79: 11110
A80: 80294 | B80: Physician NOC (Minor Surg) | C80: 01 | D80: 17092
A81: 80156 | B81: Plastic Surgery | C81: 17 | D81: 78110
A82: 80900 | B82: Podiatry | C82: 04 | D82: 22732
A83: 80899 | B83: Podiatry Surgery | C83: 12 | D83: 48370
A84: 80162 | B84: Psychiatry ECT/Not Incl Child (Minor Surg) | C84: 02 | D84: 18801
A85: 80249 | B85: Psychiatry/Inc. Child - No ECT | C85: A3 | D85: 6153
A86: 80975 | B86: Psychologist | C86: A2 | D86: 3760
A87: 80101 | B87: Pulmo/Broncho (Minor Surg) | C87: A9 | D87: 15383
A88: 80269 | B88: Pulmo/Broncho (No Surg) | C88: A9 | D88: 15383
A89: 80253 | B89: Radiol/Diagnostic (No Surg) | C89: 05 | D89: 24954
A90: 80280 | B90: Radiology/Incl Radiation Therapy (Minor Surg) | C90: A9 | D90: 15383
A91: 80994 | B91: Radiology/Interventional Radiology | C91: 09 | D91: 36235
A92: 80252 | B92: Rheumatology (No Surg) | C92: A7 | D92: 12306
A93: 80321 | B93: Teaching Physician | C93: A1 | D93: 1709
A94: 80144 | B94: Thoracic Surgery Incl Lung Transplants | C94: 18 | D94: 85801
A95: 80171 | B95: Trauma Surgery | C95: 19 | D95: 103919
A96: 80145 | B96: Urological Surgery | C96: 14 | D96: 58625
A97: 80120 | B97: Urology (no surgery) | C97: 03 | D97: 20681
A98: 80146 | B98: Vascular Surgery | C98: 19 | D98: 103919

Sheet Current UHC Benchmarks
A1: Year Key | B1: Specialty Code | C1: Specialty Description | D1: N of Orgs | E1: N of Providers | F1: Mean WRVU/CFTE | G1: 25th | H1: 50th | I1: 65th | J1: 75th | K1: 90th
A2: 2023 | B2: AM | C2: Addiction Medicine | D2: 13 | E2: 23 | F2: 4392.429744 | G2: 3511.8473 | H2: 4563.07 | I2: 4716.92223 | J2: 5317.31205 | K2: 6244.33002
A3: 2023 | B3: 04 | C3: Allergy / Immunology | D3: 33 | E3: 60 | F3: 4446.373018 | G3: 3286.838025 | H3: 4341.04735 | I3: 4741.603145 | J3: 5166.54645 | K3: 7342.59542
A4: 2023 | B4: 03 | C4: Ambulatory Gynecology | D4: 25 | E4: 50 | F4: 4724.267422 | G4: 3666.65135 | H4: 4878.5121 | I4: 5692.612585 | J4: 6516.891625 | K4: 8085.59198
A5: 2023 | B5: ZE | C5: Audiology | D5: 17 | E5: 79 | F5: 923.9665366 | G5: 772.46055 | H5: 922.0323 | I5: 1023.27455 | J5: 1105.60965 | K5: 1215.40914
A6: 2023 | B6: 15 | C6: Bone Marrow Transplant | D6: 20 | E6: 71 | F6: 5824.868894 | G6: 4611.202 | H6: 6169.8353 | I6: 7079.9573 | J6: 7416.07235 | K6: 8566.8714
A7: 2023 | B7: CE | C7: Cardiology: Electrophysiology | D7: 50 | E7: 185 | F7: 10847.84594 | G7: 8297.9562 | H7: 10490.891 | I7: 11811.35486 | J7: 13279.1358 | K7: 15946.86714
A8: 2023 | B8: CG | C8: Cardiology: General | D8: 50 | E8: 314 | F8: 7905.406669 | G8: 5207.2944 | H8: 7544.05245 | I8: 9111.963365 | J8: 9919.757775 | K8: 12051.17221
A9: 2023 | B9: CI | C9: Cardiology: Invasive | D9: 26 | E9: 68 | F9: 8042.614485 | G9: 6201.760325 | H9: 7213.5326 | I9: 8323.47333 | J9: 10010.58727 | K9: 12284.57029
A10: 2023 | B10: CV | C10: Cardiology: Invasive Interventional | D10: 48 | E10: 170 | F10: 9253.411575 | G10: 7364.0958 | H10: 8632.56775 | I10: 10353.06825 | J10: 11547.63743 | K10: 13902.21443
A11: 2023 | B11: CN | C11: Cardiology: Noninvasive | D11: 52 | E11: 261 | F11: 8271.009183 | G11: 6298.4878 | H11: 8078.7328 | I11: 9266.1274 | J11: 9984.1167 | K11: 12035.45
A12: 2023 | B12: G1 | C12: Clinical Genetics | D12: 19 | E12: 28 | F12: 2258.694857 | G12: 1631.494125 | H12: 2438.88335 | I12: 2830.19725 | J12: 3031.800275 | K12: 3362.26137
A13: 2023 | B13: 09 | C13: Critical Care | D13: 42 | E13: 231 | F13: 6264.029262 | G13: 3878.66775 | H13: 6066.6029 | I13: 7139.33185 | J13: 8174.4429 | K13: 10601.3571
A14: 2023 | B14: 17 | C14: Dermatology | D14: 44 | E14: 169 | F14: 7608.898106 | G14: 5779.0308 | H14: 7389.975 | I14: 8477.19904 | J14: 9652.3812 | K14: 11702.982
A15: 2023 | B15: B6 | C15: Dermatology: Melanoma and Skin Cancer | D15: 21 | E15: 45 | F15: 8687.155325 | G15: 6557.2857 | H15: 8681.1144 | I15: 10161.4532 | J15: 10554.4233 | K15: 13326.59224
A16: 2023 | B16: DP | C16: Dermatopathology | D16: 28 | E16: 53 | F16: 12438.47727 | G16: 7545.6619 | H16: 9600.0714 | I16: 11725.00278 | J16: 15432.6171 | K16: 22692.3182
A17: 2023 | B17: 22 | C17: Emergency Medicine | D17: 46 | E17: 812 | F17: 7122.762085 | G17: 5337.81825 | H17: 7296.409 | I17: 8311.65088 | J17: 9056.420725 | K17: 10643.33127
A18: 2023 | B18: 23 | C18: Endocrinology / Metabolism | D18: 52 | E18: 254 | F18: 5230.175549 | G18: 4264.426825 | H18: 5265.34375 | I18: 5818.685715 | J18: 6304.114775 | K18: 7292.11337
A19: 2023 | B19: 25 | C19: Family Medicine (with OB) | D19: 18 | E19: 67 | F19: 5359.364471 | G19: 4341.8969 | H19: 5282.5298 | I19: 5764.08282 | J19: 6249.9105 | K19: 7675.4228
A20: 2023 | B20: 26 | C20: Family Medicine (without OB) | D20: 50 | E20: 399 | F20: 5560.357464 | G20: 4259.7444 | H20: 5306.7287 | I20: 6105.74955 | J20: 6755.0873 | K20: 8164.69564
A21: 2023 | B21: ZF | C21: Family Medicine: Sports Medicine | D21: 22 | E21: 41 | F21: 6422.06108 | G21: 4759.13 | H21: 5672.8844 | I21: 7083.3729 | J21: 8422.9 | K21: 9888.5581
A22: 2023 | B22: 27 | C22: Gastroenterology | D22: 51 | E22: 415 | F22: 7420.547783 | G22: 6022.7939 | H22: 7277.713 | I22: 8297.39602 | J22: 8846.60555 | K22: 10726.13506
A23: 2023 | B23: 39 | C23: General Internal Medicine | D23: 55 | E23: 678 | F23: 5032.146653 | G23: 3766.79285 | H23: 4987.5866 | I23: 5631.49892 | J23: 6150.63605 | K23: 7403.43898
A24: 2023 | B24: 28 | C24: Geriatrics | D24: 41 | E24: 136 | F24: 3699.421474 | G24: 2882.5809 | H24: 3869.90285 | I24: 4358.813725 | J24: 4729.792025 | K24: 5240.03595
A25: 2023 | B25: 29 | C25: Gynecological Oncology | D25: 44 | E25: 102 | F25: 6863.760293 | G25: 5043.965875 | H25: 6770.27485 | I25: 7826.20455 | J25: 8432.06185 | K25: 10568.74911
A26: 2023 | B26: M5 | C26: Gynecology | D26: 30 | E26: 67 | F26: 5355.668084 | G26: 3705.80455 | H26: 5670.7775 | I26: 6317.16115 | J26: 6969.9868 | K26: 8284.52032
A27: 2023 | B27: 72 | C27: Hematology | D27: 40 | E27: 141 | F27: 5204.984608 | G27: 3824.3749 | H27: 5130.5637 | I27: 5737.5 | J27: 6612.0133 | K27: 8098.6
A28: 2023 | B28: B7 | C28: Hematology: Malignant Disorders | D28: 27 | E28: 80 | F28: 5972.657304 | G28: 4718.706225 | H28: 5921.8458 | I28: 6469.03719 | J28: 6910.3599 | K28: 9055.10706
A29: 2023 | B29: 40 | C29: Hepatology | D29: 37 | E29: 127 | F29: 5700.500201 | G29: 4331.8564 | H29: 5706.4722 | I29: 6310.42 | J29: 6655.50105 | K29: 8539.0385
A30: 2023 | B30: ZP | C30: Hospitalists | D30: 47 | E30: 946 | F30: 3945.355016 | G30: 3043.75675 | H30: 3797.04555 | I30: 4200.34525 | J30: 4633.9175 | K30: 5443.76335
A31: 2023 | B31: 37 | C31: Infectious Disease | D31: 45 | E31: 220 | F31: 3932.948835 | G31: 3154.54245 | H31: 4131.03335 | I31: 4508.1657 | J31: 4901.5699 | K31: 5836.82644
A32: 2023 | B32: 42 | C32: Maternal and Fetal Medicine | D32: 45 | E32: 196 | F32: 8153.956193 | G32: 5904.85285 | H32: 8016.9022 | I32: 9187.397275 | J32: 10426.77398 | K32: 13138.9892
A33: 2023 | B33: MI | C33: Medical Oncology with Infusion | D33: 7 | E33: 20 | F33: 6866.998276 | G33: 5327.650025 | H33: 6579.3791 | I33: 7491.66535 | J33: 8286.570875 | K33: 9445.1372
A34: 2023 | B34: 74 | C34: Medical Oncology without Infusion | D34: 43 | E34: 243 | F34: 5061.229648 | G34: 4264.98395 | H34: 5101.4138 | I34: 5704.21844 | J34: 6125.53355 | K34: 7203.82896
A35: 2023 | B35: B1 | C35: Medical Oncology: Breast Cancer | D35: 11 | E35: 22 | F35: 5706.616567 | G35: 4742.896725 | H35: 5509.3956 | I35: 6061.47084 | J35: 6230.39005 | K35: 7090.19404
A36: 2023 | B36: B2 | C36: Medical Oncology: GI Cancer | D36: 9 | E36: 20 | F36: 5070.904018 | G36: 3706.9833 | H36: 4608.81015 | I36: 5903.08484 | J36: 6976.30445 | K36: 7292.16288
A37: 2023 | B37: 18 | C37: MOHS Surgery | D37: 34 | E37: 56 | F37: 14343.00261 | G37: 11763.965 | H37: 14098.16335 | I37: 15931.90825 | J37: 17321.96932 | K37: 21567.34595
A38: 2023 | B38: 46 | C38: Nephrology | D38: 50 | E38: 237 | F38: 8618.463542 | G38: 6471.71 | H38: 8078.6364 | I38: 9693.39676 | J38: 10947.5467 | K38: 13208.04452
A39: 2023 | B39: N2 | C39: Nephrology without Dialysis | D39: 41 | E39: 141 | F39: 5805.831417 | G39: 4681.3714 | H39: 5615 | I39: 6374.01 | J39: 7312.1266 | K39: 8234.5811
A40: 2023 | B40: 51 | C40: Neurology: Alzheimers / Dementia | D40: 12 | E40: 20 | F40: 4455.811918 | G40: 2977.066225 | H40: 4363.2459 | I40: 5091.215955 | J40: 5299.766975 | K40: 6694.95797
A41: 2023 | B41: 56 | C41: Neurology: Epilepsy / EEG | D41: 47 | E41: 155 | F41: 6566.820455 | G41: 4877.98895 | H41: 6218.3895 | I41: 7037.16573 | J41: 7753.02545 | K41: 10381.89396
A42: 2023 | B42: 44 | C42: Neurology: General | D42: 53 | E42: 220 | F42: 4650.829444 | G42: 3382.619825 | H42: 4350.2866 | I42: 5089.73723 | J42: 5672.894925 | K42: 7035.15905
A43: 2023 | B43: N6 | C43: Neurology: Movement Disorders | D43: 36 | E43: 66 | F43: 4650.884026 | G43: 4106.588925 | H43: 4679.73995 | I43: 5180.554625 | J43: 5582.992925 | K43: 6557.36825
A44: 2023 | B44: 53 | C44: Neurology: Neuromuscular | D44: 47 | E44: 133 | F44: 4739.584433 | G44: 3866.9193 | H44: 4560.381 | I44: 5191.97796 | J44: 5548.1977 | K44: 6363.53274
A45: 2023 | B45: N7 | C45: Neurology: Stroke | D45: 40 | E45: 99 | F45: 4886.620684 | G45: 3863.5741 | H45: 4720.41 | I45: 5338.14075 | J45: 6106.71485 | K45: 7303.5207
A46: 2023 | B46: K7 | C46: Neuropsychology | D46: 30 | E46: 85 | F46: 2403.838177 | G46: 1784.72 | H46: 2387.2159 | I46: 2684.5195 | J46: 2984.82 | K46: 3615.74666
A47: 2023 | B47: 47 | C47: Nuclear Medicine | D47: 34 | E47: 81 | F47: 6218.199871 | G47: 4559.4389 | H47: 6245.39 | I47: 7239.5077 | J47: 7816.2844 | K47: 9301.2617
A48: 2023 | B48: 52 | C48: Obstetrics / Gynecology | D48: 53 | E48: 386 | F48: 7779.033293 | G48: 6048.48965 | H48: 7517.58625 | I48: 8754.486425 | J48: 9648.3209 | K48: 12105.7119
A49: 2023 | B49: 91 | C49: Ophthalmology: Corneal / Refractive Surgery | D49: 41 | E49: 158 | F49: 9746.492863 | G49: 7164.6551 | H49: 9808.96905 | I49: 10693.98269 | J49: 11907.15027 | K49: 14889.49717
A50: 2023 | B50: 90 | C50: Ophthalmology: General / Comprehensive | D50: 33 | E50: 70 | F50: 7866.467857 | G50: 5045.741675 | H50: 7317.6109 | I50: 8828.73791 | J50: 11578.06992 | K50: 14876.28366
A51: 2023 | B51: 92 | C51: Ophthalmology: Glaucoma | D51: 39 | E51: 89 | F51: 9929.934228 | G51: 7504.4312 | H51: 9806.9049 | I51: 11716.0411 | J51: 12618.666 | K51: 16372.54268
A52: 2023 | B52: 93 | C52: Ophthalmology: Neuro | D52: 23 | E52: 31 | F52: 6353.079877 | G52: 4851.40015 | H52: 6826.8368 | I52: 7520.26915 | J52: 8167.58015 | K52: 9870.7188
A53: 2023 | B53: 95 | C53: Ophthalmology: Oculoplastic / Reconstructive Surgery | D53: 31 | E53: 53 | F53: 7944.050182 | G53: 6556.0339 | H53: 8224.7477 | I53: 8800.44974 | J53: 9169.2964 | K53: 10429.06614
A54: 2023 | B54: 97 | C54: Ophthalmology: Optometry | D54: 37 | E54: 112 | F54: 4678.870035 | G54: 3683.35395 | H54: 4570.86805 | I54: 5235.90716 | J54: 5838.584375 | K54: 6613.07973
A55: 2023 | B55: 94 | C55: Ophthalmology: Pediatric | D55: 33 | E55: 96 | F55: 6765.718013 | G55: 5206.52975 | H55: 6491.90165 | I55: 7437.88075 | J55: 8063.3796 | K55: 10702.2023
A56: 2023 | B56: 96 | C56: Ophthalmology: Retinal | D56: 45 | E56: 148 | F56: 10846.74034 | G56: 7500.483575 | H56: 10468.75645 | I56: 13020.27316 | J56: 14513.70135 | K56: 18766.63095
A57: 2023 | B57: 70 | C57: Orthopedic Surgery: Foot / Ankle | D57: 35 | E57: 67 | F57: 8734.503687 | G57: 6400.62565 | H57: 8781.6717 | I57: 9796.15671 | J57: 10905.92745 | K57: 13246.78664
A58: 2023 | B58: 57 | C58: Orthopedic Surgery: General | D58: 35 | E58: 60 | F58: 9123.458224 | G58: 6213.4933 | H58: 8736.59655 | I58: 10287.11841 | J58: 11233.8822 | K58: 14107.57363
A59: 2023 | B59: 36 | C59: Orthopedic Surgery: Hand | D59: 45 | E59: 100 | F59: 9527.828831 | G59: 6966.47105 | H59: 9468.73465 | I59: 10918.79948 | J59: 11597.61335 | K59: 14788.12411
A60: 2023 | B60: 35 | C60: Orthopedic Surgery: Joint | D60: 46 | E60: 148 | F60: 10941.51279 | G60: 8072.6694 | H60: 10543.03585 | I60: 12616.24308 | J60: 14353.882 | K60: 18186.20193
A61: 2023 | B61: 62 | C61: Orthopedic Surgery: Oncology | D61: 20 | E61: 30 | F61: 5776.334464 | G61: 3798.137325 | H61: 5424.57745 | I61: 6330.599865 | J61: 6515.759125 | K61: 9572.78414
A62: 2023 | B62: 67 | C62: Orthopedic Surgery: Pediatric | D62: 32 | E62: 122 | F62: 7711.344618 | G62: 5212.704125 | H62: 7436.3878 | I62: 8607.429245 | J62: 10347.80255 | K62: 12136.27214
A63: 2023 | B63: 88 | C63: Orthopedic Surgery: Shoulder / Elbow | D63: 41 | E63: 66 | F63: 11554.63779 | G63: 9236.564 | H63: 11125.5866 | I63: 12791.63027 | J63: 14713.4452 | K63: 16032.2231
A64: 2023 | B64: 31 | C64: Orthopedic Surgery: Spine | D64: 43 | E64: 111 | F64: 12956.8553 | G64: 9147.0025 | H64: 12779.4165 | I64: 15072.536 | J64: 16359.28435 | K64: 19689.1826
A65: 2023 | B65: 85 | C65: Orthopedic Surgery: Sports Medicine | D65: 40 | E65: 107 | F65: 9257.119561 | G65: 6853.4721 | H65: 9057.7325 | I65: 10566.78519 | J65: 11229.2203 | K65: 13510.63846
A66: 2023 | B66: 24 | C66: Orthopedic Surgery: Trauma | D66: 39 | E66: 104 | F66: 10078.6327 | G66: 8041.491775 | H66: 9857.94305 | I66: 11142.73235 | J66: 11690.7403 | K66: 14532.88187
A67: 2023 | B67: C5 | C67: Other Therapy Providers | D67: 10 | E67: 20 | F67: 2044.820085 | G67: 1244.6825 | H67: 2216.85305 | I67: 2696.104865 | J67: 2865.459175 | K67: 3092.62444
A68: 2023 | B68: 58 | C68: Otorhinolaryngology | D68: 49 | E68: 234 | F68: 7679.291125 | G68: 5834.906325 | H68: 7682.28225 | I68: 8663.995125 | J68: 9633.60675 | K68: 12121.93343
A69: 2023 | B69: R1 | C69: Otorhinolaryngology: Facial Plastics | D69: 16 | E69: 22 | F69: 7508.472519 | G69: 5906.372125 | H69: 7058.3911 | I69: 8908.862725 | J69: 9896.974675 | K69: 11346.01247
A70: 2023 | B70: B9 | C70: Otorhinolaryngology: Head and Neck Cancer | D70: 37 | E70: 98 | F70: 10422.03594 | G70: 7624.54445 | H70: 10009.1729 | I70: 11547.88817 | J70: 12957.17475 | K70: 15339.65189
A71: 2023 | B71: R2 | C71: Otorhinolaryngology: Laryngology | D71: 23 | E71: 32 | F71: 8622.815549 | G71: 7502.3562 | H71: 8826.83995 | I71: 9841.657365 | J71: 10159.99367 | K71: 10825.55949
A72: 2023 | B72: R3 | C72: Otorhinolaryngology: Otology | D72: 24 | E72: 31 | F72: 8809.01105 | G72: 6663.65055 | H72: 8364.2231 | I72: 9218.44725 | J72: 10028.63345 | K72: 13490.3394
A73: 2023 | B73: R4 | C73: Otorhinolaryngology: Rhinology | D73: 21 | E73: 29 | F73: 11266.38025 | G73: 7808.2661 | H73: 10563.7519 | I73: 12224.11356 | J73: 13957.6845 | K73: 16109.46558
A74: 2023 | B74: 19 | C74: Pain Management | D74: 35 | E74: 112 | F74: 5827.772871 | G74: 3930.26275 | H74: 5523.48475 | I74: 6420.623645 | J74: 7171.79805 | K74: 9891.46129
A75: 2023 | B75: 98 | C75: Palliative Care | D75: 41 | E75: 141 | F75: 2939.133199 | G75: 2138.72 | H75: 2834.3256 | I75: 3278.3125 | J75: 3797.6333 | K75: 4561.0143
A76: 2023 | B76: 07 | C76: Pathology: Anatomic | D76: 46 | E76: 346 | F76: 6450.935273 | G76: 4418.34035 | H76: 6485.3969 | I76: 7429.162625 | J76: 8186.753425 | K76: 9855.96515
A77: 2023 | B77: 14 | C77: Pathology: Clinical | D77: 25 | E77: 83 | F77: 5257.356197 | G77: 2274.6954 | H77: 5235.7361 | I77: 6454.79977 | J77: 7401.0271 | K77: 10257.74614
A78: 2023 | B78: CY | C78: Pathology: Cytopathology | D78: 18 | E78: 42 | F78: 5547.883833 | G78: 3701.60355 | H78: 5695.4833 | I78: 6458.01964 | J78: 6873.640875 | K78: 8654.64046
A79: 2023 | B79: P2 | C79: Pathology: Hematopathology | D79: 15 | E79: 52 | F79: 6671.176405 | G79: 4532.376675 | H79: 6696.35835 | I79: 7775.860205 | J79: 8636.89335 | K79: 10065.43784
A80: 2023 | B80: 80 | C80: Pathology: Surgical | D80: 21 | E80: 117 | F80: 7120.078657 | G80: 5604.1875 | H80: 7444.3521 | I80: 8045.5086 | J80: 8740.9104 | K80: 9837.44706
A81: 2023 | B81: B8 | C81: Pediatric Hematology: Malignant Disorders | D81: 12 | E81: 35 | F81: 3985.233746 | G81: 2693.0073 | H81: 3794.5412 | I81: 4231.41048 | J81: 4585.0151 | K81: 6170.7696
A82: 2023 | B82: 41 | C82: Pediatrics: Adolescent Medicine | D82: 18 | E82: 33 | F82: 3194.405823 | G82: 2479.8687 | H82: 3230.8287 | I82: 3705.17842 | J82: 4027.5 | K82: 4757.0377
A83: 2023 | B83: 05 | C83: Pediatrics: Allergy / Immunology | D83: 22 | E83: 47 | F83: 3483.460034 | G83: 2859.07235 | H83: 3446.2388 | I83: 3879.06758 | J83: 4205.23645 | K83: 4862.10492
A84: 2023 | B84: DC | C84: Pediatrics: Bone Marrow Transplant | D84: 8 | E84: 20 | F84: 3000.423994 | G84: 2237.39665 | H84: 2819.9678 | I84: 3610.406845 | J84: 4105.84345 | K84: 5493.70132
A85: 2023 | B85: 63 | C85: Pediatrics: Cardiology | D85: 33 | E85: 114 | F85: 4798.602592 | G85: 3501.840725 | H85: 4751.52255 | I85: 5758.90548 | J85: 6312.9749 | K85: 7444.38668
A86: 2023 | B86: P9 | C86: Pediatrics: Cardiology Interventional | D86: 11 | E86: 22 | F86: 4839.014714 | G86: 3609.226475 | H86: 4793.5124 | I86: 5340.561265 | J86: 6056.919525 | K86: 7843.14147
A87: 2023 | B87: 33 | C87: Pediatrics: Cardiology-Invasive | D87: 20 | E87: 30 | F87: 5425.583725 | G87: 4035.09465 | H87: 5327.25965 | I87: 6575.659775 | J87: 6753.7294 | K87: 7983.605
A88: 2023 | B88: 34 | C88: Pediatrics: Cardiology-Noninvasive | D88: 36 | E88: 166 | F88: 4882.592844 | G88: 3754.3255 | H88: 4869.147 | I88: 5467.593775 | J88: 6075.06375 | K88: 6923.65565
A89: 2023 | B89: A5 | C89: Pediatrics: Critical Care | D89: 39 | E89: 248 | F89: 5777.498004 | G89: 3998.780875 | H89: 5693.415 | I89: 6750.762075 | J89: 7599.747825 | K89: 8825.2601
A90: 2023 | B90: P6 | C90: Pediatrics: Dermatology | D90: 19 | E90: 32 | F90: 6696.597782 | G90: 5159.949225 | H90: 6354.335 | I90: 7348.523665 | J90: 8024.211125 | K90: 10887.09433
A91: 2023 | B91: A2 | C91: Pediatrics: Developmental | D91: 22 | E91: 66 | F91: 2822.626495 | G91: 1469.655 | H91: 2804.5869 | I91: 3139.035775 | J91: 3444.4149 | K91: 4874.025
A92: 2023 | B92: 20 | C92: Pediatrics: Emergency Medicine | D92: 34 | E92: 222 | F92: 6188.346405 | G92: 4629.39115 | H92: 5918.366 | I92: 6810.452375 | J92: 7772.433875 | K92: 9251.58509
A93: 2023 | B93: 64 | C93: Pediatrics: Endocrinology | D93: 37 | E93: 104 | F93: 3797.107823 | G93: 3116.245575 | H93: 3792.94985 | I93: 4132.85551 | J93: 4596.210475 | K93: 5060.65019
A94: 2023 | B94: A8 | C94: Pediatrics: Gastroenterology | D94: 39 | E94: 176 | F94: 4328.984633 | G94: 3475.230575 | H94: 4389.74685 | I94: 4884.718775 | J94: 5164.747825 | K94: 5830.4691
A95: 2023 | B95: 61 | C95: Pediatrics: General | D95: 44 | E95: 323 | F95: 4513.738023 | G95: 3300.62575 | H95: 4408.5238 | I95: 5096.71341 | J95: 5632.5237 | K95: 6853.65854
A96: 2023 | B96: A7 | C96: Pediatrics: Hematology / Oncology | D96: 37 | E96: 132 | F96: 3675.163758 | G96: 2771.6798 | H96: 3579.39405 | I96: 4016.12097 | J96: 4447.854825 | K96: 6010.87369
A97: 2023 | B97: 43 | C97: Pediatrics: Hospitalists | D97: 33 | E97: 191 | F97: 2950.114309 | G97: 2226.85425 | H97: 2896 | I97: 3383.80145 | J97: 3638.4646 | K97: 4496.268
A98: 2023 | B98: 11 | C98: Pediatrics: Infectious Disease | D98: 24 | E98: 40 | F98: 2151.56594 | G98: 1713.315775 | H98: 2063.72915 | I98: 2362.75788 | J98: 2768.862975 | K98: 3108.82273
A99: 2023 | B99: 48 | C99: Pediatrics: Neonatal Medicine | D99: 42 | E99: 319 | F99: 11355.38257 | G99: 8985.6374 | H99: 11725.1282 | I99: 13146.21996 | J99: 14183.9344 | K99: 16751.34286
A100: 2023 | B100: 49 | C100: Pediatrics: Nephrology | D100: 33 | E100: 75 | F100: 3781.549006 | G100: 2890.08215 | H100: 3775.9114 | I100: 4308.56165 | J100: 5009.7347 | K100: 5738.27924
A101: 2023 | B101: 12 | C101: Pediatrics: Neurology | D101: 39 | E101: 165 | F101: 4440.276178 | G101: 3220.5762 | H101: 4254.6324 | I101: 4912.22112 | J101: 5477.2917 | K101: 6632.46518
A102: 2023 | B102: 68 | C102: Pediatrics: Otorhinolaryngology | D102: 33 | E102: 100 | F102: 7689.724534 | G102: 5908.43985 | H102: 6903.80185 | I102: 7830.437575 | J102: 8916.900125 | K102: 11543.65593
A103: 2023 | B103: 65 | C103: Pediatrics: Psychiatry | D103: 28 | E103: 90 | F103: 3975.422802 | G103: 2468.510575 | H103: 3839.53555 | I103: 4433.567975 | J103: 5117.10615 | K103: 6336.13241
A104: 2023 | B104: K8 | C104: Pediatrics: Psychology | D104: 24 | E104: 80 | F104: 2049.938624 | G104: 1297.7543 | H104: 1974.2 | I104: 2465.575085 | J104: 2739.0677 | K104: 3251.94737
A105: 2023 | B105: A6 | C105: Pediatrics: Pulmonology | D105: 35 | E105: 100 | F105: 4084.714475 | G105: 3160.21605 | H105: 4210.8612 | I105: 4586.07019 | J105: 4959.022025 | K105: 5482.49101
A106: 2023 | B106: 45 | C106: Pediatrics: Rehabilitation | D106: 12 | E106: 23 | F106: 3615.910724 | G106: 3165.6954 | H106: 3595.6077 | I106: 3679.41165 | J106: 4264.5938 | K106: 5512.33408
A107: 2023 | B107: 21 | C107: Pediatrics: Rheumatology | D107: 21 | E107: 42 | F107: 3312.452081 | G107: 2581.5904 | H107: 3306.12 | I107: 3588.075345 | J107: 3875.294975 | K107: 4312.36859
A108: 2023 | B108: M8 | C108: Pediatrics: Urology | D108: 30 | E108: 59 | F108: 8332.757457 | G108: 6703.0167 | H108: 7645.8866 | I108: 9189.52208 | J108: 10208.4928 | K108: 12006.84262
A109: 2023 | B109: 69 | C109: Physical Medicine: General | D109: 37 | E109: 102 | F109: 5282.841735 | G109: 3790.03485 | H109: 4965.71445 | I109: 5625.96947 | J109: 6309.441925 | K109: 8211.12001
A110: 2023 | B110: C2 | C110: Physical Medicine: Neurological | D110: 36 | E110: 101 | F110: 5279.231408 | G110: 3672.8947 | H110: 5194.5882 | I110: 5818.3939 | J110: 6557.2593 | K110: 8387.5769
A111: 2023 | B111: C4 | C111: Physical Medicine: Pain and Spine | D111: 30 | E111: 62 | F111: 5674.896197 | G111: 4017.6785 | H111: 5756.30555 | I111: 6370.763985 | J111: 6897.236775 | K111: 8037.85842
A112: 2023 | B112: C3 | C112: Physical Medicine: Sports - MSK | D112: 26 | E112: 76 | F112: 5276.431278 | G112: 3959.35315 | H112: 5472.5466 | I112: 6301.977675 | J112: 6730.9209 | K112: 7385.0493
A113: 2023 | B113: P1 | C113: Physical Therapy | D113: 12 | E113: 61 | F113: 2121.000845 | G113: 1620.08 | H113: 2120.6383 | I113: 2421.24 | J113: 2528.3 | K113: 3177.25
A114: 2023 | B114: ZA | C114: Podiatry | D114: 30 | E114: 66 | F114: 6204.145693 | G114: 4441.488775 | H114: 6292.55445 | I114: 7094.658775 | J114: 8179.667425 | K114: 9263.6702
A115: 2023 | B115: 59 | C115: Psychiatry | D115: 54 | E115: 402 | F115: 4455.027547 | G115: 2849.973775 | H115: 4000.5779 | I115: 4820.780185 | J115: 5677.9733 | K115: 7642.66263
A116: 2023 | B116: 60 | C116: Psychology | D116: 46 | E116: 308 | F116: 2901.279109 | G116: 2152.76435 | H116: 2781.63125 | I116: 3155.58413 | J116: 3532.979575 | K116: 4197.61706
A117: 2023 | B117: 73 | C117: Pulmonary Disease | D117: 54 | E117: 366 | F117: 5842.684851 | G117: 4332.498425 | H117: 5832.8783 | I117: 6769.48155 | J117: 7416.50495 | K117: 8719.3553
A118: 2023 | B118: 79 | C118: Radiation Oncology | D118: 47 | E118: 222 | F118: 11967.37414 | G118: 8705.2977 | H118: 11699.99435 | I118: 13627.34904 | J118: 15399.55775 | K118: 17950.02142
A119: 2023 | B119: B4 | C119: Radiation Oncology: Breast Cancer | D119: 21 | E119: 46 | F119: 10916.09886 | G119: 8375.268925 | H119: 10820.6417 | I119: 12267.08512 | J119: 13487.81493 | K119: 14832.5148
A120: 2023 | B120: B3 | C120: Radiation Oncology: Genitourinary Cancer | D120: 24 | E120: 37 | F120: 13027.4423 | G120: 9800.3332 | H120: 12269.0333 | I120: 13249.85948 | J120: 15619.3621 | K120: 20651.26578
A121: 2023 | B121: B5 | C121: Radiation Oncology: Head and Neck Cancer | D121: 19 | E121: 24 | F121: 10522.71136 | G121: 7818.384875 | H121: 10001.7889 | I121: 11928.31577 | J121: 15064.2239 | K121: 16392.20792
A122: 2023 | B122: 75 | C122: Radiology: Diagnostic | D122: 48 | E122: 980 | F122: 9492.176863 | G122: 6862.705775 | H122: 9452.972 | I122: 10736.65011 | J122: 11973.6157 | K122: 14313.67655
A123: 2023 | B123: 38 | C123: Radiology: Interventional | D123: 47 | E123: 271 | F123: 6618.206911 | G123: 4964.3102 | H123: 6464.8417 | I123: 7367.4824 | J123: 8300.0672 | K123: 9757.6046
A124: 2023 | B124: 76 | C124: Reproductive Endocrinology | D124: 25 | E124: 65 | F124: 8664.325668 | G124: 4008.2353 | H124: 7473.0472 | I124: 10168.18464 | J124: 13005.4112 | K124: 16820.94106
A125: 2023 | B125: 77 | C125: Rheumatology | D125: 50 | E125: 182 | F125: 4829.409561 | G125: 4120.1646 | H125: 4842.51095 | I125: 5360.34956 | J125: 5728.360575 | K125: 6242.41002
A126: 2023 | B126: 55 | C126: Sleep Medicine | D126: 26 | E126: 64 | F126: 5086.939269 | G126: 3812.36635 | H126: 5215.40785 | I126: 5722.44528 | J126: 6075.899625 | K126: 7370.38754
A127: 2023 | B127: SW | C127: Social Worker | D127: 24 | E127: 131 | F127: 2313.992125 | G127: 1782.935 | H127: 2316.7333 | I127: 2705.82625 | J127: 2846.13 | K127: 3377.7556
A128: 2023 | B128: SP | C128: Speech Language Pathologist | D128: 14 | E128: 20 | F128: 1260.682053 | G128: 743.070175 | H128: 1435.885 | I128: 1544.826625 | J128: 1579.0525 | K128: 1792.3517
A129: 2023 | B129: N5 | C129: Surgery: Bariatric | D129: 18 | E129: 24 | F129: 7465.3692 | G129: 4868.1964 | H129: 7646.4198 | I129: 8812.0933 | J129: 11964.5756 | K129: 14832.5355
A130: 2023 | B130: 13 | C130: Surgery: Burn | D130: 18 | E130: 28 | F130: 13608.52696 | G130: 10256.74942 | H130: 13742.195 | I130: 15661.64665 | J130: 16344.69578 | K130: 21814.67337
A131: 2023 | B131: 81 | C131: Surgery: Cardiac | D131: 48 | E131: 182 | F131: 10819.1248 | G131: 7097.465725 | H131: 9975.44295 | I131: 12477.55709 | J131: 14361.14623 | K131: 18998.02569
A132: 2023 | B132: 16 | C132: Surgery: Colon and Rectal | D132: 46 | E132: 130 | F132: 7805.541438 | G132: 5504.86435 | H132: 7431.48145 | I132: 8788.443455 | J132: 9765.3168 | K132: 12408.18299
A133: 2023 | B133: 32 | C133: Surgery: General | D133: 47 | E133: 221 | F133: 7620.212172 | G133: 5720.905 | H133: 7416.4109 | I133: 8501.6296 | J133: 9484.0324 | K133: 11684.8479
A134: 2023 | B134: 50 | C134: Surgery: Neurological | D134: 50 | E134: 387 | F134: 11370.38516 | G134: 7015.9973 | H134: 10204.2613 | I134: 13093.73675 | J134: 14656.91795 | K134: 19236.23442
A135: 2023 | B135: A0 | C135: Surgery: Oral | D135: 16 | E135: 38 | F135: 4754.982879 | G135: 3359.127825 | H135: 4443.62635 | I135: 5275.360205 | J135: 5865.88795 | K135: 7991.04309
A136: 2023 | B136: 66 | C136: Surgery: Pediatric | D136: 38 | E136: 154 | F136: 6035.9937 | G136: 4306.38785 | H136: 5729.2562 | I136: 6723.30328 | J136: 7875.17765 | K136: 9786.25758
A137: 2023 | B137: G3 | C137: Surgery: Pediatric Cardiac | D137: 25 | E137: 44 | F137: 7910.885017 | G137: 4394.955075 | H137: 7689.33335 | I137: 9394.651755 | J137: 11294.5683 | K137: 13927.02983
A138: 2023 | B138: G2 | C138: Surgery: Pediatric Neurosurgery | D138: 26 | E138: 54 | F138: 5655.423291 | G138: 4322.2864 | H138: 5151.17415 | I138: 5887.86306 | J138: 6667.684675 | K138: 8977.04589
A139: 2023 | B139: 71 | C139: Surgery: Plastic | D139: 51 | E139: 235 | F139: 8614.74678 | G139: 6339.4843 | H139: 8228.5935 | I139: 9198.16748 | J139: 10169.19835 | K139: 14013.09496
A140: 2023 | B140: 87 | C140: Surgery: Thoracic | D140: 45 | E140: 132 | F140: 7393.001894 | G140: 4870.617225 | H140: 6819.33435 | I140: 8223.866375 | J140: 9296.603775 | K140: 13308.1263
A141: 2023 | B141: ZT | C141: Surgery: Trauma | D141: 52 | E141: 307 | F141: 8171.190983 | G141: 5954.79695 | H141: 8022.7037 | I141: 9193.67331 | J141: 10274.97025 | K141: 12333.53164
A142: 2023 | B142: 86 | C142: Surgery: Vascular | D142: 53 | E142: 206 | F142: 8642.60205 | G142: 6415.174175 | H142: 8358.0645 | I142: 9677.6727 | J142: 11175.22495 | K142: 13282.6152
A143: 2023 | B143: 02 | C143: Surgical Oncology | D143: 42 | E143: 128 | F143: 7384.718361 | G143: 5509.583375 | H143: 7277.85465 | I143: 8556.604865 | J143: 9260.23305 | K143: 11224.48816
A144: 2023 | B144: 30 | C144: Surgical Oncology: Breast | D144: 50 | E144: 124 | F144: 6099.035607 | G144: 4489.68015 | H144: 5828.6344 | I144: 6730.979115 | J144: 7610.66975 | K144: 9420.49495
A145: 2023 | B145: TS | C145: Transplant Surgery: General | D145: 25 | E145: 58 | F145: 7133.82135 | G145: 5284.954725 | H145: 6925.31125 | I145: 8216.95494 | J145: 9115.933525 | K145: 10935.77391
A146: 2023 | B146: 10 | C146: Transplant Surgery: Kidney | D146: 27 | E146: 49 | F146: 6633.933708 | G146: 4805.8741 | H146: 5930.0717 | I146: 7157.4875 | J146: 8530.5778 | K146: 10808.21076
A147: 2023 | B147: 89 | C147: Transplant Surgery: Liver | D147: 22 | E147: 46 | F147: 7492.43019 | G147: 5071.036275 | H147: 7185.5586 | I147: 8935.44515 | J147: 10108.0204 | K147: 12168.76245
A148: 2023 | B148: 78 | C148: Uro-Gynecology | D148: 41 | E148: 78 | F148: 6431.309901 | G148: 4995.97595 | H148: 6541.69725 | I148: 7349.67457 | J148: 7959.751875 | K148: 9246.63045
A149: 2023 | B149: 82 | C149: Urology | D149: 51 | E149: 275 | F149: 8569.261275 | G149: 6507.9262 | H149: 8484.9078 | I149: 9550.04036 | J149: 10704.0037 | K149: 12869.22886
A150: 2023 | B150: BA | C150: Urology: Urologic Cancer | D150: 39 | E150: 85 | F150: 9977.989635 | G150: 7815.2589 | H150: 10018.4129 | I150: 11150.53844 | J150: 11921.849 | K150: 14308.83536
A151: 2023 | C151: CSC: Pediatrics: Psychiatry | H151: 3463
A152: 2023 | C152: CSC: Pediatrics: Psychiatry - NP / PA | H152: 3024
A153: 2023 | C153: CSC: Pediatrics: Psychology | H153: 2290
A154: 2023 | C154: CSC: Social Worker | H154: 2123
A155: 2023 | C155: CSC: Speech Language Pathologist | H155: 1435.89
A156: 2023 | C156: CSC: Counselor | H156: 2123
A157: 2023 | C157: CSC: Therapist | H157: 2123
A158: 2023 | C158: CSC: Psychiatry | H158: 3024
A159: 2023 | C159: CSC: APP: Psychiatry | H159: 3024

Sheet $-RVU (hidden)
A1: Specialty Code | B1: Specialty_Description | C1: Payments | D1: Work RVUs | E1: Rate
A2: NULL | B2: NULL | C2: 10042857.74 | D2: 71.41 | E2: =IFERROR(SUM(C2/D2),0) -> 140636.5739
A3: CA | B3: NULL | C3: 10171.59 | D3: 0 | E3: =IFERROR(SUM(C3/D3),0) -> 0
A4: 2 | B4: NULL | C4: 397692.24 | D4: 3231.59 | E4: 123.063953
A5: 4 | B5: NULL | C5: 30 | D5: 0 | E5: 0
A6: 6 | B6: NULL | C6: 2147412.65 | D6: 2511.58 | E6: 855.0046783
A7: 7 | B7: NULL | C7: 465990.27 | D7: 7587.43 | E7: 61.41608819
A8: 9 | B8: NULL | C8: 612870.76 | D8: 9405.94 | E8: 65.15784281
A9: AM | B9: NULL | C9: 47438.59 | D9: 1011.57 | E9: 46.89600324
A10: LB | B10: NULL | C10: 157.66 | D10: 4.63 | E10: 34.05183585
A11: UHC20 | B11: NULL | C11: 50465.13 | D11: 663.77 | E11: 76.02803682
A12: MP | B12: Advanced Practice Provider | C12: 8457755.61 | D12: 115955.7 | E12: 72.93954165
A13: 04 | B13: Allergy / Immunology | C13: 845154.31 | D13: 7944.18 | E13: 106.3866013
A14: 06 | B14: Anesthesiology | C14: 47678423.43 | D14: 53986.69 | E14: 883.1514477
A15: ZE | B15: Audiology | C15: 1111833.43 | D15: 3033.2 | E15: 366.5546057
A16: CE | B16: Cardiology: Electrophysiology | C16: 4657303.36 | D16: 55967.27 | E16: 83.21476749
A17: CG | B17: Cardiology: General | C17: 3029126.93 | D17: 40505.76 | E17: 74.78262178
A18: CI | B18: Cardiology: Invasive | C18: 2975.7 | D18: 2.86 | E18: 1040.454545
A19: D2 | B19: Cardiology: Invasive - NP / PA | C19: 95326.52 | D19: 3057.51 | E19: 31.17782771
A20: CV | B20: Cardiology: Invasive Interventional | C20: 5062901.78 | D20: 63968.63 | E20: 79.14663453
A21: CN | B21: Cardiology: Noninvasive | C21: 9228076.08 | D21: 114513.3 | E21: 80.58519037
A22: D3 | B22: Cardiology: Noninvasive - NP / PA | C22: 11467.94 | D22: 120.13 | E22: 95.46274869
A23: G1 | B23: Clinical Genetics | C23: 303626.82 | D23: 3493.85 | E23: 86.90322137
A24: L2 | B24: Clinical Genetics - NP / PA | C24: 1394.95 | D24: 3.41 | E24: 409.0762463
A25: 09 | B25: Critical Care | C25: 674824.58 | D25: 11218.69 | E25: 60.1518163
A26: G4 | B26: Critical Care - NP / PA | C26: 142459.62 | D26: 2536.42 | E26: 56.16562714
A27: CA | B27: CRNA | C27: 4968119.88 | D27: 550.43 | E27: 9025.888633
A28: 17 | B28: Dermatology | C28: 8230834.73 | D28: 62440.58 | E28: 131.8186783
A29: DP | B29: Dermatopathology | C29: 113811.41 | D29: 1381.84 | E29: 82.36221994
A30: 22 | B30: Emergency Medicine | C30: 12683365.87 | D30: 258371.13 | E30: 49.08971784
A31: E6 | B31: Emergency Medicine - NP / PA | C31: 785902.05 | D31: 13447.19 | E31: 58.44358933
A32: 23 | B32: Endocrinology / Metabolism | C32: 2191869.93 | D32: 25162.12 | E32: 87.10990688
A33: D4 | B33: Endocrinology / Metabolism - NP / PA | C33: 468780.69 | D33: 8303.75 | E33: 56.45409484
A34: 26 | B34: Family Medicine (without OB) | C34: 807355.21 | D34: 8573.12 | E34: 94.17285772
A35: ZF | B35: Family Medicine: Sports Medicine | C35: 102804.43 | D35: 1141.83 | E35: 90.03479502
A36: FW | B36: Fellow | C36: 258547.47 | D36: 1960.95 | E36: 131.8480685
A37: 27 | B37: Gastroenterology | C37: 6390473.89 | D37: 69192.97 | E37: 92.35727112
A38: D6 | B38: Gastroenterology - NP / PA | C38: 553870.47 | D38: 7729.63 | E38: 71.6554958
A39: 39 | B39: General Internal Medicine | C39: 1379190.72 | D39: 15429.96 | E39: 89.38394656
A40: D7 | B40: General Internal Medicine - NP / PA | C40: 337862.47 | D40: 4303.34 | E40: 78.51168395
A41: 28 | B41: Geriatrics | C41: 291047.9 | D41: 5468.11 | E41: 53.22641644
A42: D8 | B42: Geriatrics - NP / PA | C42: 7487.7 | D42: 93.26 | E42: 80.28844092
A43: 29 | B43: Gynecological Oncology | C43: 3322782.12 | D43: 27335.55 | E43: 121.5553417
A44: E8 | B44: Gynecological Oncology - NP / PA | C44: 71827.1 | D44: 1088.32 | E44: 65.99814393
A45: 72 | B45: Hematology | C45: 2980043.17 | D45: 35695.19 | E45: 83.48584697
A46: D9 | B46: Hematology / Oncology - NP / PA | C46: 662580.01 | D46: 9840.38 | E46: 67.33276662
A47: 40 | B47: Hepatology | C47: 2658720.06 | D47: 29107.03 | E47: 91.34288383
A48: C1 | B48: Hepatology - NP / PA | C48: 17879.29 | D48: 321.42 | E48: 55.62594114
A49: L5 | B49: Hospitalist - NP / PA | C49: 487.86 | D49: 166.74 | E49: 2.925872616
A50: ZP | B50: Hospitalists | C50: 1037198.66 | D50: 19828.26 | E50: 52.30911134
A51: 37 | B51: Infectious Disease | C51: 1726342.02 | D51: 29315.91 | E51: 58.88754673
A52: E1 | B52: Infectious Disease - NP / PA | C52: 390898.08 | D52: 7295.27 | E52: 53.58240065
A53: L3 | B53: Internal Medicine - NP / PA | C53: 21022.35 | D53: 132.19 | E53: 159.0313186
A54: 42 | B54: Maternal and Fetal Medicine | C54: 5625479.18 | D54: 50415.71 | E54: 111.5818696
A55: MI | B55: Medical Oncology with Infusion | C55: 1756648.46 | D55: 21892.93 | E55: 80.23816182
A56: 74 | B56: Medical Oncology without Infusion | C56: 11317928.07 | D56: 126973.52 | E56: 89.13612909
A57: ZM | B57: Midwifery | C57: 1614642.41 | D57: 14648.49 | E57: 110.2258601
A58: 18 | B58: MOHS Surgery | C58: 3708163.39 | D58: 22875.68 | E58: 162.1006847
A59: 46 | B59: Nephrology | C59: 1299866.98 | D59: 20733.03 | E59: 62.69546612
A60: E2 | B60: Nephrology - NP / PA | C60: 173092.9 | D60: 3570.63 | E60: 48.47685142
A61: N2 | B61: Nephrology without Dialysis | C61: 1865522.14 | D61: 26817 | E61: 69.56490808
A62: E3 | B62: Neurology - NP / PA | C62: 96571.21 | D62: 1478.58 | E62: 65.31348321
A63: 51 | B63: Neurology: Alzheimers / Dementia | C63: 214287.77 | D63: 2556.58 | E63: 83.81813595
A64: 56 | B64: Neurology: Epilepsy / EEG | C64: 1930557.29 | D64: 26492.45 | E64: 72.87198013
A65: 44 | B65: Neurology: General | C65: 6635037.42 | D65: 58467.09 | E65: 113.4832847
A66: 53 | B66: Neurology: Neuromuscular | C66: 2722788.65 | D66: 29119.49 | E66: 93.50399509
A67: N7 | B67: Neurology: Stroke | C67: 1227229.34 | D67: 18932.51 | E67: =IFERROR(SUM(C67/D67),0) -> 64.82126987
A68: K7 | B68: Neuropsychology | C68: 976750.76 | D68: 10615.48 | E68: 92.01192598
A69: 52 | B69: Obstetrics / Gynecology | C69: 33387883.65 | D69: 178303.06 | E69: 187.2535651
A70: F1 | B70: Obstetrics / Gynecology - NP / PA | C70: 2141139.37 | D70: 13062.17 | E70: 163.9191168
A71: 54 | B71: Occupational Medicine | C71: 61753.59 | D71: 1201.5 | E71: 51.39707865
A72: 91 | B72: Ophthalmology: Corneal / Refractive Surgery | C72: 2316115.1 | D72: 16466.12 | E72: 140.6594328
A73: 90 | B73: Ophthalmology: General / Comprehensive | C73: 1865419.48 | D73: 13414.75 | E73: 139.0573421
A74: F3 | B74: Ophthalmology: General / Comprehensive - NP / PA | C74: 43531.8 | D74: 1323.52 | E74: 32.89092722
A75: 92 | B75: Ophthalmology: Glaucoma | C75: 1543089.06 | D75: 13072.92 | E75: 118.0370613
A76: 93 | B76: Ophthalmology: Neuro | C76: 691729.47 | D76: 6404.58 | E76: 108.0054383
A77: 95 | B77: Ophthalmology: Oculoplastic / Reconstructive Surgery | C77: 152757.8 | D77: 1147.91 | E77: 133.0747184
A78: F4 | B78: Ophthalmology: Optometry - NP / PA | C78: 234019.95 | D78: 1788.95 | E78: 130.8141368
A79: 94 | B79: Ophthalmology: Pediatric | C79: 948115.8 | D79: 9113.28 | E79: 104.0367244
A80: 96 | B80: Ophthalmology: Retinal | C80: 2628367.55 | D80: 14318.14 | E80: 183.5690634
A81: L6 | B81: Orthopedic Surgery - NP / PA | C81: 1419349.07 | D81: 17415.54 | E81: 81.4989986
A82: 70 | B82: Orthopedic Surgery: Foot / Ankle | C82: 1033380.12 | D82: 10170.86 | E82: 101.6020396
A83: 57 | B83: Orthopedic Surgery: General | C83: 39587.84 | D83: 746.16 | E83: 53.05543047
A84: 36 | B84: Orthopedic Surgery: Hand | C84: 2480586.29 | D84: 24376.04 | E84: 101.7633008
A85: 35 | B85: Orthopedic Surgery: Joint | C85: 2022661.9 | D85: 23419.9 | E85: 86.3650955
A86: 62 | B86: Orthopedic Surgery: Oncology | C86: 587709.89 | D86: 4857.17 | E86: 120.9984188
A87: 67 | B87: Orthopedic Surgery: Pediatric | C87: 1417924.99 | D87: 14927.38 | E87: 94.98820222
A88: 88 | B88: Orthopedic Surgery: Shoulder / Elbow | C88: -689.09 | D88: -0.93 | E88: 740.9569892
A89: 31 | B89: Orthopedic Surgery: Spine | C89: 1285643.53 | D89: 14759.98 | E89: 87.10333822
A90: 85 | B90: Orthopedic Surgery: Sports Medicine | C90: 1538464.88 | D90: 13281.13 | E90: 115.8384023
A91: 24 | B91: Orthopedic Surgery: Trauma | C91: 2441346.24 | D91: 28412.72 | E91: 85.92441132
A92: 00 | B92: Other Physician Specialty | C92: 75 | D92: 0 | E92: 0
A93: 58 | B93: Otorhinolaryngology | C93: 8071908.72 | D93: 68131.57 | E93: 118.4753077
A94: F6 | B94: Otorhinolaryngology - NP / PA | C94: 946386.78 | D94: 7152.16 | E94: 132.3218133
A95: 98 | B95: Palliative Care | C95: 246092.4 | D95: 3674.15 | E95: 66.9794102
A96: C7 | B96: Palliative Care - NP / PA | C96: 12103.52 | D96: 275.96 | E96: 43.85968981
A97: 07 | B97: Pathology: Anatomic | C97: 4340598.66 | D97: 52550.17 | E97: 82.59913641
A98: 14 | B98: Pathology: Clinical | C98: 1894179.94 | D98: 26773.54 | E98: 70.74820662
A99: CY | B99: Pathology: Cytopathology | C99: 606743.39 | D99: 8167.45 | E99: 74.2879834
A100: P2 | B100: Pathology: Hematopathology | C100: 58214.04 | D100: 979.07 | E100: 59.45850654
A101: 80 | B101: Pathology: Surgical | C101: 29947235.54 | D101: 110229.11 | E101: 271.6817322
A102: 41 | B102: Pediatrics: Adolescent Medicine | C102: 66007.85 | D102: 579.59 | E102: 113.8871444
A103: 05 | B103: Pediatrics: Allergy / Immunology | C103: 770906.48 | D103: 8736.13 | E103: 88.24347623
A104: DC | B104: Pediatrics: Bone Marrow Transplant* | C104: 200148.73 | D104: 1771.98 | E104: 112.9520254
A105: 63 | B105: Pediatrics: Cardiology | C105: 853806.61 | D105: 9599.49 | E105: 88.94291363
A106: DF | B106: Pediatrics: Cardiology - NP / PA | C106: 75209.02 | D106: 873.8 | E106: 86.07120623
A107: P9 | B107: Pediatrics: Cardiology Interventional | C107: 491994.23 | D107: 5581.59 | E107: 88.14589212
A108: 33 | B108: Pediatrics: Cardiology-Invasive | C108: 271189.98 | D108: 3205.8 | E108: 84.59354295
A109: 34 | B109: Pediatrics: Cardiology-Noninvasive | C109: 777593.98 | D109: 8836.95 | E109: 87.99347965
A110: A5 | B110: Pediatrics: Critical Care | C110: 2066480.32 | D110: 24044.99 | E110: 85.94224077
A111: F9 | B111: Pediatrics: Critical Care - NP / PA | C111: 2961.07 | D111: 52.6 | E111: 56.29410646
A112: A2 | B112: Pediatrics: Developmental | C112: 43977.72 | D112: 669.36 | E112: 65.70114736
A113: 20 | B113: Pediatrics: Emergency Medicine | C113: 3107232.78 | D113: 56640.36 | E113: 54.85898713
A114: 64 | B114: Pediatrics: Endocrinology | C114: 1296739.8 | D114: 12591.94 | E114: 102.9817328
A115: H1 | B115: Pediatrics: Endocrinology - NP / PA | C115: 453664.04 | D115: 6402.3 | E115: 70.8595411
A116: A8 | B116: Pediatrics: Gastroenterology | C116: 2422308.55 | D116: 22743.79 | E116: 106.5041732
A117: H2 | B117: Pediatrics: Gastroenterology - NP / PA | C117: 79567.12 | D117: 972.58 | E117: 81.81036007
A118: 61 | B118: Pediatrics: General | C118: 63995.88 | D118: 782.1 | E118: 81.82570004
A119: H3 | B119: Pediatrics: General - NP / PA | C119: 203199.11 | D119: 3324.75 | E119: 61.11710956
A120: A7 | B120: Pediatrics: Hematology / Oncology | C120: 1550950.23 | D120: 15623.66 | E120: 99.26932806
A121: H5 | B121: Pediatrics: Hematology / Oncology - NP / PA | C121: 224552.45 | D121: 2650.74 | E121: 84.71311785
A122: 43 | B122: Pediatrics: Hospitalists | C122: 2737270.58 | D122: 37330.97 | E122: 73.32438937
A123: 11 | B123: Pediatrics: Infectious Disease | C123: 179411.07 | D123: 2601.71 | E123: 68.95890395
A124: 48 | B124: Pediatrics: Neonatal Medicine | C124: 7374062.77 | D124: 91202.28 | E124: 80.85393008
A125: L7 | B125: Pediatrics: Neonatal Medicine - NP / PA | C125: 259580.74 | D125: 2869.71 | E125: 90.45539096
A126: 49 | B126: Pediatrics: Nephrology | C126: 352763.37 | D126: 4872.22 | E126: 72.4030052
A127: 12 | B127: Pediatrics: Neurology | C127: 1048224.46 | D127: 13133.41 | E127: 79.81357926
A128: H6 | B128: Pediatrics: Neurology - NP / PA | C128: 89225.37 | D128: 1185.62 | E128: 75.25629628
A129: 65 | B129: Pediatrics: Psychiatry | C129: 1713481.18 | D129: 30532.49 | E129: 56.11992929
A130: H7 | B130: Pediatrics: Psychiatry - NP / PA | C130: 160707.26 | D130: 2021.94 | E130: 79.48171558
A131: K8 | B131: Pediatrics: Psychology | C131: 692148 | D131: 7860.08 | E131: =IFERROR(SUM(C131/D131),0) -> 88.05864571
A132: A6 | B132: Pediatrics: Pulmonology | C132: 1032168.76 | D132: 13130.72 | E132: 78.60717158
A133: 21 | B133: Pediatrics: Rheumatology | C133: 336116.71 | D133: 3502.95 | E133: 95.95247149
A134: 69 | B134: Physical Medicine: General | C134: 1437691.91 | D134: 17827.75 | E134: 80.64348614
A135: C4 | B135: Physical Medicine: Pain and Spine | C135: 1394180.43 | D135: 16644.77 | E135: 83.76087083
A136: ZA | B136: Podiatry | C136: 441.18 | D136: 0 | E136: 0
A137: 59 | B137: Psychiatry | C137: 4418256.12 | D137: 59144.14 | E137: 74.70319325
A138: J1 | B138: Psychiatry - NP / PA | C138: 711.31 | D138: 16.05 | E138: 44.31838006
A139: 60 | B139: Psychology | C139: 65886.14 | D139: 1850.44 | E139: 35.60566136
A140: 73 | B140: Pulmonary Disease | C140: 4818524.46 | D140: 70655.14 | E140: 68.19779085
A141: E4 | B141: Pulmonary Disease - NP / PA | C141: 261453.64 | D141: 4587.3 | E141: 56.99510387
A142: 79 | B142: Radiation Oncology | C142: 10034960.12 | D142: 106054.84 | E142: 94.62048238
A143: J3 | B143: Radiation Oncology - NP / PA | C143: 6105.37 | D143: 150.5 | E143: 40.56724252
A144: 75 | B144: Radiology: Diagnostic | C144: 34071685.19 | D144: 431898.79 | E144: 78.88812374
A145: 38 | B145: Radiology: Interventional | C145: 6040539.76 | D145: 51233.59 | E145: 117.9019421
A146: 47 | B146: Radiology: Nuclear Medicine | C146: 895942.76 | D146: 12046.25 | E146: 74.37524209
A147: 76 | B147: Reproductive Endocrinology | C147: 3029535.08 | D147: 12186.15 | E147: 248.6047751
A148: J4 | B148: Reproductive Endocrinology - NP / PA | C148: 339113.51 | D148: 751.08 | E148: 451.501185
A149: 77 | B149: Rheumatology | C149: 2133218.2 | D149: 22481.31 | E149: 94.88851851
A150: M6 | B150: Rheumatology - NP / PA | C150: 171941.3 | D150: 2541.05 | E150: 67.66545326
A151: 55 | B151: Sleep Medicine | C151: 1193027.41 | D151: 14716.64 | E151: 81.06656207
A152: C9 | B152: Sleep Medicine - NP / PA | C152: 137933.79 | D152: 1773.02 | E152: 77.79595831
A153: SW | B153: Social Worker | C153: 583853.77 | D153: 10925.5 | E153: 53.43954693
A154: SP | B154: Speech Language Pathologist | C154: 52372.62 | D154: 451.96 | E154: 115.8788831
A155: N5 | B155: Surgery: Bariatric | C155: 2885668.13 | D155: 27761.78 | E155: 103.9439161
A156: 30 | B156: Surgery: Breast | C156: 1943473.56 | D156: 16181.34 | E156: 120.1058478
A157: 81 | B157: Surgery: Cardiac | C157: 4385141.34 | D157: 66457.6 | E157: 65.98404607
A158: K4 | B158: Surgery: Cardiac - NP / PA | C158: 11062.02 | D158: 159.93 | E158: 69.16788595
A159: 16 | B159: Surgery: Colon and Rectal | C159: 2190147.12 | D159: 19384.8 | E159: 112.982704
A160: 32 | B160: Surgery: General | C160: 193039.7 | D160: 5329.38 | E160: 36.22179315
A161: J5 | B161: Surgery: General - NP / PA | C161: 520098.29 | D161: 7486.26 | E161: 69.47371451
A162: 50 | B162: Surgery: Neurological | C162: 8083263.36 | D162: 79277.09 | E162: 101.9621603
A163: J6 | B163: Surgery: Neurological - NP / PA | C163: 725922.68 | D163: 17236.88 | E163: 42.11450564
A164: 66 | B164: Surgery: Pediatric | C164: 1226957.77 | D164: 12189.83 | E164: 100.654215
A165: L9 | B165: Surgery: Pediatric - NP / PA | C165: 0 | D165: 1.4 | E165: 0
A166: G2 | B166: Surgery: Pediatric Neurosurgery | C166: 669342.62 | D166: 8156.04 | E166: 82.06710855
A167: 71 | B167: Surgery: Plastic | C167: 5833579.57 | D167: 48717.66 | E167: 119.7426061
A168: J9 | B168: Surgery: Plastic - NP / PA | C168: 218582.94 | D168: 2104.47 | E168: 103.866028
A169: 87 | B169: Surgery: Thoracic | C169: 1359053.64 | D169: 16127.17 | E169: 84.27105562
A170: ZT | B170: Surgery: Trauma | C170: 4075431.08 | D170: 50746.68 | E170: 80.30931442
A171: 86 | B171: Surgery: Vascular | C171: 1957511.51 | D171: 25126.01 | E171: 77.90777406
A172: K1 | B172: Surgery: Vascular / Thoracic - NP / PA | C172: 80958.99 | D172: 2681.71 | E172: 30.18931577
A173: 02 | B173: Surgical Oncology | C173: 2002240.26 | D173: 18126.74 | E173: 110.4578242
A174: TS | B174: Transplant Surgery: General | C174: 1146846.83 | D174: 16469.81 | E174: 69.63327628
A175: M7 | B175: Transplant Surgery: General - NP / PA | C175: 31240.58 | D175: 709.46 | E175: 44.03430778
A176: 78 | B176: Uro-Gynecology | C176: 1082576.38 | D176: 12479.62 | E176: 86.7475436
A177: 82 | B177: Urology | C177: 12194886.51 | D177: 112717.56 | E177: 108.1897666
A178: K2 | B178: Urology - NP / PA | C178: 1113246.34 | D178: 14972.29 | E178: 74.35377888
B179: CSC: Pediatrics: Psychiatry | E179: 92
B180: CSC: Pediatrics: Psychiatry - NP / PA | E180: 78
B181: CSC: Pediatrics: Psychology | E181: 97
B182: CSC: Social Worker | E182: 58
B183: CSC: Speech Language Pathologist | E183: 195
B184: CSC: Counselor | E184: 58
B185: CSC: Therapist | E185: 58
B186: CSC: Psychiatry | E186: 52
B187: CSC: APP: Psychiatry | E187: 52

Sheet Assumptions
B2: Assumptions Impacting YSM-YM Business Plan | G2: Startup Schedule
B3: * Changing the inputs will impact the plan sheet and salary build tab. | G3: Time | H3: YNHH | I3: Delivery Network
G4: Year 1 | H4: 0.4 | I4: 0.4
B5: Benefits | G5: Year 2 | H5: 0.6 | I5: 0.6
C6: M&P - Non-Clinical Faculty | D6: 0.332 | E6: FY 2025 Rate | G6: Year 3 | H6: 0.8 | I6: 0.7
C7: Clinical Faculty | D7: 0.332 | E7: FY 2025 Rate | G7: Year 4 | H7: 1 | I7: 0.8
C8: Tack-On & Sabaatical Assessment | D8: =D25+D26 -> 0.116 | E8: FY 2025 Rate | G8: Year 5 | H8: 1 | I8: 0.9
C9: Child Rearing Assessment | D9: 0.012 | E9: FY 2025 Rate | G9: Year 6 | H9: 1 | I9: 1
C10: C&T | D10: 0.635 | E10: FY 2025 Rate
C11: Over the Pension Cap | D11: 0.02 | E11: FY 2025 Rate
C12: Over the Pension Cap - Clinical Faculty | D12: 0.02 | E12: FY 2025 Rate
C13: Incentive | D13: 0.02 | E13: FY 2025 Rate
B14: Other
C15: Lag | D15: 1.5 | E15: Represents 45 day collection lag
C16: Over the Pension Cap Amount1 | D16: 345000 | E16: CY 2024 Cap
B18: 1) Over the cap amount
B20: Other Assessments for Research Plan
B21: 0.3 | C21: Clinical Trial Assessment - old | D21: =B21/(1+B21) -> 0.2307692308
B22: 0.35 | C22: Clinical Trial Assessment - new | D22: =B22/(1+B22) -> 0.2592592593
C23: Gift Assessment | D23: 0.12
C24: YNHHS Assessment | D24: 0
C25: Supplemental Fringe | D25: 0.086
C26: YSM Sabbatical | D26: 0.03
C28: Faculty fringe rate - Grants | D28: 0.307 | E28: FY 2024 Rate
C29: Faculty fringe rate - Grants | D29: 0.306 | E29: FY 2025 Rate
C30: Faculty fringe rate - Non-Grant | D30: 0.332 | E30: FY 2025 Rate
C32: NIH Salary Cap | D32: 221900 | E32: CY 2024 Cap
C33: Indirect rates | D33: https://your.yale.edu/research-support/office-sponsored-projects/institutional-information

Sheet Version Notes
B2: Version Control Notes
A4: FY24 | B4: 1.2 | C4: Separated startup and UHC RVU payments on the summary tab
C5: Removed the word "fringe" and replaced with "benefits"
B7: 1.3 | C7: Updated Dean's Assessment to latest value
B9: 1.4 | C9: Fixed formula error related to YM Enterprise profit/loss
B11: 1.5 | C11: Fixed Dean's assessment formula
C12: Removed asterisks from UHC specialties
C13: Changed Academic Support Payment to 1.82% from 1.69%
C14: Compensation and RVU rate growth add as a column by provider
B16: 1.6 | C16: Added FTE column to correct physician comp calculation
C17: Fixed ramp up formulas for RVU calculations
C18: Updated UHC Data FY24 YTD Aug
C19: Updated OH & Benefit tab
C20: Updated Rate Summary
B22: 1.7 | C22: Fixed Physician Funds Flow Build formulas
C23: Populated benchmarks for Child Study Center
C24: Broke out formulas to simplify calculations
C25: Added logic to detect and warn about missing data
C26: Deleted outdated range names
B28: 1.8.1 | C28: Updated footnotes on the Physician's Funds Flow Build tab
C29: Defined names for Assumption tab variables
C30: Broke out Incentive Compensation on the Physician Salary Build tab
C31: Broke out Total Compensation on the Physician Salary Build tab
C32: Broke our Clinical Portion of Total Compensation and Tack-on on the Physician Salary Build tab
C33: Fixed Total Compensation with Benefits and Tack-on calculation on the Physician Salary Build tab
C34: Fixed formula error for Year 6 starts on the Physician Salary Build tab
C35: Fixed salary support revenue calculation on the Physician Salary Build tab
C36: Updated Academic Support Payment Rate on the Funds Flow P&L tab
C37: Renamed Salary Support to Clinical Salary Support on the Physician Salary Build tab
C38: Updated Funds Flow P&L to only reflect clinical portion of total compensation and tack-on
B40: 1.9 | C40: Added Research Plan tabs
C41: Added research assessments, grant fringe rates and NIH salary cap to Assumptions tab
C42: Updated pension cap
B44: 1.9.1 | C44: Fixed start date logic on Physician's Funds Flow Build Tab
B46: 1.9.2 | C46: Added "Consolidated Summary" tab
C47: Removed YNHHS 11.7% assessment (no longer relevant with funds flow)
A49: FY25 | B49: 1 | C49: Updated fringe rates to FY25 rates
B50: 1.1 | C50: Deleted individual provider information

Sheet Contractual Calculator (hidden)
G2: Department
G3: Gross-Up?
C4: YNHHS and Non-Affiliated Hospital Contract Calculator | G4: No
D6: Rate | E6: Year 1 | F6: Year 2 | G6: Year 3
C7: Base Contract Amount | E7: 0 | F7: 0 | G7: 0
C8: Department Assessment | D8: 0 | E8: =IF(G4="Yes",$E$7/(1-$D$8)-$E$7,$D$8*$E$7) -> 0 | F8: =IF($G$4="Yes",$F$7/(1-$D$8)-$F$7,$D$8*$F$7) -> 0 | G8: =IF($G$4="Yes",$G$7/(1-$D$8)-$G$7,$D$8*$G$7) -> 0
C9: Direct Contract Amount | E9: =E8+E7 -> 0 | F9: =F8+F7 -> 0 | G9: =G8+G7 -> 0
C10: YSM/YM Assessment | D10: 0.117 | E10: =E9/(1-D10)-$E$9 -> 0 | F10: =F9/(1-D10)-$F$9 -> 0 | G10: =G9/(1-D10)-$G$9 -> 0 | H10: Please update to 15% if for non-affiliated
C11: Total Amount of Contract | E11: =E10+E9 -> 0 | F11: =F10+F9 -> 0 | G11: =G10+G9 -> 0
C12: Gross Assessments | E12: =E8+E10 -> 0 | F12: =F8+F10 -> 0 | G12: 0
C13: Assessment Effective Rate - % | E13: =IFERROR(E12/E11,0) -> 0 | F13: =IFERROR(F12/F11,0) -> 0 | G13: =IFERROR(G12/G11,0) -> 0

Sheet Depository (hidden)
B3: Year 1 | D3: Yes
B4: Year 2 | D4: No
B5: Year 3
B6: Year 4
B7: Year 5
B8: Year 6

Sheet Definitions (hidden)
B2: PDDO Template Definitions:
B4: Category | C4: Definition
B6: Type
B7: YNHH PDDO | C7: A backstop from YNHH with a unique set of assessments; will populate the assessments on PDDO section at the bottom of the document.
B8: YNHHS PDDO | C8: A backstop from a YNHHS entity with a unique set of assessments; will populate the assessments on PDDO section at the bottom of the document.
B9: Non-Affliated PDDO | C9: A backstop from non-YNHH/YNHHS entity with a unique set of assessments; will populate the assessments on PDDO section at the bottom of the document.
B10: Contractual | C10: A plan to satisfy planning for a contractual agreement. Does not impact the spreadsheet and assessments will only be calculated within the plan.
B12: Position
B13: Replacement | C13: A replacement for an existing faculty position.
B14: Acquisition | C14: Acquisition of a new practice or physician.
B15: New Hire - Organic | C15: A new hire due to organic growth (clinic volume growth in existing service/clinic, etc.)
B16: New Program (Not Acquired) | C16: A new program being built from the ground up.
B17: N/A | C17: Catch-all.
B18: One-Time Incentive | C18: One-time payment(s) funded by Yale University
B19: Ongoing Incentive | C19: Ongoing payment(s) funded by Yale University
B20: Moving/Relocation Bonus | C20: Payment(s) funded by Yale University related to relocation
B21: YNHH Metric-Based | C21: YNHH funded performance funds paid on-going and based on achievement of metrics and goals (i.e. no YNHH YSM overhead)
B22: YNHH Not Metric-Based | C22: YNHH funded performance fund not tied to metrics (i.e. must pay 18% YSM overhead)
B24: Ramp-Up Methodology | C24: Can select for each of the three years. The standard assumption should be 65/80/100. Will show as blank and the user is to select appropriate ramp-up criteria.
B25: Volume | C25: For clinical business plans, please select the volume metric you are using. The standard is wRVU.
B26: Revenue-Generating cFTE | C26: Time spent seeing patients and/or on direct patient care activity. Should align with departments definition of cFTE.
B27: # of Faculty | C27: Physical bodies associated with the plan. For example, if there is support for 1.6 cFTE which is comprised of two individuals, the number of faculty is two.
B29: Revenue/Volume Metrics:
B30: Volume per Revenue-generating cFTE | C30: A metric to show expected productivity per cFTE. Should be aligned with ramp-up.
B31: Collections per Revenue-generating cFTE | C31: A metric to show expected collections per cFTE. Should be aligned with ramp-up.
B32: Collections per Volume Metric | C32: A metric to show expected collections on a per unit basis.
B34: Program Development/Direction Support
B35: YNHH Direct Salary and Fringe Benefit Support | C35: Typically, medical director support for salary and fringe. The original version will auto-calculate based on the salary build sheet.
B36: YNHH Contractual | C36: Contractual arrangements in which YNHH is the other entity (includes on-call).
B37: Other Contractual | C37: Contractual arrangements in which YNHH is not the other entity.
B38: Gifts | C38: Contributions made to a University entity; has assessment implications.
B39: Other Revenue (non-taxable) | C39: A catch-all for other revenue.
